Workbook

Sheet Main
B10: 2023-05-03
B12: Sheet No. | C12: Template Name | D12: Summary
B13: 1 | C13: Future Intra | D13: For Intraday trading in F&O segment
B14: 2 | C14: Cash Intra | D14: For Intraday trading in cash market segment
B15: 3 | C15: Mid-cap Intra | D15: For Intraday trading in Mid-cap stocks
B16: 4 | C16: Bulk Deals | D16: Reveals Bulk Deals carried on NSE & BSE
B17: 5 | C17: Call Tracker
K27: `

Sheet Future Intra
M5: Back to Main Page
A6: FOR INTRA DAY TRADING | L6: =Main!B10 -> 2023-05-03
A9: Sr.no | B9: Sector | C9: Scrip | D9: Expiry Date | E9: CLOSE RATE | F9: Pivot Point | G9: Supports | J9: Resistances
E10: Point | F10: Point | G10: S1 | H10: S2 | I10: S3 | J10: R1 | K10: R2 | L10: R3 | M10: HIGH | N10: LOW | O10: OI | P10: % Change in OI
A11: 1 | B11: Index | C11: NIFTY | D11: 2023-05-25 | E11: 18213.15 | F11: 18213.62 | G11: 18179.98 | H11: 18146.82 | I11: 18113.18 | J11: 18246.78 | K11: 18280.42 | L11: 18313.58 | M11: 18247.25 | N11: 18180.45 | O11: 10525200 | P11: 9.16%
A12: 2 | B12: Index | C12: BANKNIFTY | D12: 2023-05-25 | E12: 43367.25 | F12: 43367.30 | G12: 43255.60 | H12: 43143.95 | I12: 43032.25 | J12: 43478.95 | K12: 43590.65 | L12: 43702.30 | M12: 43479 | N12: 43255.65 | O12: 2531310 | P12: 1.75%
A13: 3 | B13: Index | C13: FINNIFTY | D13: 2023-05-30 | E13: 19217.35 | F13: 19067.78 | G13: 18860.57 | H13: 18503.78 | I13: 18296.57 | J13: 19424.57 | K13: 19631.78 | L13: 19988.57 | M13: 19275 | N13: 18711 | O13: 38040 | P13: -8.38%
A14: 4 | B14: Index | C14: MIDCPNIFTY | D14: 2023-05-31 | E14: 7199.25 | F14: 2399.75 | G14: 4799.50 | H14: 2399.75 | I14: 4799.50 | J14: 4799.50 | K14: 2399.75 | L14: 4799.50 | M14: 0 | N14: 0 | O14: 75 | P14: 0.00%
A15: 5 | B15: Chemical | C15: AARTIIND | D15: 2023-05-25 | E15: 559.65 | F15: 562.22 | G15: 556.03 | H15: 552.42 | I15: 546.23 | J15: 565.83 | K15: 572.02 | L15: 575.63 | M15: 568.4 | N15: 558.6 | O15: 3516450 | P15: 5.00%
A16: 6 | B16: Capital_Goods | C16: ABB | D16: 2023-05-25 | E16: 3458.05 | F16: 3451.02 | G16: 3419.03 | H16: 3380.02 | I16: 3348.03 | J16: 3490.03 | K16: 3522.02 | L16: 3561.03 | M16: 3483 | N16: 3412 | O16: 1320750 | P16: 0.51%
A17: 7 | B17: Pharma | C17: ABBOTINDIA | D17: 2023-05-25 | E17: 22499.75 | F17: 22562.67 | G17: 22387.23 | H17: 22274.72 | I17: 22099.28 | J17: 22675.18 | K17: 22850.62 | L17: 22963.13 | M17: 22738.1 | N17: 22450.15 | O17: 66440 | P17: 2.34%
A18: 8 | B18: Others | C18: ABCAPITAL | D18: 2023-05-25 | E18: 169.05 | F18: 169.67 | G18: 167.93 | H18: 166.82 | I18: 165.08 | J18: 170.78 | K18: 172.52 | L18: 173.63 | M18: 171.4 | N18: 168.55 | O18: 28317600 | P18: 1.12%
A19: 9 | B19: Textile | C19: ABFRL | D19: 2023-05-25 | E19: 225.80 | F19: 225.23 | G19: 223.52 | H19: 221.23 | I19: 219.52 | J19: 227.52 | K19: 229.23 | L19: 231.52 | M19: 226.95 | N19: 222.95 | O19: 22406800 | P19: -2.46%
A20: 10 | B20: Cement | C20: ACC | D20: 2023-05-25 | E20: 1775.20 | F20: 1773.32 | G20: 1759.68 | H20: 1744.17 | I20: 1730.53 | J20: 1788.83 | K20: 1802.47 | L20: 1817.98 | M20: 1786.95 | N20: 1757.8 | O20: 3766700 | P20: 3.57%
A21: 11 | B21: Others | C21: ADANIENT | D21: 2023-05-25 | E21: 1929.50 | F21: 1939.77 | G21: 1903.38 | H21: 1877.27 | I21: 1840.88 | J21: 1965.88 | K21: 2002.27 | L21: 2028.38 | M21: 1976.15 | N21: 1913.65 | O21: 9062550 | P21: -3.31%
A22: 12 | B22: Others | C22: ADANIPORTS | D22: 2023-05-25 | E22: 683.85 | F22: 682.47 | G22: 676.18 | H22: 668.52 | I22: 662.23 | J22: 690.13 | K22: 696.42 | L22: 704.08 | M22: 688.75 | N22: 674.8 | O22: 37162700 | P22: -2.00%
A23: 13 | B23: Pharma | C23: ALKEM | D23: 2023-05-25 | E23: 3531.30 | F23: 3543.78 | G23: 3505.57 | H23: 3479.83 | I23: 3441.62 | J23: 3569.52 | K23: 3607.73 | L23: 3633.47 | M23: 3582 | N23: 3518.05 | O23: 638200 | P23: -2.39%
A24: 14 | B24: Cement | C24: AMBUJACEM | D24: 2023-05-25 | E24: 396.95 | F24: 396.85 | G24: 391.60 | H24: 386.25 | I24: 381.00 | J24: 402.20 | K24: 407.45 | L24: 412.80 | M24: 402.1 | N24: 391.5 | O24: 65349000 | P24: 2.33%
A25: 15 | B25: Others | C25: APOLLOHOSP | D25: 2023-05-25 | E25: 4518.05 | F25: 4540.40 | G25: 4482.85 | H25: 4447.65 | I25: 4390.10 | J25: 4575.60 | K25: 4633.15 | L25: 4668.35 | M25: 4597.95 | N25: 4505.2 | O25: 1374875 | P25: 4.59%
A26: 16 | B26: Automobile | C26: APOLLOTYRE | D26: 2023-05-25 | E26: 348.25 | F26: 348.70 | G26: 346.55 | H26: 344.85 | I26: 342.70 | J26: 350.40 | K26: 352.55 | L26: 354.25 | M26: 350.85 | N26: 347 | O26: 12573200 | P26: 3.11%
A27: 17 | B27: Automobile | C27: ASHOKLEY | D27: 2023-05-25 | E27: 144.50 | F27: 144.97 | G27: 143.48 | H27: 142.47 | I27: 140.98 | J27: 145.98 | K27: 147.47 | L27: 148.48 | M27: 146.45 | N27: 143.95 | O27: 46365000 | P27: -4.56%
A28: 18 | B28: FMCG | C28: ASIANPAINT | D28: 2023-05-25 | E28: 2914.15 | F28: 2924.40 | G28: 2897.90 | H28: 2881.65 | I28: 2855.15 | J28: 2940.65 | K28: 2967.15 | L28: 2983.40 | M28: 2950.9 | N28: 2908.15 | O28: 5952200 | P28: 0.73%
A29: 19 | B29: Others | C29: ASTRAL | D29: 2023-05-25 | E29: 1489.85 | F29: 1482.40 | G29: 1461.55 | H29: 1433.25 | I29: 1412.40 | J29: 1510.70 | K29: 1531.55 | L29: 1559.85 | M29: 1503.25 | N29: 1454.1 | O29: 1806007 | P29: 7.92%
A30: 20 | B30: Others | C30: ATUL | D30: 2023-05-25 | E30: 6586.10 | F30: 6598.60 | G30: 6468.55 | H30: 6351.00 | I30: 6220.95 | J30: 6716.15 | K30: 6846.20 | L30: 6963.75 | M30: 6728.65 | N30: 6481.05 | O30: 247500 | P30: 19.65%
A31: 21 | B31: Banking | C31: AUBANK | D31: 2023-05-25 | E31: 675.55 | F31: 670.38 | G31: 661.22 | H31: 646.88 | I31: 637.72 | J31: 684.72 | K31: 693.88 | L31: 708.22 | M31: 679.55 | N31: 656.05 | O31: 11318000 | P31: -0.91%
A32: 22 | B32: Pharma | C32: AUROPHARMA | D32: 2023-05-25 | E32: 621.65 | F32: 620.80 | G32: 615.85 | H32: 610.05 | I32: 605.10 | J32: 626.60 | K32: 631.55 | L32: 637.35 | M32: 625.75 | N32: 615 | O32: 11313600 | P32: 2.36%
A33: 23 | B33: Banking | C33: AXISBANK | D33: 2023-05-25 | E33: 874.70 | F33: 874.95 | G33: 868.25 | H33: 861.80 | I33: 855.10 | J33: 881.40 | K33: 888.10 | L33: 894.55 | M33: 881.65 | N33: 868.5 | O33: 56052575 | P33: -6.38%
A34: 24 | B34: Automobile | C34: BAJAJ-AUTO | D34: 2023-05-25 | E34: 4473.60 | F34: 4452.87 | G34: 4425.73 | H34: 4377.87 | I34: 4350.73 | J34: 4500.73 | K34: 4527.87 | L34: 4575.73 | M34: 4480 | N34: 4405 | O34: 2823500 | P34: 4.13%
A35: 25 | B35: Finance | C35: BAJAJFINSV | D35: 2023-05-25 | E35: 1357.65 | F35: 1363.38 | G35: 1348.42 | H35: 1339.18 | I35: 1324.22 | J35: 1372.62 | K35: 1387.58 | L35: 1396.82 | M35: 1378.35 | N35: 1354.15 | O35: 9265500 | P35: 2.28%
A36: 26 | B36: Finance | C36: BAJFINANCE | D36: 2023-05-25 | E36: 6280.05 | F36: 6298.40 | G36: 6248.85 | H36: 6217.65 | I36: 6168.10 | J36: 6329.60 | K36: 6379.15 | L36: 6410.35 | M36: 6347.95 | N36: 6267.2 | O36: 4361000 | P36: -0.45%
A37: 27 | B37: Automobile | C37: BALKRISIND | D37: 2023-05-25 | E37: 2121.45 | F37: 2109.87 | G37: 2091.73 | H37: 2062.02 | I37: 2043.88 | J37: 2139.58 | K37: 2157.72 | L37: 2187.43 | M37: 2128 | N37: 2080.15 | O37: 1524000 | P37: -1.59%
A38: 28 | B38: Others | C38: BALRAMCHIN | D38: 2023-05-25 | E38: 419.50 | F38: 419.03 | G38: 415.57 | H38: 411.63 | I38: 408.17 | J38: 422.97 | K38: 426.43 | L38: 430.37 | M38: 422.5 | N38: 415.1 | O38: 6075200 | P38: 5.41%
A39: 29 | B39: Banking | C39: BANDHANBNK | D39: 2023-05-25 | E39: 232.65 | F39: 231.87 | G39: 230.18 | H39: 227.72 | I39: 226.03 | J39: 234.33 | K39: 236.02 | L39: 238.48 | M39: 233.55 | N39: 229.4 | O39: 49384000 | P39: -4.04%
A40: 30 | B40: Banking | C40: BANKBARODA | D40: 2023-05-25 | E40: 188.75 | F40: 188.97 | G40: 187.83 | H40: 186.92 | I40: 185.78 | J40: 189.88 | K40: 191.02 | L40: 191.93 | M40: 190.1 | N40: 188.05 | O40: 89592750 | P40: 0.98%
A41: 31 | B41: FMCG | C41: BATAINDIA | D41: 2023-05-25 | E41: 1499.25 | F41: 1497.47 | G41: 1488.93 | H41: 1478.62 | I41: 1470.08 | J41: 1507.78 | K41: 1516.32 | L41: 1526.63 | M41: 1506 | N41: 1487.15 | O41: 2309200 | P41: -2.36%
A42: 32 | B42: Capital_Goods | C42: BEL | D42: 2023-05-25 | E42: 104.90 | F42: 104.75 | G42: 104.00 | H42: 103.10 | I42: 102.35 | J42: 105.65 | K42: 106.40 | L42: 107.30 | M42: 105.5 | N42: 103.85 | O42: 83721600 | P42: -2.20%
A43: 33 | B43: FMCG | C43: BERGEPAINT | D43: 2023-05-25 | E43: 610.05 | F43: 610.65 | G43: 606.55 | H43: 603.05 | I43: 598.95 | J43: 614.15 | K43: 618.25 | L43: 621.75 | M43: 614.75 | N43: 607.15 | O43: 8874800 | P43: 0.64%
A44: 34 | B44: Automobile | C44: BHARATFORG | D44: 2023-05-25 | E44: 802.25 | F44: 802.20 | G44: 798.30 | H44: 794.35 | I44: 790.45 | J44: 806.15 | K44: 810.05 | L44: 814.00 | M44: 806.1 | N44: 798.25 | O44: 8302000 | P44: 3.26%
A45: 35 | B45: Telecom | C45: BHARTIARTL | D45: 2023-05-25 | E45: 793.30 | F45: 797.87 | G45: 787.53 | H45: 781.77 | I45: 771.43 | J45: 803.63 | K45: 813.97 | L45: 819.73 | M45: 808.2 | N45: 792.1 | O45: 40985850 | P45: -2.14%
A46: 36 | B46: Capital_Goods | C46: BHEL | D46: 2023-05-25 | E46: 82.15 | F46: 81.25 | G46: 79.70 | H46: 77.25 | I46: 75.70 | J46: 83.70 | K46: 85.25 | L46: 87.70 | M46: 82.8 | N46: 78.8 | O46: 99508500 | P46: 2.99%
A47: 37 | B47: Pharma | C47: BIOCON | D47: 2023-05-25 | E47: 239.85 | F47: 237.98 | G47: 235.27 | H47: 230.68 | I47: 227.97 | J47: 242.57 | K47: 245.28 | L47: 249.87 | M47: 240.7 | N47: 233.4 | O47: 26101600 | P47: -4.63%
A48: 38 | B48: Automobile | C48: BOSCHLTD | D48: 2023-05-25 | E48: 19866.90 | F48: 19757.45 | G48: 19562.00 | H48: 19257.10 | I48: 19061.65 | J48: 20062.35 | K48: 20257.80 | L48: 20562.70 | M48: 19952.9 | N48: 19452.55 | O48: 131300 | P48: -2.01%
A49: 39 | B49: Oil_Gas | C49: BPCL | D49: 2023-05-25 | E49: 363.00 | F49: 363.43 | G49: 359.62 | H49: 356.23 | I49: 352.42 | J49: 366.82 | K49: 370.63 | L49: 374.02 | M49: 367.25 | N49: 360.05 | O49: 14673600 | P49: -1.75%
A50: 40 | B50: FMCG | C50: BRITANNIA | D50: 2023-05-25 | E50: 4527.35 | F50: 4554.95 | G50: 4489.90 | H50: 4452.45 | I50: 4387.40 | J50: 4592.40 | K50: 4657.45 | L50: 4694.90 | M50: 4620 | N50: 4517.5 | O50: 1503200 | P50: 2.94%
A51: 41 | B51: Technology | C51: BSOFT | D51: 2023-05-25 | E51: 280.00 | F51: 278.85 | G51: 275.65 | H51: 271.30 | I51: 268.10 | J51: 283.20 | K51: 286.40 | L51: 290.75 | M51: 282.05 | N51: 274.5 | O51: 7974000 | P51: 2.28%
A52: 42 | B52: Banking | C52: CANBK | D52: 2023-05-25 | E52: 321.50 | F52: 321.22 | G52: 319.18 | H52: 316.87 | I52: 314.83 | J52: 323.53 | K52: 325.57 | L52: 327.88 | M52: 323.25 | N52: 318.9 | O52: 39646800 | P52: -0.88%
A53: 43 | B53: Finance | C53: CANFINHOME | D53: 2023-05-25 | E53: 630.70 | F53: 629.40 | G53: 622.45 | H53: 614.20 | I53: 607.25 | J53: 637.65 | K53: 644.60 | L53: 652.85 | M53: 636.35 | N53: 621.15 | O53: 3773250 | P53: 6.49%
A54: 44 | B54: Others | C54: CHAMBLFERT | D54: 2023-05-25 | E54: 289.80 | F54: 289.50 | G54: 286.10 | H54: 282.40 | I54: 279.00 | J54: 293.20 | K54: 296.60 | L54: 300.30 | M54: 292.9 | N54: 285.8 | O54: 5485700 | P54: 6.97%
A55: 45 | B55: Finance | C55: CHOLAFIN | D55: 2023-05-25 | E55: 875.95 | F55: 882.15 | G55: 868.30 | H55: 860.65 | I55: 846.80 | J55: 889.80 | K55: 903.65 | L55: 911.30 | M55: 896 | N55: 874.5 | O55: 10363750 | P55: 4.74%
A56: 46 | B56: Pharma | C56: CIPLA | D56: 2023-05-25 | E56: 922.00 | F56: 919.40 | G56: 914.60 | H56: 907.20 | I56: 902.40 | J56: 926.80 | K56: 931.60 | L56: 939.00 | M56: 924.2 | N56: 912 | O56: 14580150 | P56: 0.70%
A57: 47 | B57: Others | C57: COALINDIA | D57: 2023-05-25 | E57: 237.65 | F57: 237.20 | G57: 235.40 | H57: 233.15 | I57: 231.35 | J57: 239.45 | K57: 241.25 | L57: 243.50 | M57: 239 | N57: 234.95 | O57: 39916800 | P57: 2.65%
A58: 48 | B58: Technology | C58: COFORGE | D58: 2023-05-25 | E58: 4139.85 | F58: 4140.03 | G58: 4083.37 | H58: 4026.88 | I58: 3970.22 | J58: 4196.52 | K58: 4253.18 | L58: 4309.67 | M58: 4196.7 | N58: 4083.55 | O58: 924300 | P58: 51.62%
A59: 49 | B59: FMCG | C59: COLPAL | D59: 2023-05-25 | E59: 1562.65 | F59: 1567.57 | G59: 1555.13 | H59: 1547.62 | I59: 1535.18 | J59: 1575.08 | K59: 1587.52 | L59: 1595.03 | M59: 1580 | N59: 1560.05 | O59: 2047500 | P59: 0.64%
A60: 50 | B60: Others | C60: CONCOR | D60: 2023-05-25 | E60: 623.15 | F60: 621.17 | G60: 616.48 | H60: 609.82 | I60: 605.13 | J60: 627.83 | K60: 632.52 | L60: 639.18 | M60: 625.85 | N60: 614.5 | O60: 8821000 | P60: -0.33%
A61: 51 | B61: Others | C61: COROMANDEL | D61: 2023-05-25 | E61: 954.10 | F61: 952.20 | G61: 947.40 | H61: 940.70 | I61: 935.90 | J61: 958.90 | K61: 963.70 | L61: 970.40 | M61: 957 | N61: 945.5 | O61: 1094800 | P61: 2.02%
A62: 52 | B62: Capital_Goods | C62: CROMPTON | D62: 2023-05-25 | E62: 260.25 | F62: 258.75 | G62: 256.75 | H62: 253.25 | I62: 251.25 | J62: 262.25 | K62: 264.25 | L62: 267.75 | M62: 260.75 | N62: 255.25 | O62: 13522500 | P62: -3.00%
A63: 53 | B63: Banking | C63: CUB | D63: 2023-05-25 | E63: 143.50 | F63: 142.93 | G63: 141.92 | H63: 140.33 | I63: 139.32 | J63: 144.52 | K63: 145.53 | L63: 147.12 | M63: 143.95 | N63: 141.35 | O63: 17715000 | P63: 0.00%
A64: 54 | B64: Capital_Goods | C64: CUMMINSIND | D64: 2023-05-25 | E64: 1604.10 | F64: 1596.73 | G64: 1582.62 | H64: 1561.13 | I64: 1547.02 | J64: 1618.22 | K64: 1632.33 | L64: 1653.82 | M64: 1610.85 | N64: 1575.25 | O64: 2477400 | P64: 3.23%
A65: 55 | B65: FMCG | C65: DABUR | D65: 2023-05-25 | E65: 538.70 | F65: 537.28 | G65: 535.42 | H65: 532.13 | I65: 530.27 | J65: 540.57 | K65: 542.43 | L65: 545.72 | M65: 539.15 | N65: 534 | O65: 12317500 | P65: -1.46%
A66: 56 | B66: Cement | C66: DALBHARAT | D66: 2023-05-25 | E66: 2007.65 | F66: 2007.18 | G66: 1996.37 | H66: 1985.08 | I66: 1974.27 | J66: 2018.47 | K66: 2029.28 | L66: 2040.57 | M66: 2018 | N66: 1995.9 | O66: 1783000 | P66: 0.79%
A67: 57 | B67: Chemical | C67: DEEPAKNTR | D67: 2023-05-25 | E67: 1901.50 | F67: 1898.68 | G67: 1883.37 | H67: 1865.23 | I67: 1849.92 | J67: 1916.82 | K67: 1932.13 | L67: 1950.27 | M67: 1914 | N67: 1880.55 | O67: 1579750 | P67: 0.62%
A68: 58 | B68: Others | C68: DELTACORP | D68: 2023-05-25 | E68: 210.35 | F68: 209.47 | G68: 207.23 | H68: 204.12 | I68: 201.88 | J68: 212.58 | K68: 214.82 | L68: 217.93 | M68: 211.7 | N68: 206.35 | O68: 15559600 | P68: 0.04%
A69: 59 | B69: Pharma | C69: DIVISLAB | D69: 2023-05-25 | E69: 3259.45 | F69: 3257.57 | G69: 3238.88 | H69: 3218.32 | I69: 3199.63 | J69: 3278.13 | K69: 3296.82 | L69: 3317.38 | M69: 3276.25 | N69: 3237 | O69: 2873000 | P69: 1.44%
A70: 60 | B70: Others | C70: DIXON | D70: 2023-05-25 | E70: 2927.35 | F70: 2932.58 | G70: 2908.27 | H70: 2889.18 | I70: 2864.87 | J70: 2951.67 | K70: 2975.98 | L70: 2995.07 | M70: 2956.9 | N70: 2913.5 | O70: 821700 | P70: 2.37%
A71: 61 | B71: Realty | C71: DLF | D71: 2023-05-25 | E71: 426.35 | F71: 426.07 | G71: 422.83 | H71: 419.32 | I71: 416.08 | J71: 429.58 | K71: 432.82 | L71: 436.33 | M71: 429.3 | N71: 422.55 | O71: 37162950 | P71: 0.45%
A72: 62 | B72: Pharma | C72: DRREDDY | D72: 2023-05-25 | E72: 4968.60 | F72: 4965.78 | G72: 4941.12 | H72: 4913.63 | I72: 4888.97 | J72: 4993.27 | K72: 5017.93 | L72: 5045.42 | M72: 4990.45 | N72: 4938.3 | O72: 2568625 | P72: 0.84%
A73: 63 | B73: Automobile | C73: EICHERMOT | D73: 2023-05-25 | E73: 3366.60 | F73: 3365.17 | G73: 3331.33 | H73: 3296.07 | I73: 3262.23 | J73: 3400.43 | K73: 3434.27 | L73: 3469.53 | M73: 3399 | N73: 3329.9 | O73: 3333575 | P73: 0.25%
A74: 64 | B74: Automobile | C74: ESCORTS | D74: 2023-05-25 | E74: 1995.40 | F74: 1994.23 | G74: 1974.57 | H74: 1953.73 | I74: 1934.07 | J74: 2015.07 | K74: 2034.73 | L74: 2055.57 | M74: 2013.9 | N74: 1973.4 | O74: 1425875 | P74: 6.32%
A75: 65 | B75: Automobile | C75: EXIDEIND | D75: 2023-05-25 | E75: 193.50 | F75: 194.62 | G75: 190.98 | H75: 188.47 | I75: 184.83 | J75: 197.13 | K75: 200.77 | L75: 203.28 | M75: 198.25 | N75: 192.1 | O75: 20390400 | P75: 11.23%
A76: 66 | B76: Banking | C76: FEDERALBNK | D76: 2023-05-25 | E76: 136.35 | F76: 136.13 | G76: 135.32 | H76: 134.28 | I76: 133.47 | J76: 137.17 | K76: 137.98 | L76: 139.02 | M76: 136.95 | N76: 135.1 | O76: 58890000 | P76: 1.26%
A77: 67 | B77: Oil_Gas | C77: GAIL | D77: 2023-05-25 | E77: 109.00 | F77: 108.62 | G77: 108.03 | H77: 107.07 | I77: 106.48 | J77: 109.58 | K77: 110.17 | L77: 111.13 | M77: 109.2 | N77: 107.65 | O77: 60207000 | P77: -1.66%
A78: 68 | B78: Pharma | C78: GLENMARK | D78: 2023-05-25 | E78: 547.90 | F78: 553.52 | G78: 540.58 | H78: 533.27 | I78: 520.33 | J78: 560.83 | K78: 573.77 | L78: 581.08 | M78: 566.45 | N78: 546.2 | O78: 6385800 | P78: 0.11%
A79: 69 | B79: Infrastructure | C79: GMRINFRA | D79: 2023-05-25 | E79: 46.20 | F79: 46.15 | G79: 45.80 | H79: 45.40 | I79: 45.05 | J79: 46.55 | K79: 46.90 | L79: 47.30 | M79: 46.5 | N79: 45.75 | O79: 128340000 | P79: -1.37%
A80: 70 | B80: Others | C80: GNFC | D80: 2023-05-25 | E80: 601.30 | F80: 598.95 | G80: 591.35 | H80: 581.40 | I80: 573.80 | J80: 608.90 | K80: 616.50 | L80: 626.45 | M80: 606.55 | N80: 589 | O80: 8184800 | P80: 2.51%
A81: 71 | B81: FMCG | C81: GODREJCP | D81: 2023-05-25 | E81: 928.95 | F81: 923.78 | G81: 913.92 | H81: 898.88 | I81: 889.02 | J81: 938.82 | K81: 948.68 | L81: 963.72 | M81: 933.65 | N81: 908.75 | O81: 9051000 | P81: -4.68%
A82: 72 | B82: Realty | C82: GODREJPROP | D82: 2023-05-25 | E82: 1335.20 | F82: 1331.28 | G82: 1319.07 | H82: 1302.93 | I82: 1290.72 | J82: 1347.42 | K82: 1359.63 | L82: 1375.77 | M82: 1343.5 | N82: 1315.15 | O82: 4845900 | P82: 1.10%
A83: 73 | B83: Pharma | C83: GRANULES | D83: 2023-05-25 | E83: 303.00 | F83: 302.75 | G83: 300.35 | H83: 297.70 | I83: 295.30 | J83: 305.40 | K83: 307.80 | L83: 310.45 | M83: 305.15 | N83: 300.1 | O83: 6768000 | P83: 5.95%
A84: 74 | B84: Cement | C84: GRASIM | D84: 2023-05-25 | E84: 1749.55 | F84: 1743.38 | G84: 1732.82 | H84: 1716.08 | I84: 1705.52 | J84: 1760.12 | K84: 1770.68 | L84: 1787.42 | M84: 1753.95 | N84: 1726.65 | O84: 12272575 | P84: 0.36%
A85: 75 | B85: Oil_Gas | C85: GUJGASLTD | D85: 2023-05-25 | E85: 472.90 | F85: 471.60 | G85: 468.05 | H85: 463.20 | I85: 459.65 | J85: 476.45 | K85: 480.00 | L85: 484.85 | M85: 475.15 | N85: 466.75 | O85: 6133750 | P85: -3.16%
A86: 76 | B86: Others | C86: HAL | D86: 2023-05-25 | E86: 2950.50 | F86: 2950.63 | G86: 2931.47 | H86: 2912.43 | I86: 2893.27 | J86: 2969.67 | K86: 2988.83 | L86: 3007.87 | M86: 2969.8 | N86: 2931.6 | O86: 2826900 | P86: 1.83%
A87: 77 | B87: Capital_Goods | C87: HAVELLS | D87: 2023-05-25 | E87: 1233.60 | F87: 1233.10 | G87: 1220.60 | H87: 1207.60 | I87: 1195.10 | J87: 1246.10 | K87: 1258.60 | L87: 1271.60 | M87: 1245.6 | N87: 1220.1 | O87: 5813000 | P87: 11.10%
A88: 78 | B88: Technology | C88: HCLTECH | D88: 2023-05-25 | E88: 1073.95 | F88: 1074.95 | G88: 1068.45 | H88: 1062.95 | I88: 1056.45 | J88: 1080.45 | K88: 1086.95 | L88: 1092.45 | M88: 1081.45 | N88: 1069.45 | O88: 10160500 | P88: 2.41%
A89: 79 | B89: Finance | C89: HDFC | D89: 2023-05-25 | E89: 2786.75 | F89: 2791.58 | G89: 2775.17 | H89: 2763.58 | I89: 2747.17 | J89: 2803.17 | K89: 2819.58 | L89: 2831.17 | M89: 2808 | N89: 2780 | O89: 14828100 | P89: 0.99%
A90: 80 | B90: Finance | C90: HDFCAMC | D90: 2023-05-25 | E90: 1818.60 | F90: 1810.20 | G90: 1789.95 | H90: 1761.30 | I90: 1741.05 | J90: 1838.85 | K90: 1859.10 | L90: 1887.75 | M90: 1830.45 | N90: 1781.55 | O90: 2445600 | P90: -0.38%
A91: 81 | B91: Banking | C91: HDFCBANK | D91: 2023-05-25 | E91: 1678.30 | F91: 1681.00 | G91: 1672.30 | H91: 1666.30 | I91: 1657.60 | J91: 1687.00 | K91: 1695.70 | L91: 1701.70 | M91: 1689.7 | N91: 1675 | O91: 69559600 | P91: 0.81%
A92: 82 | B92: Finance | C92: HDFCLIFE | D92: 2023-05-25 | E92: 545.90 | F92: 541.78 | G92: 536.27 | H92: 526.63 | I92: 521.12 | J92: 551.42 | K92: 556.93 | L92: 566.57 | M92: 547.3 | N92: 532.15 | O92: 16354800 | P92: -4.46%
A93: 83 | B93: Automobile | C93: HEROMOTOCO | D93: 2023-05-25 | E93: 2511.60 | F93: 2515.52 | G93: 2471.08 | H93: 2430.57 | I93: 2386.13 | J93: 2556.03 | K93: 2600.47 | L93: 2640.98 | M93: 2559.95 | N93: 2475 | O93: 3752400 | P93: 13.84%
A94: 84 | B94: Metals | C94: HINDALCO | D94: 2023-05-25 | E94: 448.65 | F94: 446.65 | G94: 441.00 | H94: 433.35 | I94: 427.70 | J94: 454.30 | K94: 459.95 | L94: 467.60 | M94: 452.3 | N94: 439 | O94: 21649600 | P94: -0.15%
A95: 85 | B95: Metals | C95: HINDCOPPER | D95: 2023-05-25 | E95: 104.95 | F95: 104.35 | G95: 103.00 | H95: 101.05 | I95: 99.70 | J95: 106.30 | K95: 107.65 | L95: 109.60 | M95: 105.7 | N95: 102.4 | O95: 19433100 | P95: 5.75%
A96: 86 | B96: Oil_Gas | C96: HINDPETRO | D96: 2023-05-25 | E96: 254.50 | F96: 255.27 | G96: 250.98 | H96: 247.47 | I96: 243.18 | J96: 258.78 | K96: 263.07 | L96: 266.58 | M96: 259.55 | N96: 251.75 | O96: 16254000 | P96: 0.10%
A97: 87 | B97: FMCG | C97: HINDUNILVR | D97: 2023-05-25 | E97: 2467.85 | F97: 2475.62 | G97: 2458.23 | H97: 2448.62 | I97: 2431.23 | J97: 2485.23 | K97: 2502.62 | L97: 2512.23 | M97: 2493 | N97: 2466 | O97: 10432500 | P97: 1.71%
A98: 88 | B98: Finance | C98: HONAUT
A99: 89 | B99: Banking | C99: IBULHSGFIN | D99: 2023-05-25 | E99: 113.80 | F99: 112.68 | G99: 109.97 | H99: 106.13 | I99: 103.42 | J99: 116.52 | K99: 119.23 | L99: 123.07 | M99: 115.4 | N99: 108.85 | O99: 50135300 | P99: 5.55%
A100: 90 | B100: Finance | C100: ICICIBANK | D100: 2023-05-25 | E100: 928.20 | F100: 927.92 | G100: 924.83 | H100: 921.47 | I100: 918.38 | J100: 931.28 | K100: 934.37 | L100: 937.73 | M100: 931 | N100: 924.55 | O100: 73689000 | P100: 4.79%
A101: 91 | B101: Finance | C101: ICICIGI | D101: 2023-05-25 | E101: 1093.25 | F101: 1091.62 | G101: 1084.88 | H101: 1076.52 | I101: 1069.78 | J101: 1099.98 | K101: 1106.72 | L101: 1115.08 | M101: 1098.35 | N101: 1083.25 | O101: 5251725 | P101: 0.67%
A102: 92 | B102: Telecom | C102: ICICIPRULI | D102: 2023-05-25 | E102: 441.65 | F102: 439.48 | G102: 436.47 | H102: 431.28 | I102: 428.27 | J102: 444.67 | K102: 447.68 | L102: 452.87 | M102: 442.5 | N102: 434.3 | O102: 12925500 | P102: -0.55%
A103: 93 | B103: Finance | C103: IDEA | D103: 2023-05-25 | E103: 6.95 | F103: 6.92 | G103: 6.83 | H103: 6.72 | I103: 6.63 | J103: 7.03 | K103: 7.12 | L103: 7.23 | M103: 7 | N103: 6.8 | O103: 520420000 | P103: 0.27%
A104: 94 | B104: Banking | C104: IDFC | D104: 2023-05-25 | E104: 91.30 | F104: 91.02 | G104: 89.13 | H104: 86.97 | I104: 85.08 | J104: 93.18 | K104: 95.07 | L104: 97.23 | M104: 92.9 | N104: 88.85 | O104: 166330000 | P104: 2.33%
A105: 95 | B105: Others | C105: IDFCFIRSTB | D105: 2023-05-25 | E105: 64.30 | F105: 64.23 | G105: 63.17 | H105: 62.03 | I105: 60.97 | J105: 65.37 | K105: 66.43 | L105: 67.57 | M105: 65.3 | N105: 63.1 | O105: 219690000 | P105: 5.12%
A106: 96 | B106: Oil_Gas | C106: IEX | D106: 2023-05-25 | E106: 155.75 | F106: 156.33 | G106: 154.42 | H106: 153.08 | I106: 151.17 | J106: 157.67 | K106: 159.58 | L106: 160.92 | M106: 158.25 | N106: 155 | O106: 41928750 | P106: 4.64%
A107: 97 | B107: Infrastructure | C107: IGL | D107: 2023-05-25 | E107: 495.15 | F107: 496.02 | G107: 493.13 | H107: 491.12 | I107: 488.23 | J107: 498.03 | K107: 500.92 | L107: 502.93 | M107: 498.9 | N107: 494 | O107: 5863000 | P107: 4.20%
A108: 98 | B108: Cement | C108: INDHOTEL | D108: 2023-05-25 | E108: 349.00 | F108: 347.62 | G108: 343.23 | H108: 337.47 | I108: 333.08 | J108: 353.38 | K108: 357.77 | L108: 363.53 | M108: 352 | N108: 341.85 | O108: 25198000 | P108: -6.10%
A109: 99 | B109: Others | C109: INDIACEM | D109: 2023-05-25 | E109: 187.75 | F109: 187.48 | G109: 185.37 | H109: 182.98 | I109: 180.87 | J109: 189.87 | K109: 191.98 | L109: 194.37 | M109: 189.6 | N109: 185.1 | O109: 17597200 | P109: 2.29%
A110: 100 | B110: Others | C110: INDIAMART | D110: 2023-05-25 | E110: 5631.95 | F110: 5537.18 | G110: 5428.72 | H110: 5225.48 | I110: 5117.02 | J110: 5740.42 | K110: 5848.88 | L110: 6052.12 | M110: 5645.65 | N110: 5333.95 | O110: 299700 | P110: 3.15%
A111: 101 | B111: Banking | C111: INDIGO | D111: 2023-05-25 | E111: 2082.75 | F111: 2072.05 | G111: 2042.45 | H111: 2002.15 | I111: 1972.55 | J111: 2112.35 | K111: 2141.95 | L111: 2182.25 | M111: 2101.65 | N111: 2031.75 | O111: 3324300 | P111: 8.19%
A112: 102 | B112: Telecom | C112: INDUSINDBK | D112: 2023-05-25 | E112: 1157.90 | F112: 1159.77 | G112: 1154.03 | H112: 1150.17 | I112: 1144.43 | J112: 1163.63 | K112: 1169.37 | L112: 1173.23 | M112: 1165.5 | N112: 1155.9 | O112: 21896650 | P112: -0.92%
A113: 103 | B113: Technology | C113: INDUSTOWER | D113: 2023-05-25 | E113: 156.30 | F113: 157.27 | G113: 154.73 | H113: 153.17 | I113: 150.63 | J113: 158.83 | K113: 161.37 | L113: 162.93 | M113: 159.8 | N113: 155.7 | O113: 26057400 | P113: -2.95%
A114: 104 | B114: Technology | C114: INFY | D114: 2023-05-25 | E114: 1282.15 | F114: 1276.75 | G114: 1266.95 | H114: 1251.75 | I114: 1241.95 | J114: 1291.95 | K114: 1301.75 | L114: 1316.95 | M114: 1286.55 | N114: 1261.55 | O114: 45699200 | P114: -3.16%
A115: 105 | B115: Oil_Gas | C115: INTELLECT | D115: 2023-05-25 | E115: 451.75 | F115: 451.90 | G115: 445.35 | H115: 438.95 | I115: 432.40 | J115: 458.30 | K115: 464.85 | L115: 471.25 | M115: 458.45 | N115: 445.5 | O115: 4408300 | P115: 2.94%
A116: 106 | B116: Pharma | C116: IOC | D116: 2023-05-25 | E116: 82.60 | F116: 82.43 | G116: 81.92 | H116: 81.23 | I116: 80.72 | J116: 83.12 | K116: 83.63 | L116: 84.32 | M116: 82.95 | N116: 81.75 | O116: 76508250 | P116: -0.58%
A117: 107 | B117: Others | C117: IPCALAB | D117: 2023-05-25 | E117: 712.85 | F117: 714.93 | G117: 708.87 | H117: 704.88 | I117: 698.82 | J117: 718.92 | K117: 724.98 | L117: 728.97 | M117: 721 | N117: 710.95 | O117: 3722550 | P117: -2.24%
A118: 108 | B118: FMCG | C118: IRCTC | D118: 2023-05-25 | E118: 630.35 | F118: 628.85 | G118: 623.30 | H118: 616.25 | I118: 610.70 | J118: 635.90 | K118: 641.45 | L118: 648.50 | M118: 634.4 | N118: 621.8 | O118: 13361250 | P118: 2.74%
A119: 109 | B119: Metals | C119: ITC | D119: 2023-05-25 | E119: 422.85 | F119: 423.28 | G119: 420.62 | H119: 418.38 | I119: 415.72 | J119: 425.52 | K119: 428.18 | L119: 430.42 | M119: 425.95 | N119: 421.05 | O119: 69076800 | P119: 0.95%
A120: 110 | B120: Cement | C120: JINDALSTEL | D120: 2023-05-25 | E120: 596.45 | F120: 594.17 | G120: 586.73 | H120: 577.02 | I120: 569.58 | J120: 603.88 | K120: 611.32 | L120: 621.03 | M120: 601.6 | N120: 584.45 | O120: 17813750 | P120: 1.26%
A121: 111 | B121: Metals | C121: JKCEMENT | D121: 2023-05-25 | E121: 3000.25 | F121: 3003.90 | G121: 2971.80 | H121: 2943.35 | I121: 2911.25 | J121: 3032.35 | K121: 3064.45 | L121: 3092.90 | M121: 3036 | N121: 2975.45 | O121: 423000 | P121: -1.51%
A122: 112 | B122: Others | C122: JSWSTEEL | D122: 2023-05-25 | E122: 741.95 | F122: 741.68 | G122: 732.37 | H122: 722.78 | I122: 713.47 | J122: 751.27 | K122: 760.58 | L122: 770.17 | M122: 751 | N122: 732.1 | O122: 21505500 | P122: 0.68%
A123: 113 | B123: Banking | C123: JUBLFOOD | D123: 2023-05-25 | E123: 462.40 | F123: 458.45 | G123: 453.10 | H123: 443.80 | I123: 438.45 | J123: 467.75 | K123: 473.10 | L123: 482.40 | M123: 463.8 | N123: 449.15 | O123: 16628750 | P123: -1.74%
A124: 114 | B124: Finance | C124: KOTAKBANK | D124: 2023-05-25 | E124: 1928.70 | F124: 1927.80 | G124: 1907.40 | H124: 1886.10 | I124: 1865.70 | J124: 1949.10 | K124: 1969.50 | L124: 1990.80 | M124: 1948.2 | N124: 1906.5 | O124: 29462800 | P124: -1.45%
A125: 115 | B125: Others | C125: L&TFH | D125: 2023-05-25 | E125: 93.15 | F125: 93.18 | G125: 91.07 | H125: 88.98 | I125: 86.87 | J125: 95.27 | K125: 97.38 | L125: 99.47 | M125: 95.3 | N125: 91.1 | O125: 73185724 | P125: -0.28%
A126: 116 | B126: Pharma | C126: LALPATHLAB | D126: 2023-05-25 | E126: 1929.55 | F126: 1934.53 | G126: 1920.12 | H126: 1910.68 | I126: 1896.27 | J126: 1943.97 | K126: 1958.38 | L126: 1967.82 | M126: 1948.95 | N126: 1925.1 | O126: 658050 | P126: 5.22%
A127: 117 | B127: Finance | C127: LAURUSLABS | D127: 2023-05-25 | E127: 311.80 | F127: 312.55 | G127: 306.20 | H127: 300.60 | I127: 294.25 | J127: 318.15 | K127: 324.50 | L127: 330.10 | M127: 318.9 | N127: 306.95 | O127: 15072000 | P127: 0.76%
A128: 118 | B128: Capital_Goods | C128: LICHSGFIN | D128: 2023-05-25 | E128: 357.40 | F128: 354.27 | G128: 349.53 | H128: 341.67 | I128: 336.93 | J128: 362.13 | K128: 366.87 | L128: 374.73 | M128: 359 | N128: 346.4 | O128: 15946000 | P128: 3.94%
A129: 119 | B129: Technology | C129: LT | D129: 2023-05-25 | E129: 2394.65 | F129: 2400.20 | G129: 2376.65 | H129: 2358.65 | I129: 2335.10 | J129: 2418.20 | K129: 2441.75 | L129: 2459.75 | M129: 2423.75 | N129: 2382.2 | O129: 9226800 | P129: 1.78%
A130: 120 | B130: Technology | C130: LTIM | D130: 2023-05-25 | E130: 4576.90 | F130: 4554.48 | G130: 4463.97 | H130: 4351.03 | I130: 4260.52 | J130: 4667.42 | K130: 4757.93 | L130: 4870.87 | M130: 4645 | N130: 4441.55 | O130: 1529100 | P130: -3.90%
A131: 121 | B131: Pharma | C131: LTTS | D131: 2023-05-25 | E131: 3788.85 | F131: 3778.90 | G131: 3742.25 | H131: 3695.65 | I131: 3659.00 | J131: 3825.50 | K131: 3862.15 | L131: 3908.75 | M131: 3815.55 | N131: 3732.3 | O131: 1311400 | P131: -0.98%
A132: 122 | B132: Automobile | C132: LUPIN | D132: 2023-05-25 | E132: 712.85 | F132: 714.03 | G132: 707.72 | H132: 702.58 | I132: 696.27 | J132: 719.17 | K132: 725.48 | L132: 730.62 | M132: 720.35 | N132: 708.9 | O132: 6580700 | P132: 1.48%
A133: 123 | B133: Finance | C133: M&M | D133: 2023-05-25 | E133: 1244.45 | F133: 1239.43 | G133: 1230.07 | H133: 1215.68 | I133: 1206.32 | J133: 1253.82 | K133: 1263.18 | L133: 1277.57 | M133: 1248.8 | N133: 1225.05 | O133: 12963300 | P133: 3.86%
A134: 124 | B134: Finance | C134: M&MFIN | D134: 2023-05-25 | E134: 268.05 | F134: 269.47 | G134: 260.08 | H134: 252.12 | I134: 242.73 | J134: 277.43 | K134: 286.82 | L134: 294.78 | M134: 278.85 | N134: 261.5 | O134: 24372000 | P134: 3.78%
A135: 125 | B135: FMCG | C135: MANAPPURAM | D135: 2023-05-25 | E135: 130.35 | F135: 130.18 | G135: 129.37 | H135: 128.38 | I135: 127.57 | J135: 131.17 | K135: 131.98 | L135: 132.97 | M135: 131 | N135: 129.2 | O135: 40494000 | P135: 1.34%
A136: 126 | B136: Automobile | C136: MARICO | D136: 2023-05-25 | E136: 501.85 | F136: 502.72 | G136: 499.43 | H136: 497.02 | I136: 493.73 | J136: 505.13 | K136: 508.42 | L136: 510.83 | M136: 506 | N136: 500.3 | O136: 9856800 | P136: -0.56%
A137: 127 | B137: FMCG | C137: MARUTI | D137: 2023-05-25 | E137: 8831.30 | F137: 8788.05 | G137: 8696.65 | H137: 8562.00 | I137: 8470.60 | J137: 8922.70 | K137: 9014.10 | L137: 9148.75 | M137: 8879.45 | N137: 8653.4 | O137: 2308000 | P137: 1.68%
A138: 128 | B138: Others | C138: MCDOWELL-N | D138: 2023-05-25 | E138: 782.90 | F138: 783.02 | G138: 777.13 | H138: 771.37 | I138: 765.48 | J138: 788.78 | K138: 794.67 | L138: 800.43 | M138: 788.9 | N138: 777.25 | O138: 12421400 | P138: 0.64%
A139: 129 | B139: Pharma | C139: MCX | D139: 2023-05-25 | E139: 1404.95 | F139: 1406.73 | G139: 1395.22 | H139: 1385.48 | I139: 1373.97 | J139: 1416.47 | K139: 1427.98 | L139: 1437.72 | M139: 1418.25 | N139: 1397 | O139: 1197600 | P139: 0.77%
A140: 130 | B140: Finance | C140: METROPOLIS | D140: 2023-05-25 | E140: 1272.45 | F140: 1271.60 | G140: 1256.20 | H140: 1239.95 | I140: 1224.55 | J140: 1287.85 | K140: 1303.25 | L140: 1319.50 | M140: 1287 | N140: 1255.35 | O140: 1319200 | P140: 3.87%
A141: 131 | B141: Oil_Gas | C141: MFSL | D141: 2023-05-25 | E141: 651.00 | F141: 646.08 | G141: 639.37 | H141: 627.73 | I141: 621.02 | J141: 657.72 | K141: 664.43 | L141: 676.07 | M141: 652.8 | N141: 634.45 | O141: 3972800 | P141: -4.83%
A142: 132 | B142: Automobile | C142: MGL | D142: 2023-05-25 | E142: 1009.45 | F142: 1012.78 | G142: 1003.92 | H142: 998.38 | I142: 989.52 | J142: 1018.32 | K142: 1027.18 | L142: 1032.72 | M142: 1021.65 | N142: 1007.25 | O142: 1796800 | P142: -0.27%
A143: 133 | B143: Technology | C143: MOTHERSON | D143: 2023-05-25 | E143: 75.55 | F143: 75.15 | G143: 74.25 | H143: 72.95 | I143: 72.05 | J143: 76.45 | K143: 77.35 | L143: 78.65 | M143: 76.05 | N143: 73.85 | O143: 58218750 | P143: -2.73%
A144: 134 | B144: Automobile | C144: MPHASIS | D144: 2023-05-25 | E144: 1865.80 | F144: 1860.85 | G144: 1833.95 | H144: 1802.10 | I144: 1775.20 | J144: 1892.70 | K144: 1919.60 | L144: 1951.45 | M144: 1887.75 | N144: 1829 | O144: 2471700 | P144: -3.39%
A145: 135 | B145: Finance | C145: MRF | D145: 2023-05-25 | E145: 89008.80 | F145: 89069.68 | G145: 88139.32 | H145: 87269.83 | I145: 86339.47 | J145: 89939.17 | K145: 90869.53 | L145: 91739.02 | M145: 90000.05 | N145: 88200.2 | O145: 41450 | P145: 0.10%
A146: 136 | B146: Metals | C146: MUTHOOTFIN | D146: 2023-05-25 | E146: 1030.65 | F146: 1027.02 | G146: 1019.88 | H146: 1009.12 | I146: 1001.98 | J146: 1037.78 | K146: 1044.92 | L146: 1055.68 | M146: 1034.15 | N146: 1016.25 | O146: 7363950 | P146: 3.36%
A147: 137 | B147: Others | C147: NATIONALUM | D147: 2023-05-25 | E147: 83.65 | F147: 83.98 | G147: 83.22 | H147: 82.78 | I147: 82.02 | J147: 84.42 | K147: 85.18 | L147: 85.62 | M147: 84.75 | N147: 83.55 | O147: 49605000 | P147: 1.49%
A148: 138 | B148: Chemical | C148: NAUKRI | D148: 2023-05-25 | E148: 3813.30 | F148: 3799.38 | G148: 3771.82 | H148: 3730.33 | I148: 3702.77 | J148: 3840.87 | K148: 3868.43 | L148: 3909.92 | M148: 3826.95 | N148: 3757.9 | O148: 1386250 | P148: 2.98%
A149: 139 | B149: FMCG | C149: NAVINFLUOR | D149: 2023-05-25 | E149: 4802.05 | F149: 4820.03 | G149: 4776.07 | H149: 4750.08 | I149: 4706.12 | J149: 4846.02 | K149: 4889.98 | L149: 4915.97 | M149: 4864 | N149: 4794.05 | O149: 499200 | P149: -1.65%
A150: 140 | B150: Metals | C150: NESTLEIND | D150: 2023-05-25 | E150: 21844.65 | F150: 21938.73 | G150: 21717.97 | H150: 21591.28 | I150: 21370.52 | J150: 22065.42 | K150: 22286.18 | L150: 22412.87 | M150: 22159.5 | N150: 21812.05 | O150: 394840 | P150: 3.55%
A151: 141 | B151: Power | C151: NMDC | D151: 2023-05-25 | E151: 110.60 | F151: 110.23 | G151: 109.37 | H151: 108.13 | I151: 107.27 | J151: 111.47 | K151: 112.33 | L151: 113.57 | M151: 111.1 | N151: 109 | O151: 45382500 | P151: 0.39%
A152: 142 | B152: Realty | C152: NTPC | D152: 2023-05-25 | E152: 176.80 | F152: 175.85 | G152: 174.55 | H152: 172.30 | I152: 171.00 | J152: 178.10 | K152: 179.40 | L152: 181.65 | M152: 177.15 | N152: 173.6 | O152: 75095400 | P152: 5.15%
A153: 143 | B153: Technology | C153: OBEROIRLTY | D153: 2023-05-25 | E153: 921.85 | F153: 926.10 | G153: 915.75 | H153: 909.65 | I153: 899.30 | J153: 932.20 | K153: 942.55 | L153: 948.65 | M153: 936.45 | N153: 920 | O153: 6720000 | P153: 0.63%
A154: 144 | B154: Oil_Gas | C154: OFSS | D154: 2023-05-25 | E154: 3649.15 | F154: 3636.07 | G154: 3619.08 | H154: 3589.02 | I154: 3572.03 | J154: 3666.13 | K154: 3683.12 | L154: 3713.18 | M154: 3653.05 | N154: 3606 | O154: 258400 | P154: 13.04%
A155: 145 | B155: Textile | C155: ONGC | D155: 2023-05-25 | E155: 165.40 | F155: 163.88 | G155: 161.87 | H155: 158.33 | I155: 156.32 | J155: 167.42 | K155: 169.43 | L155: 172.97 | M155: 165.9 | N155: 160.35 | O155: 56298550 | P155: 10.82%
A156: 146 | B156: Pharma | C156: PAGEIND | D156: 2023-05-25 | E156: 40308.20 | F156: 40176.53 | G156: 39561.72 | H156: 38815.23 | I156: 38200.42 | J156: 40923.02 | K156: 41537.83 | L156: 42284.32 | M156: 40791.35 | N156: 39430.05 | O156: 123885 | P156: -10.19%
A157: 147 | B157: Technology | C157: PEL | D157: 2023-05-25 | E157: 747.15 | F157: 746.17 | G157: 738.98 | H157: 730.82 | I157: 723.63 | J157: 754.33 | K157: 761.52 | L157: 769.68 | M157: 753.35 | N157: 738 | O157: 8752400 | P157: 2.01%
A158: 148 | B158: Oil_Gas | C158: PERSISTENT | D158: 2023-05-25 | E158: 4730.85 | F158: 4739.07 | G158: 4695.43 | H158: 4660.02 | I158: 4616.38 | J158: 4774.48 | K158: 4818.12 | L158: 4853.53 | M158: 4782.7 | N158: 4703.65 | O158: 1115975 | P158: -1.60%
A159: 149 | B159: Finance | C159: PETRONET | D159: 2023-05-25 | E159: 238.65 | F159: 239.07 | G159: 237.58 | H159: 236.52 | I159: 235.03 | J159: 240.13 | K159: 241.62 | L159: 242.68 | M159: 240.55 | N159: 238 | O159: 13947000 | P159: 3.47%
A160: 150 | B160: FMCG | C160: PFC | D160: 2023-05-25 | E160: 174.80 | F160: 173.90 | G160: 171.30 | H160: 167.80 | I160: 165.20 | J160: 177.40 | K160: 180.00 | L160: 183.50 | M160: 176.5 | N160: 170.4 | O160: 62961000 | P160: 10.21%
A161: 151 | B161: Chemical | C161: PIDILITIND | D161: 2023-05-25 | E161: 2431.90 | F161: 2428.17 | G161: 2417.23 | H161: 2402.57 | I161: 2391.63 | J161: 2442.83 | K161: 2453.77 | L161: 2468.43 | M161: 2439.1 | N161: 2413.5 | O161: 2806250 | P161: -0.27%
A162: 152 | B162: Banking | C162: PIIND | D162: 2023-05-25 | E162: 3416.60 | F162: 3414.53 | G162: 3381.07 | H162: 3345.53 | I162: 3312.07 | J162: 3450.07 | K162: 3483.53 | L162: 3519.07 | M162: 3448 | N162: 3379 | O162: 2276250 | P162: -0.54%
A163: 153 | B163: Others | C163: PNB | D163: 2023-05-25 | E163: 53.05 | F163: 52.98 | G163: 52.72 | H163: 52.38 | I163: 52.12 | J163: 53.32 | K163: 53.58 | L163: 53.92 | M163: 53.25 | N163: 52.65 | O163: 239920000 | P163: 0.59%
A164: 154 | B164: Power | C164: POLYCAB | D164: 2023-05-25 | E164: 3257.65 | F164: 3244.12 | G164: 3222.28 | H164: 3186.92 | I164: 3165.08 | J164: 3279.48 | K164: 3301.32 | L164: 3336.68 | M164: 3265.95 | N164: 3208.75 | O164: 1215000 | P164: 1.40%
A165: 155 | B165: Media | C165: POWERGRID | D165: 2023-05-25 | E165: 241.30 | F165: 240.90 | G165: 239.50 | H165: 237.70 | I165: 236.30 | J165: 242.70 | K165: 244.10 | L165: 245.90 | M165: 242.3 | N165: 239.1 | O165: 27934200 | P165: 1.81%
A166: 156 | B166: Others | C166: PVR | D166: 2023-05-25 | E166: 1490.30 | F166: 1481.47 | G166: 1468.08 | H166: 1445.87 | I166: 1432.48 | J166: 1503.68 | K166: 1517.07 | L166: 1539.28 | M166: 1494.85 | N166: 1459.25 | O166: 3071629 | P166: 6.54%
A167: 157 | B167: Cement | C167: RAIN | D167: 2023-05-25 | E167: 164.60 | F167: 164.47 | G167: 163.23 | H167: 161.87 | I167: 160.63 | J167: 165.83 | K167: 167.07 | L167: 168.43 | M167: 165.7 | N167: 163.1 | O167: 11424000 | P167: -0.34%
A168: 158 | B168: Banking | C168: RAMCOCEM | D168: 2023-05-25 | E168: 744.50 | F168: 742.02 | G168: 736.58 | H168: 728.67 | I168: 723.23 | J168: 749.93 | K168: 755.37 | L168: 763.28 | M168: 747.45 | N168: 734.1 | O168: 3697500 | P168: -0.68%
A169: 159 | B169: Power | C169: RBLBANK | D169: 2023-05-25 | E169: 155.50 | F169: 156.70 | G169: 153.90 | H169: 152.30 | I169: 149.50 | J169: 158.30 | K169: 161.10 | L169: 162.70 | M169: 159.5 | N169: 155.1 | O169: 39335000 | P169: 7.09%
A170: 160 | B170: Oil_Gas | C170: RECLTD | D170: 2023-05-25 | E170: 137.40 | F170: 136.67 | G170: 134.08 | H170: 130.77 | I170: 128.18 | J170: 139.98 | K170: 142.57 | L170: 145.88 | M170: 139.25 | N170: 133.35 | O170: 59696000 | P170: 2.85%
A171: 161 | B171: Metals | C171: RELIANCE | D171: 2023-05-25 | E171: 2450.05 | F171: 2446.40 | G171: 2438.25 | H171: 2426.45 | I171: 2418.30 | J171: 2458.20 | K171: 2466.35 | L171: 2478.15 | M171: 2454.55 | N171: 2434.6 | O171: 32870500 | P171: -3.60%
A172: 162 | B172: Banking | C172: SAIL | D172: 2023-05-25 | E172: 85.15 | F172: 84.78 | G172: 83.77 | H172: 82.38 | I172: 81.37 | J172: 86.17 | K172: 87.18 | L172: 88.57 | M172: 85.8 | N172: 83.4 | O172: 104320000 | P172: 2.15%
A173: 163 | B173: Finance | C173: SBICARD | D173: 2023-05-25 | E173: 781.90 | F173: 775.15 | G173: 761.30 | H173: 740.70 | I173: 726.85 | J173: 795.75 | K173: 809.60 | L173: 830.20 | M173: 789 | N173: 754.55 | O173: 8344000 | P173: -11.97%
A174: 164 | B174: Banking | C174: SBILIFE | D174: 2023-05-25 | E174: 1157.05 | F174: 1156.75 | G174: 1150.30 | H174: 1143.55 | I174: 1137.10 | J174: 1163.50 | K174: 1169.95 | L174: 1176.70 | M174: 1163.2 | N174: 1150 | O174: 7480500 | P174: 1.12%
A175: 165 | B175: Cement | C175: SBIN | D175: 2023-05-25 | E175: 575.65 | F175: 576.43 | G175: 573.87 | H175: 572.08 | I175: 569.52 | J175: 578.22 | K175: 580.78 | L175: 582.57 | M175: 579 | N175: 574.65 | O175: 56620500 | P175: 0.82%
A176: 166 | B176: Capital_Goods | C176: SHREECEM | D176: 2023-05-25 | E176: 24268.20 | F176: 24264.57 | G176: 24058.63 | H176: 23849.07 | I176: 23643.13 | J176: 24474.13 | K176: 24680.07 | L176: 24889.63 | M176: 24470.5 | N176: 24055 | O176: 328425 | P176: 1.19%
A177: 167 | B177: Textile | C177: SIEMENS | D177: 2023-05-25 | E177: 3514.30 | F177: 3495.27 | G177: 3448.53 | H177: 3382.77 | I177: 3336.03 | J177: 3561.03 | K177: 3607.77 | L177: 3673.53 | M177: 3542 | N177: 3429.5 | O177: 1778700 | P177: -1.81%
A178: 168 | B178: Finance | C178: SRF | D178: 2023-05-25 | E178: 2564.35 | F178: 2562.93 | G178: 2546.62 | H178: 2528.88 | I178: 2512.57 | J178: 2580.67 | K178: 2596.98 | L178: 2614.72 | M178: 2579.25 | N178: 2545.2 | O178: 2600250 | P178: -0.06%
A179: 169 | B179: Pharma | C179: SHRIRAMFIN | D179: 2023-05-25 | E179: 1331.85 | F179: 1333.93 | G179: 1324.42 | H179: 1316.98 | I179: 1307.47 | J179: 1341.37 | K179: 1350.88 | L179: 1358.32 | M179: 1343.45 | N179: 1326.5 | O179: 4738800 | P179: -3.16%
A180: 170 | B180: Media | C180: SUNPHARMA | D180: 2023-05-25 | E180: 978.35 | F180: 982.85 | G180: 971.90 | H180: 965.45 | I180: 954.50 | J180: 989.30 | K180: 1000.25 | L180: 1006.70 | M180: 993.8 | N180: 976.4 | O180: 20900600 | P180: 3.70%
A181: 171 | B181: Pharma | C181: SUNTV | D181: 2023-05-25 | E181: 437.75 | F181: 437.90 | G181: 434.65 | H181: 431.55 | I181: 428.30 | J181: 441.00 | K181: 444.25 | L181: 447.35 | M181: 441.15 | N181: 434.8 | O181: 7647000 | P181: -0.18%
A182: 172 | B182: Chemical | C182: SYNGENE | D182: 2023-05-25 | E182: 697.80 | F182: 692.98 | G182: 683.92 | H182: 670.03 | I182: 660.97 | J182: 706.87 | K182: 715.93 | L182: 729.82 | M182: 702.05 | N182: 679.1 | O182: 2808000 | P182: 3.43%
A183: 173 | B183: Telecom | C183: TATACHEM | D183: 2023-05-25 | E183: 978.45 | F183: 978.02 | G183: 961.43 | H183: 944.42 | I183: 927.83 | J183: 995.03 | K183: 1011.62 | L183: 1028.63 | M183: 994.6 | N183: 961 | O183: 4713750 | P183: -1.62%
A184: 174 | B184: FMCG | C184: TATACOMM | D184: 2023-05-25 | E184: 1262.55 | F184: 1266.55 | G184: 1255.25 | H184: 1247.95 | I184: 1236.65 | J184: 1273.85 | K184: 1285.15 | L184: 1292.45 | M184: 1277.85 | N184: 1259.25 | O184: 2071500 | P184: 1.47%
A185: 175 | B185: Automobile | C185: TATACONSUM | D185: 2023-05-25 | E185: 775.70 | F185: 771.75 | G185: 763.15 | H185: 750.60 | I185: 742.00 | J185: 784.30 | K185: 792.90 | L185: 805.45 | M185: 780.35 | N185: 759.2 | O185: 10080000 | P185: 1.70%
A186: 176 | B186: Power | C186: TATAMOTORS | D186: 2023-05-25 | E186: 482.95 | F186: 482.25 | G186: 477.15 | H186: 471.35 | I186: 466.25 | J186: 488.05 | K186: 493.15 | L186: 498.95 | M186: 487.35 | N186: 476.45 | O186: 56764875 | P186: 2.08%
A187: 177 | B187: Metals | C187: TATAPOWER | D187: 2023-05-25 | E187: 202.85 | F187: 202.73 | G187: 201.67 | H187: 200.48 | I187: 199.42 | J187: 203.92 | K187: 204.98 | L187: 206.17 | M187: 203.8 | N187: 201.55 | O187: 94554000 | P187: 0.77%
A188: 178 | B188: Technology | C188: TATASTEEL | D188: 2023-05-25 | E188: 111.05 | F188: 110.53 | G188: 109.47 | H188: 107.88 | I188: 106.82 | J188: 112.12 | K188: 113.18 | L188: 114.77 | M188: 111.6 | N188: 108.95 | O188: 199446500 | P188: 5.31%
A189: 179 | B189: Technology | C189: TCS | D189: 2023-05-25 | E189: 3237.95 | F189: 3239.52 | G189: 3225.38 | H189: 3212.82 | I189: 3198.68 | J189: 3252.08 | K189: 3266.22 | L189: 3278.78 | M189: 3253.65 | N189: 3226.95 | O189: 10382750 | P189: 1.88%
A190: 180 | B190: FMCG | C190: TECHM | D190: 2023-05-25 | E190: 1058.10 | F190: 1053.28 | G190: 1033.97 | H190: 1009.83 | I190: 990.52 | J190: 1077.42 | K190: 1096.73 | L190: 1120.87 | M190: 1072.6 | N190: 1029.15 | O190: 9768000 | P190: -3.20%
A191: 181 | B191: Pharma | C191: TITAN | D191: 2023-05-25 | E191: 2681.50 | F191: 2672.25 | G191: 2651.90 | H191: 2622.30 | I191: 2601.95 | J191: 2701.85 | K191: 2722.20 | L191: 2751.80 | M191: 2692.6 | N191: 2642.65 | O191: 4974375 | P191: 3.25%
A192: 182 | B192: Others | C192: TORNTPHARM | D192: 2023-05-25 | E192: 1663.40 | F192: 1663.08 | G192: 1657.32 | H192: 1651.23 | I192: 1645.47 | J192: 1669.17 | K192: 1674.93 | L192: 1681.02 | M192: 1668.85 | N192: 1657 | O192: 1545500 | P192: -2.68%
A193: 183 | B193: Automobile | C193: TRENT | D193: 2023-05-25 | E193: 1411.30 | F193: 1411.12 | G193: 1376.23 | H193: 1341.17 | I193: 1306.28 | J193: 1446.18 | K193: 1481.07 | L193: 1516.13 | M193: 1446 | N193: 1376.05 | O193: 3575200 | P193: -2.07%
A194: 184 | B194: FMCG | C194: TVSMOTOR | D194: 2023-05-25 | E194: 1161.45 | F194: 1158.48 | G194: 1144.97 | H194: 1128.48 | I194: 1114.97 | J194: 1174.97 | K194: 1188.48 | L194: 1204.97 | M194: 1172 | N194: 1142 | O194: 7275800 | P194: 6.90%
A195: 185 | B195: Cement | C195: UBL | D195: 2023-05-25 | E195: 1443.65 | F195: 1459.75 | G195: 1419.90 | H195: 1396.15 | I195: 1356.30 | J195: 1483.50 | K195: 1523.35 | L195: 1547.10 | M195: 1499.6 | N195: 1436 | O195: 1658800 | P195: 27.52%
A196: 186 | B196: Chemical | C196: ULTRACEMCO | D196: 2023-05-25 | E196: 7505.55 | F196: 7541.03 | G196: 7452.32 | H196: 7399.08 | I196: 7310.37 | J196: 7594.27 | K196: 7682.98 | L196: 7736.22 | M196: 7629.75 | N196: 7487.8 | O196: 1828300 | P196: 7.07%
A197: 187 | B197: Metals | C197: UPL | D197: 2023-05-25 | E197: 757.45 | F197: 756.72 | G197: 748.73 | H197: 740.02 | I197: 732.03 | J197: 765.43 | K197: 773.42 | L197: 782.13 | M197: 764.7 | N197: 748 | O197: 14432600 | P197: 4.80%
A198: 188 | B198: Capital_Goods | C198: VEDL | D198: 2023-05-25 | E198: 282.90 | F198: 282.82 | G198: 281.03 | H198: 279.17 | I198: 277.38 | J198: 284.68 | K198: 286.47 | L198: 288.33 | M198: 284.6 | N198: 280.95 | O198: 32900000 | P198: -0.55%
A199: 189 | B199: Capital_Goods | C199: VOLTAS | D199: 2023-05-25 | E199: 806.80 | F199: 804.38 | G199: 797.42 | H199: 788.03 | I199: 781.07 | J199: 813.77 | K199: 820.73 | L199: 830.12 | M199: 811.35 | N199: 795 | O199: 8495400 | P199: -1.38%
A200: 190 | B200: Technology | C200: WHIRLPOOL | D200: 2023-05-25 | E200: 1322.40 | F200: 1323.10 | G200: 1314.30 | H200: 1306.20 | I200: 1297.40 | J200: 1331.20 | K200: 1340.00 | L200: 1348.10 | M200: 1331.9 | N200: 1315 | O200: 759150 | P200: -2.17%
A201: 191 | B201: Media | C201: WIPRO | D201: 2023-05-25 | E201: 390.70 | F201: 390.85 | G201: 388.20 | H201: 385.70 | I201: 383.05 | J201: 393.35 | K201: 396.00 | L201: 398.50 | M201: 393.5 | N201: 388.35 | O201: 27039000 | P201: -1.69%
A202: 192 | B202: Pharma | C202: ZEEL | D202: 2023-05-25 | E202: 197.75 | F202: 198.47 | G202: 196.28 | H202: 194.82 | I202: 192.63 | J202: 199.93 | K202: 202.12 | L202: 203.58 | M202: 200.65 | N202: 197 | O202: 85056000 | P202: 1.99%
A203: 193 | C203: ZYDUSLIFE | D203: 2023-05-25 | E203: 519.70 | F203: 514.73 | G203: 498.97 | H203: 478.23 | I203: 462.47 | J203: 535.47 | K203: 551.23 | L203: 571.97 | M203: 530.5 | N203: 494 | O203: 6730200 | P203: 0.11%
A204: 194
A221: Pivot Point: This is trigger point for intra day buy/sell based on the price range of the previous day
A222: As per the tool,the trader should take BUY position just above Pivot and keep the stop loss of pivot point and the first target would be Resistance 1(R1)
... 13 more rows

Sheet Cash Intra
M5: Back to Main Page
A6: FOR INTRA DAY TRADING | K6: =Main!B10 -> 2023-05-03
A8: Sr.no | C8: CLOSE RATE | D8: Pivot Point | E8: Supports | H8: Resistances
E9: S1 | F9: S2 | G9: S3 | H9: R1 | I9: R2 | J9: R3 | K9: HIGH | L9: LOW | M9: Total Trade Quanity in Lakhs
A10: 1 | B10: Nifty 50 | C10: 18147.65 | D10: 18143.22 | E10: 18106.18 | F10: 18064.72 | G10: 18027.68 | H10: 18184.68 | I10: 18221.72 | J10: 18263.18 | K10: 18180.25 | L10: 18101.75
A11: 2 | B11: Nifty Bank | C11: 43352.10 | D11: 43368.45 | E11: 43253.05 | F11: 43154.00 | G11: 43038.60 | H11: 43467.50 | I11: 43582.90 | J11: 43681.95 | K11: 43483.85 | L11: 43269.40
A12: 3 | B12: Nifty CPSE | C12: 3107.95 | D12: 3095.57 | E12: 3077.38 | F12: 3046.82 | G12: 3028.63 | H12: 3126.13 | I12: 3144.32 | J12: 3174.88 | K12: 3113.75 | L12: 3065.00
A13: 4 | B13: Nifty Infra | C13: 5387.20 | D13: 5386.27 | E13: 5372.43 | F13: 5357.67 | G13: 5343.83 | H13: 5401.03 | I13: 5414.87 | J13: 5429.63 | K13: 5400.10 | L13: 5371.50
A14: 5 | B14: Nifty IT | C14: 28025.00 | D14: 27978.37 | E14: 27802.63 | F14: 27580.27 | G14: 27404.53 | H14: 28200.73 | I14: 28376.47 | J14: 28598.83 | K14: 28154.10 | L14: 27756.00
A15: 6 | B15: Nifty PSE | C15: 4758.60 | D15: 4742.25 | E15: 4717.70 | F15: 4676.80 | G15: 4652.25 | H15: 4783.15 | I15: 4807.70 | J15: 4848.60 | K15: 4766.80 | L15: 4701.35
A16: 7 | B16: Nifty Midcap 50 | C16: 9062.20 | D16: 9046.62 | E16: 9012.53 | F16: 8962.87 | G16: 8928.78 | H16: 9096.28 | I16: 9130.37 | J16: 9180.03 | K16: 9080.70 | L16: 8996.95
A17: 8 | B17: ABB | C17: 3442.15 | D17: 3432.27 | E17: 3400.28 | F17: 3358.42 | G17: 3326.43 | H17: 3474.13 | I17: 3506.12 | J17: 3547.98 | K17: 3464.25 | L17: 3390.4 | M17: 3.31768
A18: 9 | B18: ACC | C18: 1764.15 | D18: 1763.90 | E18: 1750.80 | F18: 1737.45 | G18: 1724.35 | H18: 1777.25 | I18: 1790.35 | J18: 1803.70 | K18: 1777 | L18: 1750.55 | M18: 5.03277
A19: 10 | B19: AUBANK | C19: 684 | D19: 677.68 | E19: 670.37 | F19: 656.73 | G19: 649.42 | H19: 691.32 | I19: 698.63 | J19: 712.27 | K19: 685 | L19: 664.05 | M19: 20.07742
A20: 11 | B20: ABBOTINDIA | C20: 22379.85 | D20: 22422.23 | E20: 22256.47 | F20: 22133.08 | G20: 21967.32 | H20: 22545.62 | I20: 22711.38 | J20: 22834.77 | K20: 22588 | L20: 22298.85 | M20: 0.0754
A21: 12 | B21: ADANIENT | C21: 1919.85 | D21: 1931.28 | E21: 1896.57 | F21: 1873.28 | G21: 1838.57 | H21: 1954.57 | I21: 1989.28 | J21: 2012.57 | K21: 1966 | L21: 1908 | M21: 38.13963
A22: 13 | B22: ADANIGREEN | C22: 974.65 | D22: 974.78 | E22: 951.02 | F22: 927.38 | G22: 903.62 | H22: 998.42 | I22: 1022.18 | J22: 1045.82 | K22: 998.55 | L22: 951.15 | M22: 33.23308
A23: 14 | B23: ADANIPORTS | C23: 681.5 | D23: 680.00 | E23: 674.10 | F23: 666.70 | G23: 660.80 | H23: 687.40 | I23: 693.30 | J23: 700.70 | K23: 685.9 | L23: 672.6 | M23: 55.63089
A24: 15 | B24: ATGL | C24: 959.05 | D24: 963.42 | E24: 936.83 | F24: 914.62 | G24: 888.03 | H24: 985.63 | I24: 1012.22 | J24: 1034.43 | K24: 990 | L24: 941.2 | M24: 12.79904
A25: 16 | B25: ADANITRANS | C25: 1021.95 | D25: 1038.22 | E25: 998.73 | F25: 975.52 | G25: 936.03 | H25: 1061.43 | I25: 1100.92 | J25: 1124.13 | K25: 1077.7 | L25: 1015 | M25: 13.29916
A26: 17 | B26: AWL | C26: 415.45 | D26: 417.28 | E26: 411.37 | F26: 407.28 | G26: 401.37 | H26: 421.37 | I26: 427.28 | J26: 431.37 | K26: 423.2 | L26: 413.2 | M26: 24.41446
A27: 18 | B27: ABCAPITAL | C27: 167.95 | D27: 168.58 | E27: 166.77 | F27: 165.58 | G27: 163.77 | H27: 169.77 | I27: 171.58 | J27: 172.77 | K27: 170.4 | L27: 167.4 | M27: 38.31072
A28: 19 | B28: ABFRL | C28: 224.15 | D28: 223.87 | E28: 222.38 | F28: 220.62 | G28: 219.13 | H28: 225.63 | I28: 227.12 | J28: 228.88 | K28: 225.35 | L28: 222.1 | M28: 15.39787
A29: 20 | B29: ALKEM | C29: 3518.45 | D29: 3519.38 | E29: 3494.67 | F29: 3470.88 | G29: 3446.17 | H29: 3543.17 | I29: 3567.88 | J29: 3591.67 | K29: 3544.1 | L29: 3495.6 | M29: 1.1055
A30: 21 | B30: AMBUJACEM | C30: 394.4 | D30: 394.28 | E30: 389.17 | F30: 383.93 | G30: 378.82 | H30: 399.52 | I30: 404.63 | J30: 409.87 | K30: 399.4 | L30: 389.05 | M30: 74.19371
A31: 22 | B31: APOLLOHOSP | C31: 4490.8 | D31: 4513.67 | E31: 4454.03 | F31: 4417.27 | G31: 4357.63 | H31: 4550.43 | I31: 4610.07 | J31: 4646.83 | K31: 4573.3 | L31: 4476.9 | M31: 3.849
A32: 23 | B32: ASHOKLEY | C32: 143.7 | D32: 144.28 | E32: 142.62 | F32: 141.53 | G32: 139.87 | H32: 145.37 | I32: 147.03 | J32: 148.12 | K32: 145.95 | L32: 143.2 | M32: 100.87657
A33: 24 | B33: ASIANPAINT | C33: 2899.55 | D33: 2908.75 | E33: 2883.80 | F33: 2868.05 | G33: 2843.10 | H33: 2924.50 | I33: 2949.45 | J33: 2965.20 | K33: 2933.7 | L33: 2893 | M33: 6.638
A34: 25 | B34: ASTRAL | C34: 1483.5 | D34: 1476.17 | E34: 1457.33 | F34: 1431.17 | G34: 1412.33 | H34: 1502.33 | I34: 1521.17 | J34: 1547.33 | K34: 1495 | L34: 1450 | M34: 5.81047
A35: 26 | B35: AUROPHARMA | C35: 617.3 | D35: 616.82 | E35: 611.33 | F35: 605.37 | G35: 599.88 | H35: 622.78 | I35: 628.27 | J35: 634.23 | K35: 622.3 | L35: 610.85 | M35: 10.46718
A36: 27 | B36: DMART | C36: 3545.9 | D36: 3534.43 | E36: 3516.12 | F36: 3486.33 | G36: 3468.02 | H36: 3564.22 | I36: 3582.53 | J36: 3612.32 | K36: 3552.75 | L36: 3504.65 | M36: 2.37127
A37: 28 | B37: AXISBANK | C37: 870.65 | D37: 870.43 | E37: 864.47 | F37: 858.28 | G37: 852.32 | H37: 876.62 | I37: 882.58 | J37: 888.77 | K37: 876.4 | L37: 864.25 | M37: 129.47953
A38: 29 | B38: BAJAJ-AUTO | C38: 4498 | D38: 4476.18 | E38: 4445.87 | F38: 4393.73 | G38: 4363.42 | H38: 4528.32 | I38: 4558.63 | J38: 4610.77 | K38: 4506.5 | L38: 4424.05 | M38: 5.22701
A39: 30 | B39: BAJFINANCE | C39: 6249.15 | D39: 6269.53 | E39: 6204.42 | F39: 6159.68 | G39: 6094.57 | H39: 6314.27 | I39: 6379.38 | J39: 6424.12 | K39: 6334.65 | L39: 6224.8 | M39: 9.91254
A40: 31 | B40: BAJAJFINSV | C40: 1349.05 | D40: 1355.28 | E40: 1339.67 | F40: 1330.28 | G40: 1314.67 | H40: 1364.67 | I40: 1380.28 | J40: 1389.67 | K40: 1370.9 | L40: 1345.9 | M40: 13.87425
A41: 32 | B41: BAJAJHLDNG | C41: 6891.05 | D41: 6914.95 | E41: 6789.90 | F41: 6688.75 | G41: 6563.70 | H41: 7016.10 | I41: 7141.15 | J41: 7242.30 | K41: 7040 | L41: 6813.8 | M41: 0.58293
A42: 33 | B42: BALKRISIND | C42: 2113 | D42: 2099.10 | E42: 2081.05 | F42: 2049.10 | G42: 2031.05 | H42: 2131.05 | I42: 2149.10 | J42: 2181.05 | K42: 2117.15 | L42: 2067.15 | M42: 1.86729
A43: 34 | B43: BANDHANBNK | C43: 231.9 | D43: 231.08 | E43: 229.67 | F43: 227.43 | G43: 226.02 | H43: 233.32 | I43: 234.73 | J43: 236.97 | K43: 232.5 | L43: 228.85 | M43: 75.17293
A44: 35 | B44: BANKBARODA | C44: 188.1 | D44: 188.22 | E44: 187.08 | F44: 186.07 | G44: 184.93 | H44: 189.23 | I44: 190.37 | J44: 191.38 | K44: 189.35 | L44: 187.2 | M44: 129.29639
A45: 36 | B45: BANKINDIA | C45: 84.7 | D45: 85.23 | E45: 83.72 | F45: 82.73 | G45: 81.22 | H45: 86.22 | I45: 87.73 | J45: 88.72 | K45: 86.75 | L45: 84.25 | M45: 152.11839
A46: 37 | B46: BATAINDIA | C46: 1491.05 | D46: 1488.92 | E46: 1477.83 | F46: 1464.62 | G46: 1453.53 | H46: 1502.13 | I46: 1513.22 | J46: 1526.43 | K46: 1500 | L46: 1475.7 | M46: 3.37019
A47: 38 | B47: BERGEPAINT | C47: 614.9 | D47: 614.97 | E47: 610.93 | F47: 606.97 | G47: 602.93 | H47: 618.93 | I47: 622.97 | J47: 626.93 | K47: 619 | L47: 611 | M47: 6.33368
A48: 39 | B48: BEL | C48: 104.3 | D48: 104.30 | E48: 103.50 | F48: 102.70 | G48: 101.90 | H48: 105.10 | I48: 105.90 | J48: 106.70 | K48: 105.1 | L48: 103.5 | M48: 135.98952
A49: 40 | B49: BHARATFORG | C49: 799.7 | D49: 802.05 | E49: 795.65 | F49: 791.60 | G49: 785.20 | H49: 806.10 | I49: 812.50 | J49: 816.55 | K49: 808.45 | L49: 798 | M49: 13.56601
A50: 41 | B50: BHEL | C50: 81.6 | D50: 80.72 | E50: 79.03 | F50: 76.47 | G50: 74.78 | H50: 83.28 | I50: 84.97 | J50: 87.53 | K50: 82.4 | L50: 78.15 | M50: 356.06484
A51: 42 | B51: BPCL | C51: 361.1 | D51: 361.33 | E51: 357.77 | F51: 354.43 | G51: 350.87 | H51: 364.67 | I51: 368.23 | J51: 371.57 | K51: 364.9 | L51: 358 | M51: 32.1298
A52: 43 | B52: BHARTIARTL | C52: 790.2 | D52: 795.18 | E52: 783.57 | F52: 776.93 | G52: 765.32 | H52: 801.82 | I52: 813.43 | J52: 820.07 | K52: 806.8 | L52: 788.55 | M52: 63.0121
A53: 44 | B53: BIOCON | C53: 238.9 | D53: 237.12 | E53: 234.33 | F53: 229.77 | G53: 226.98 | H53: 241.68 | I53: 244.47 | J53: 249.03 | K53: 239.9 | L53: 232.55 | M53: 50.99831
A54: 45 | B54: BOSCHLTD | C54: 19798.3 | D54: 19670.23 | E54: 19490.07 | F54: 19181.83 | G54: 19001.67 | H54: 19978.47 | I54: 20158.63 | J54: 20466.87 | K54: 19850.4 | L54: 19362 | M54: 0.29017
A55: 46 | B55: BRITANNIA | C55: 4511.05 | D55: 4538.93 | E55: 4472.12 | F55: 4433.18 | G55: 4366.37 | H55: 4577.87 | I55: 4644.68 | J55: 4683.62 | K55: 4605.75 | L55: 4500 | M55: 2.61449
A56: 47 | B56: CANBK | C56: 320 | D56: 319.68 | E56: 317.82 | F56: 315.63 | G56: 313.77 | H56: 321.87 | I56: 323.73 | J56: 325.92 | K56: 321.55 | L56: 317.5 | M56: 59.31824
A57: 48 | B57: CHOLAFIN | C57: 874.7 | D57: 880.25 | E57: 865.60 | F57: 856.50 | G57: 841.85 | H57: 889.35 | I57: 904.00 | J57: 913.10 | K57: 894.9 | L57: 871.15 | M57: 22.87265
A58: 49 | B58: CIPLA | C58: 917.7 | D58: 914.93 | E58: 908.87 | F58: 900.03 | G58: 893.97 | H58: 923.77 | I58: 929.83 | J58: 938.67 | K58: 921 | L58: 906.1 | M58: 18.57324
A59: 50 | B59: CLEAN | C59: 1468.9 | D59: 1471.20 | E59: 1454.60 | F59: 1440.30 | G59: 1423.70 | H59: 1485.50 | I59: 1502.10 | J59: 1516.40 | K59: 1487.8 | L59: 1456.9 | M59: 0.92853
A60: 51 | B60: COALINDIA | C60: 236.1 | D60: 235.55 | E60: 233.65 | F60: 231.20 | G60: 229.30 | H60: 238.00 | I60: 239.90 | J60: 242.35 | K60: 237.45 | L60: 233.1 | M60: 37.73537
A61: 52 | B61: COFORGE | C61: 4130.65 | D61: 4142.30 | E61: 4078.25 | F61: 4025.85 | G61: 3961.80 | H61: 4194.70 | I61: 4258.75 | J61: 4311.15 | K61: 4206.35 | L61: 4089.9 | M61: 11.58608
A62: 53 | B62: COLPAL | C62: 1575.35 | D62: 1580.78 | E62: 1566.57 | F62: 1557.78 | G62: 1543.57 | H62: 1589.57 | I62: 1603.78 | J62: 1612.57 | K62: 1595 | L62: 1572 | M62: 1.4421
A63: 54 | B63: CONCOR | C63: 620.85 | D63: 618.52 | E63: 613.73 | F63: 606.62 | G63: 601.83 | H63: 625.63 | I63: 630.42 | J63: 637.53 | K63: 623.3 | L63: 611.4 | M63: 10.46906
A64: 55 | B64: COROMANDEL | C64: 948.1 | D64: 946.70 | E64: 940.40 | F64: 932.70 | G64: 926.40 | H64: 954.40 | I64: 960.70 | J64: 968.40 | K64: 953 | L64: 939 | M64: 2.0366
A65: 56 | B65: CROMPTON | C65: 258.65 | D65: 257.45 | E65: 254.90 | F65: 251.15 | G65: 248.60 | H65: 261.20 | I65: 263.75 | J65: 267.50 | K65: 260 | L65: 253.7 | M65: 55.77757
A66: 57 | B66: CUMMINSIND | C66: 1600.2 | D66: 1591.62 | E66: 1577.73 | F66: 1555.27 | G66: 1541.38 | H66: 1614.08 | I66: 1627.97 | J66: 1650.43 | K66: 1605.5 | L66: 1569.15 | M66: 3.67587
A67: 58 | B67: DLF | C67: 424.25 | D67: 424.32 | E67: 421.03 | F67: 417.82 | G67: 414.53 | H67: 427.53 | I67: 430.82 | J67: 434.03 | K67: 427.6 | L67: 421.1 | M67: 35.19033
A68: 59 | B68: DABUR | C68: 536.45 | D68: 535.22 | E68: 533.28 | F68: 530.12 | G68: 528.18 | H68: 538.38 | I68: 540.32 | J68: 543.48 | K68: 537.15 | L68: 532.05 | M68: 10.99379
A69: 60 | B69: DALBHARAT | C69: 2000.25 | D69: 1997.80 | E69: 1986.60 | F69: 1972.95 | G69: 1961.75 | H69: 2011.45 | I69: 2022.65 | J69: 2036.30 | K69: 2009 | L69: 1984.15 | M69: 1.83863
A70: 61 | B70: DEEPAKNTR | C70: 1895.25 | D70: 1896.47 | E70: 1881.43 | F70: 1867.62 | G70: 1852.58 | H70: 1910.28 | I70: 1925.32 | J70: 1939.13 | K70: 1911.5 | L70: 1882.65 | M70: 3.84075
A71: 62 | B71: DELHIVERY | C71: 364.6 | D71: 367.32 | E71: 360.28 | F71: 355.97 | G71: 348.93 | H71: 371.63 | I71: 378.67 | J71: 382.98 | K71: 374.35 | L71: 363 | M71: 11.99097
A72: 63 | B72: DIVISLAB | C72: 3253.7 | D72: 3261.02 | E72: 3237.68 | F72: 3221.67 | G72: 3198.33 | H72: 3277.03 | I72: 3300.37 | J72: 3316.38 | K72: 3284.35 | L72: 3245 | M72: 3.20408
A73: 64 | B73: DIXON | C73: 2909.1 | D73: 2919.30 | E73: 2889.80 | F73: 2870.50 | G73: 2841.00 | H73: 2938.60 | I73: 2968.10 | J73: 2987.40 | K73: 2948.8 | L73: 2900 | M73: 1.78211
A74: 65 | B74: LALPATHLAB | C74: 1956.3 | D74: 1957.88 | E74: 1943.77 | F74: 1931.23 | G74: 1917.12 | H74: 1970.42 | I74: 1984.53 | J74: 1997.07 | K74: 1972 | L74: 1945.35 | M74: 1.63437
A75: 66 | B75: DRREDDY | C75: 4950.4 | D75: 4937.58 | E75: 4916.22 | F75: 4882.03 | G75: 4860.67 | H75: 4971.77 | I75: 4993.13 | J75: 5027.32 | K75: 4958.95 | L75: 4903.4 | M75: 2.41978
A76: 67 | B76: EICHERMOT | C76: 3356.15 | D76: 3354.98 | E76: 3326.17 | F76: 3296.18 | G76: 3267.37 | H76: 3384.97 | I76: 3413.78 | J76: 3443.77 | K76: 3383.8 | L76: 3325 | M76: 8.38718
A77: 68 | B77: EMAMILTD | C77: 380.45 | D77: 378.85 | E77: 376.20 | F77: 371.95 | G77: 369.30 | H77: 383.10 | I77: 385.75 | J77: 390.00 | K77: 381.5 | L77: 374.6 | M77: 6.58527
A78: 69 | B78: ESCORTS | C78: 1985.95 | D78: 1984.38 | E78: 1965.72 | F78: 1945.48 | G78: 1926.82 | H78: 2004.62 | I78: 2023.28 | J78: 2043.52 | K78: 2003.05 | L78: 1964.15 | M78: 2.66621
A79: 70 | B79: NYKAA | C79: 124.75 | D79: 125.18 | E79: 121.72 | F79: 118.68 | G79: 115.22 | H79: 128.22 | I79: 131.68 | J79: 134.72 | K79: 128.65 | L79: 122.15 | M79: 230.35078
A80: 71 | B80: FEDERALBNK | C80: 136.45 | D80: 136.08 | E80: 135.37 | F80: 134.28 | G80: 133.57 | H80: 137.17 | I80: 137.88 | J80: 138.97 | K80: 136.8 | L80: 135 | M80: 71.07201
A81: 72 | B81: FORTIS | C81: 260.7 | D81: 260.95 | E81: 258.75 | F81: 256.80 | G81: 254.60 | H81: 262.90 | I81: 265.10 | J81: 267.05 | K81: 263.15 | L81: 259 | M81: 4.36355
A82: 73 | B82: GAIL | C82: 108.3 | D82: 108.03 | E82: 107.52 | F82: 106.73 | G82: 106.22 | H82: 108.82 | I82: 109.33 | J82: 110.12 | K82: 108.55 | L82: 107.25 | M82: 72.63913
A83: 74 | B83: GLAND | C83: 1375.7 | D83: 1379.62 | E83: 1364.23 | F83: 1352.77 | G83: 1337.38 | H83: 1391.08 | I83: 1406.47 | J83: 1417.93 | K83: 1395 | L83: 1368.15 | M83: 4.06309
A84: 75 | B84: GODREJCP | C84: 923.35 | D84: 918.12 | E84: 907.23 | F84: 891.12 | G84: 880.23 | H84: 934.23 | I84: 945.12 | J84: 961.23 | K84: 929 | L84: 902 | M84: 29.16163
A85: 76 | B85: GODREJPROP | C85: 1328.75 | D85: 1324.07 | E85: 1313.33 | F85: 1297.92 | G85: 1287.18 | H85: 1339.48 | I85: 1350.22 | J85: 1365.63 | K85: 1334.8 | L85: 1308.65 | M85: 8.05825
A86: 77 | B86: GRASIM | C86: 1739.55 | D86: 1732.97 | E86: 1722.13 | F86: 1704.72 | G86: 1693.88 | H86: 1750.38 | I86: 1761.22 | J86: 1778.63 | K86: 1743.8 | L86: 1715.55 | M86: 3.94867
A87: 78 | B87: GUJGASLTD | C87: 469.95 | D87: 468.85 | E87: 465.60 | F87: 461.25 | G87: 458.00 | H87: 473.20 | I87: 476.45 | J87: 480.80 | K87: 472.1 | L87: 464.5 | M87: 7.44818
A88: 79 | B88: GSPL | C88: 284.15 | D88: 284.80 | E88: 281.10 | F88: 278.05 | G88: 274.35 | H88: 287.85 | I88: 291.55 | J88: 294.60 | K88: 288.5 | L88: 281.75 | M88: 3.32331
A89: 80 | B89: HCLTECH | C89: 1067.55 | D89: 1068.78 | E89: 1062.77 | F89: 1057.98 | G89: 1051.97 | H89: 1073.57 | I89: 1079.58 | J89: 1084.37 | K89: 1074.8 | L89: 1064 | M89: 19.05168
A90: 81 | B90: HDFCAMC | C90: 1808.85 | D90: 1799.28 | E90: 1777.57 | F90: 1746.28 | G90: 1724.57 | H90: 1830.57 | I90: 1852.28 | J90: 1883.57 | K90: 1821 | L90: 1768 | M90: 3.45795
A91: 82 | B91: HDFCBANK | C91: 1687.25 | D91: 1689.42 | E91: 1679.83 | F91: 1672.42 | G91: 1662.83 | H91: 1696.83 | I91: 1706.42 | J91: 1713.83 | K91: 1699 | L91: 1682 | M91: 161.10592
A92: 83 | B92: HDFCLIFE | C92: 544.5 | D92: 539.97 | E92: 534.08 | F92: 523.67 | G92: 517.78 | H92: 550.38 | I92: 556.27 | J92: 566.68 | K92: 545.85 | L92: 529.55 | M92: 42.39067
A93: 84 | B93: HAVELLS | C93: 1225.6 | D93: 1229.55 | E93: 1216.10 | F93: 1206.60 | G93: 1193.15 | H93: 1239.05 | I93: 1252.50 | J93: 1262.00 | K93: 1243 | L93: 1220.05 | M93: 6.80387
A94: 85 | B94: HEROMOTOCO | C94: 2495.9 | D94: 2500.62 | E94: 2461.28 | F94: 2426.67 | G94: 2387.33 | H94: 2535.23 | I94: 2574.57 | J94: 2609.18 | K94: 2539.95 | L94: 2466 | M94: 9.97629
A95: 86 | B95: HINDALCO | C95: 446.15 | D95: 444.68 | E95: 439.47 | F95: 432.78 | G95: 427.57 | H95: 451.37 | I95: 456.58 | J95: 463.27 | K95: 449.9 | L95: 438 | M95: 51.78547
A96: 87 | B96: HAL | C96: 2938.3 | D96: 2939.15 | E96: 2920.25 | F96: 2902.20 | G96: 2883.30 | H96: 2957.20 | I96: 2976.10 | J96: 2994.15 | K96: 2958.05 | L96: 2921.1 | M96: 7.6433
A97: 88 | B97: HINDPETRO | C97: 252.85 | D97: 253.73 | E97: 249.82 | F97: 246.78 | G97: 242.87 | H97: 256.77 | I97: 260.68 | J97: 263.72 | K97: 257.65 | L97: 250.7 | M97: 26.36778
A98: 89 | B98: HINDUNILVR | C98: 2451.7 | D98: 2459.90 | E98: 2441.80 | F98: 2431.90 | G98: 2413.80 | H98: 2469.80 | I98: 2487.90 | J98: 2497.80 | K98: 2478 | L98: 2450 | M98: 17.6037
A99: 90 | B99: HINDZINC | C99: 315.2 | D99: 316.00 | E99: 314.20 | F99: 313.20 | G99: 311.40 | H99: 317.00 | I99: 318.80 | J99: 319.80 | K99: 317.8 | L99: 315 | M99: 4.07894
A100: 91 | B100: HONAUT | C100: 35555.9 | D100: 35684.97 | E100: 35370.93 | F100: 35185.97 | G100: 34871.93 | H100: 35869.93 | I100: 36183.97 | J100: 36368.93 | K100: 35999 | L100: 35500 | M100: 0.02731
A101: 92 | B101: HDFC | C101: 2790 | D101: 2790.07 | E101: 2776.13 | F101: 2762.27 | G101: 2748.33 | H101: 2803.93 | I101: 2817.87 | J101: 2831.73 | K101: 2804 | L101: 2776.2 | M101: 53.77606
A102: 93 | B102: ICICIBANK | C102: 922.1 | D102: 922.20 | E102: 918.60 | F102: 915.10 | G102: 911.50 | H102: 925.70 | I102: 929.30 | J102: 932.80 | K102: 925.8 | L102: 918.7 | M102: 175.15017
A103: 94 | B103: ICICIGI | C103: 1087.05 | D103: 1084.68 | E103: 1078.67 | F103: 1070.28 | G103: 1064.27 | H103: 1093.07 | I103: 1099.08 | J103: 1107.47 | K103: 1090.7 | L103: 1076.3 | M103: 5.84124
A104: 95 | B104: ICICIPRULI | C104: 439.55 | D104: 437.60 | E104: 434.50 | F104: 429.45 | G104: 426.35 | H104: 442.65 | I104: 445.75 | J104: 450.80 | K104: 440.7 | L104: 432.55 | M104: 16.19468
A105: 96 | B105: ISEC | C105: 452.45 | D105: 450.20 | E105: 445.60 | F105: 438.75 | G105: 434.15 | H105: 457.05 | I105: 461.65 | J105: 468.50 | K105: 454.8 | L105: 443.35 | M105: 1.79959
A106: 97 | B106: IDFCFIRSTB | C106: 63.85 | D106: 64.03 | E106: 62.82 | F106: 61.78 | G106: 60.57 | H106: 65.07 | I106: 66.28 | J106: 67.32 | K106: 65.25 | L106: 63 | M106: 1135.85859
A107: 98 | B107: ITC | C107: 424.45 | D107: 424.22 | E107: 421.43 | F107: 418.42 | G107: 415.63 | H107: 427.23 | I107: 430.02 | J107: 433.03 | K107: 427 | L107: 421.2 | M107: 102.53527
A108: 99 | B108: INDIAMART | C108: 5628.15 | D108: 5536.22 | E108: 5418.98 | F108: 5209.82 | G108: 5092.58 | H108: 5745.38 | I108: 5862.62 | J108: 6071.78 | K108: 5653.45 | L108: 5327.05 | M108: 3.18763
A109: 100 | B109: INDIANB | C109: 329.15 | D109: 327.90 | E109: 325.10 | F109: 321.05 | G109: 318.25 | H109: 331.95 | I109: 334.75 | J109: 338.80 | K109: 330.7 | L109: 323.85 | M109: 19.92544
A110: 101 | B110: IEX | C110: 155.2 | D110: 155.82 | E110: 153.93 | F110: 152.67 | G110: 150.78 | H110: 157.08 | I110: 158.97 | J110: 160.23 | K110: 157.7 | L110: 154.55 | M110: 72.46709
A111: 102 | B111: INDHOTEL | C111: 347.45 | D111: 346.12 | E111: 341.63 | F111: 335.82 | G111: 331.33 | H111: 351.93 | I111: 356.42 | J111: 362.23 | K111: 350.6 | L111: 340.3 | M111: 90.32408
A112: 103 | B112: IOC | C112: 82.15 | D112: 82.08 | E112: 81.47 | F112: 80.78 | G112: 80.17 | H112: 82.77 | I112: 83.38 | J112: 84.07 | K112: 82.7 | L112: 81.4 | M112: 117.68608
A113: 104 | B113: IRCTC | C113: 626.95 | D113: 625.38 | E113: 619.77 | F113: 612.58 | G113: 606.97 | H113: 632.57 | I113: 638.18 | J113: 645.37 | K113: 631 | L113: 618.2 | M113: 24.83827
A114: 105 | B114: IGL | C114: 493.35 | D114: 494.30 | E114: 490.60 | F114: 487.85 | G114: 484.15 | H114: 497.05 | I114: 500.75 | J114: 503.50 | K114: 498 | L114: 491.55 | M114: 6.39508
A115: 106 | B115: INDUSTOWER | C115: 156.45 | D115: 157.67 | E115: 154.48 | F115: 152.52 | G115: 149.33 | H115: 159.63 | I115: 162.82 | J115: 164.78 | K115: 160.85 | L115: 155.7 | M115: 108.97706
A116: 107 | B116: INDUSINDBK | C116: 1150.9 | D116: 1154.25 | E116: 1146.65 | F116: 1142.40 | G116: 1134.80 | H116: 1158.50 | I116: 1166.10 | J116: 1170.35 | K116: 1161.85 | L116: 1150 | M116: 20.00569
A117: 108 | B117: NAUKRI | C117: 3804.3 | D117: 3789.67 | E117: 3759.68 | F117: 3715.07 | G117: 3685.08 | H117: 3834.28 | I117: 3864.27 | J117: 3908.88 | K117: 3819.65 | L117: 3745.05 | M117: 1.48846
A118: 109 | B118: INFY | C118: 1277.45 | D118: 1270.58 | E118: 1261.42 | F118: 1245.38 | G118: 1236.22 | H118: 1286.62 | I118: 1295.78 | J118: 1311.82 | K118: 1279.75 | L118: 1254.55 | M118: 88.86401
A119: 110 | B119: INDIGO | C119: 2067.4 | D119: 2059.10 | E119: 2030.30 | F119: 1993.20 | G119: 1964.40 | H119: 2096.20 | I119: 2125.00 | J119: 2162.10 | K119: 2087.9 | L119: 2022 | M119: 8.50179
A120: 111 | B120: IPCALAB | C120: 708.35 | D120: 710.83 | E120: 704.52 | F120: 700.68 | G120: 694.37 | H120: 714.67 | I120: 720.98 | J120: 724.82 | K120: 717.15 | L120: 707 | M120: 5.1668
A121: 112 | B121: JSWENERGY | C121: 257.7 | D121: 259.35 | E121: 254.85 | F121: 252.00 | G121: 247.50 | H121: 262.20 | I121: 266.70 | J121: 269.55 | K121: 263.85 | L121: 256.5 | M121: 5.84951
A122: 113 | B122: JSWSTEEL | C122: 737.9 | D122: 737.63 | E122: 728.77 | F122: 719.63 | G122: 710.77 | H122: 746.77 | I122: 755.63 | J122: 764.77 | K122: 746.5 | L122: 728.5 | M122: 19.65606
A123: 114 | B123: JINDALSTEL | C123: 592.75 | D123: 590.83 | E123: 584.32 | F123: 575.88 | G123: 569.37 | H123: 599.27 | I123: 605.78 | J123: 614.22 | K123: 597.35 | L123: 582.4 | M123: 20.60182
A124: 115 | B124: JUBLFOOD | C124: 461.6 | D124: 457.55 | E124: 452.10 | F124: 442.60 | G124: 437.15 | H124: 467.05 | I124: 472.50 | J124: 482.00 | K124: 463 | L124: 448.05 | M124: 31.07925
A125: 116 | B125: KOTAKBANK | C125: 1921.15 | D125: 1916.20 | E125: 1894.95 | F125: 1868.75 | G125: 1847.50 | H125: 1942.40 | I125: 1963.65 | J125: 1989.85 | K125: 1937.45 | L125: 1890 | M125: 46.05771
A126: 117 | B126: L&TFH | C126: 92.45 | D126: 92.57 | E126: 90.38 | F126: 88.32 | G126: 86.13 | H126: 94.63 | I126: 96.82 | J126: 98.88 | K126: 94.75 | L126: 90.5 | M126: 129.32315
A127: 118 | B127: LTTS | C127: 3805.7 | D127: 3798.78 | E127: 3752.17 | F127: 3698.63 | G127: 3652.02 | H127: 3852.32 | I127: 3898.93 | J127: 3952.47 | K127: 3845.4 | L127: 3745.25 | M127: 3.08645
A128: 119 | B128: LICHSGFIN | C128: 355.15 | D128: 351.87 | E128: 347.38 | F128: 339.62 | G128: 335.13 | H128: 359.63 | I128: 364.12 | J128: 371.88 | K128: 356.35 | L128: 344.1 | M128: 19.61296
A129: 120 | B129: LTIM | C129: 4548.25 | D129: 4529.10 | E129: 4443.20 | F129: 4338.15 | G129: 4252.25 | H129: 4634.15 | I129: 4720.05 | J129: 4825.10 | K129: 4615 | L129: 4424.05 | M129: 7.57405
A130: 121 | B130: LT | C130: 2384.45 | D130: 2391.33 | E130: 2366.32 | F130: 2348.18 | G130: 2323.17 | H130: 2409.47 | I130: 2434.48 | J130: 2452.62 | K130: 2416.35 | L130: 2373.2 | M130: 18.40153
A131: 122 | B131: LAURUSLABS | C131: 311.6 | D131: 312.30 | E131: 306.70 | F131: 301.80 | G131: 296.20 | H131: 317.20 | I131: 322.80 | J131: 327.70 | K131: 317.9 | L131: 307.4 | M131: 45.52472
A132: 123 | B132: LICI | C132: 550.05 | D132: 551.28 | E132: 547.97 | F132: 545.88 | G132: 542.57 | H132: 553.37 | I132: 556.68 | J132: 558.77 | K132: 554.6 | L132: 549.2 | M132: 12.24198
A133: 124 | B133: LINDEINDIA | C133: 4006.55 | D133: 4019.05 | E133: 3973.10 | F133: 3939.65 | G133: 3893.70 | H133: 4052.50 | I133: 4098.45 | J133: 4131.90 | K133: 4065 | L133: 3985.6 | M133: 0.49283
A134: 125 | B134: LUPIN | C134: 708.8 | D134: 709.60 | E134: 702.80 | F134: 696.80 | G134: 690.00 | H134: 715.60 | I134: 722.40 | J134: 728.40 | K134: 716.4 | L134: 703.6 | M134: 6.45261
A135: 126 | B135: MRF | C135: 88596.9 | D135: 88699.28 | E135: 87899.67 | F135: 87202.43 | G135: 86402.82 | H135: 89396.52 | I135: 90196.13 | J135: 90893.37 | K135: 89498.9 | L135: 88002.05 | M135: 0.05222
A136: 127 | B136: M&MFIN | C136: 266.3 | D136: 268.77 | E136: 259.53 | F136: 252.77 | G136: 243.53 | H136: 275.53 | I136: 284.77 | J136: 291.53 | K136: 278 | L136: 262 | M136: 214.15225
A137: 128 | B137: M&M | C137: 1237.3 | D137: 1231.87 | E137: 1222.93 | F137: 1208.57 | G137: 1199.63 | H137: 1246.23 | I137: 1255.17 | J137: 1269.53 | K137: 1240.8 | L137: 1217.5 | M137: 26.0758
A138: 129 | B138: MARICO | C138: 499.85 | D138: 499.17 | E138: 495.83 | F138: 491.82 | G138: 488.48 | H138: 503.18 | I138: 506.52 | J138: 510.53 | K138: 502.5 | L138: 495.15 | M138: 5.72
A139: 130 | B139: MARUTI | C139: 8776.85 | D139: 8736.62 | E139: 8646.23 | F139: 8515.62 | G139: 8425.23 | H139: 8867.23 | I139: 8957.62 | J139: 9088.23 | K139: 8827 | L139: 8606 | M139: 8.65562
A140: 131 | B140: MFSL | C140: 648.85 | D140: 643.35 | E140: 636.00 | F140: 623.15 | G140: 615.80 | H140: 656.20 | I140: 663.55 | J140: 676.40 | K140: 650.7 | L140: 630.5 | M140: 8.22662
A141: 132 | B141: MAXHEALTH | C141: 474.8 | D141: 471.42 | E141: 463.83 | F141: 452.87 | G141: 445.28 | H141: 482.38 | I141: 489.97 | J141: 500.93 | K141: 479 | L141: 460.45 | M141: 18.93299
A142: 133 | B142: MSUMI | C142: 52.85 | D142: 53.08 | E142: 51.87 | F142: 50.88 | G142: 49.67 | H142: 54.07 | I142: 55.28 | J142: 56.27 | K142: 54.3 | L142: 52.1 | M142: 26.75499
A143: 134 | B143: MPHASIS | C143: 1861.05 | D143: 1853.68 | E143: 1828.37 | F143: 1795.68 | G143: 1770.37 | H143: 1886.37 | I143: 1911.68 | J143: 1944.37 | K143: 1879 | L143: 1821 | M143: 7.99693
A144: 135 | B144: MUTHOOTFIN | C144: 1027.4 | D144: 1023.98 | E144: 1016.82 | F144: 1006.23 | G144: 999.07 | H144: 1034.57 | I144: 1041.73 | J144: 1052.32 | K144: 1031.15 | L144: 1013.4 | M144: 11.25815
A145: 136 | B145: NTPC | C145: 175.6 | D145: 174.72 | E145: 173.43 | F145: 171.27 | G145: 169.98 | H145: 176.88 | I145: 178.17 | J145: 180.33 | K145: 176 | L145: 172.55 | M145: 88.93428
A146: 137 | B146: NATIONALUM | C146: 83.1 | D146: 83.42 | E146: 82.68 | F146: 82.27 | G146: 81.53 | H146: 83.83 | I146: 84.57 | J146: 84.98 | K146: 84.15 | L146: 83 | M146: 94.06438
A147: 138 | B147: NAVINFLUOR | C147: 4800.4 | D147: 4819.25 | E147: 4758.55 | F147: 4716.70 | G147: 4656.00 | H147: 4861.10 | I147: 4921.80 | J147: 4963.65 | K147: 4879.95 | L147: 4777.4 | M147: 2.15613
A148: 139 | B148: NESTLEIND | C148: 21745.85 | D148: 21839.12 | E148: 21579.23 | F148: 21412.62 | G148: 21152.73 | H148: 22005.73 | I148: 22265.62 | J148: 22432.23 | K148: 22099 | L148: 21672.5 | M148: 0.8917
A149: 140 | B149: NAM-INDIA | C149: 238.15 | D149: 238.30 | E149: 236.95 | F149: 235.75 | G149: 234.40 | H149: 239.50 | I149: 240.85 | J149: 242.05 | K149: 239.65 | L149: 237.1 | M149: 4.34702
A150: 141 | B150: OBEROIRLTY | C150: 915.5 | D150: 920.68 | E150: 908.72 | F150: 901.93 | G150: 889.97 | H150: 927.47 | I150: 939.43 | J150: 946.22 | K150: 932.65 | L150: 913.9 | M150: 3.47382
A151: 142 | B151: ONGC | C151: 164.25 | D151: 162.80 | E151: 160.80 | F151: 157.35 | G151: 155.35 | H151: 166.25 | I151: 168.25 | J151: 171.70 | K151: 164.8 | L151: 159.35 | M151: 166.1256
A152: 143 | B152: OIL | C152: 258 | D152: 257.28 | E152: 255.47 | F152: 252.93 | G152: 251.12 | H152: 259.82 | I152: 261.63 | J152: 264.17 | K152: 259.1 | L152: 254.75 | M152: 13.52133
A153: 144 | B153: PAYTM | C153: 660.75 | D153: 664.77 | E153: 653.38 | F153: 646.02 | G153: 634.63 | H153: 672.13 | I153: 683.52 | J153: 690.88 | K153: 676.15 | L153: 657.4 | M153: 20.80891
A154: 145 | B154: OFSS | C154: 3633.15 | D154: 3621.03 | E154: 3603.12 | F154: 3573.08 | G154: 3555.17 | H154: 3651.07 | I154: 3668.98 | J154: 3699.02 | K154: 3638.95 | L154: 3591 | M154: 2.08187
A155: 146 | B155: POLICYBZR | C155: 595.95 | D155: 598.68 | E155: 590.42 | F155: 584.88 | G155: 576.62 | H155: 604.22 | I155: 612.48 | J155: 618.02 | K155: 606.95 | L155: 593.15 | M155: 8.02694
A156: 147 | B156: PIIND | C156: 3404.1 | D156: 3396.67 | E156: 3358.93 | F156: 3313.77 | G156: 3276.03 | H156: 3441.83 | I156: 3479.57 | J156: 3524.73 | K156: 3434.4 | L156: 3351.5 | M156: 4.20865
A157: 148 | B157: PAGEIND | C157: 40229.1 | D157: 40056.37 | E157: 39522.73 | F157: 38816.37 | G157: 38282.73 | H157: 40762.73 | I157: 41296.37 | J157: 42002.73 | K157: 40590 | L157: 39350 | M157: 0.30917
A158: 149 | B158: PATANJALI | C158: 935.6 | D158: 936.88 | E158: 923.77 | F158: 911.93 | G158: 898.82 | H158: 948.72 | I158: 961.83 | J158: 973.67 | K158: 950 | L158: 925.05 | M158: 0.74979
A159: 150 | B159: PERSISTENT | C159: 4750.9 | D159: 4767.93 | E159: 4713.42 | F159: 4675.93 | G159: 4621.42 | H159: 4805.42 | I159: 4859.93 | J159: 4897.42 | K159: 4822.45 | L159: 4730.45 | M159: 2.73054
A160: 151 | B160: PETRONET | C160: 237 | D160: 237.58 | E160: 235.72 | F160: 234.43 | G160: 232.57 | H160: 238.87 | I160: 240.73 | J160: 242.02 | K160: 239.45 | L160: 236.3 | M160: 35.60897
A161: 152 | B161: PIDILITIND | C161: 2419.75 | D161: 2418.92 | E161: 2406.83 | F161: 2393.92 | G161: 2381.83 | H161: 2431.83 | I161: 2443.92 | J161: 2456.83 | K161: 2431 | L161: 2406 | M161: 1.89298
A162: 153 | B162: POLYCAB | C162: 3249.95 | D162: 3238.15 | E162: 3217.30 | F162: 3184.65 | G162: 3163.80 | H162: 3270.80 | I162: 3291.65 | J162: 3324.30 | K162: 3259 | L162: 3205.5 | M162: 1.95103
A163: 154 | B163: POONAWALLA | C163: 322.45 | D163: 322.08 | E163: 319.77 | F163: 317.08 | G163: 314.77 | H163: 324.77 | I163: 327.08 | J163: 329.77 | K163: 324.4 | L163: 319.4 | M163: 21.66089
A164: 155 | B164: PFC | C164: 173.6 | D164: 172.97 | E164: 170.58 | F164: 167.57 | G164: 165.18 | H164: 175.98 | I164: 178.37 | J164: 181.38 | K164: 175.35 | L164: 169.95 | M164: 215.43413
A165: 156 | B165: POWERGRID | C165: 240.1 | D165: 239.83 | E165: 238.52 | F165: 236.93 | G165: 235.62 | H165: 241.42 | I165: 242.73 | J165: 244.32 | K165: 241.15 | L165: 238.25 | M165: 50.49681
A166: 157 | B166: PRESTIGE | C166: 484.25 | D166: 486.17 | E166: 479.33 | F166: 474.42 | G166: 467.58 | H166: 491.08 | I166: 497.92 | J166: 502.83 | K166: 493 | L166: 481.25 | M166: 2.9026
A167: 158 | B167: PGHH | C167: 13895.45 | D167: 13938.48 | E167: 13816.97 | F167: 13738.48 | G167: 13616.97 | H167: 14016.97 | I167: 14138.48 | J167: 14216.97 | K167: 14060 | L167: 13860 | M167: 0.02321
A168: 159 | B168: PNB | C168: 52.75 | D168: 52.75 | E168: 52.40 | F168: 52.05 | G168: 51.70 | H168: 53.10 | I168: 53.45 | J168: 53.80 | K168: 53.1 | L168: 52.4 | M168: 315.70025
A169: 160 | B169: RECLTD | C169: 136.45 | D169: 135.97 | E169: 133.53 | F169: 130.62 | G169: 128.18 | H169: 138.88 | I169: 141.32 | J169: 144.23 | K169: 138.4 | L169: 133.05 | M169: 207.40058
A170: 161 | B170: RELIANCE | C170: 2441.05 | D170: 2438.32 | E170: 2430.83 | F170: 2420.62 | G170: 2413.13 | H170: 2448.53 | I170: 2456.02 | J170: 2466.23 | K170: 2445.8 | L170: 2428.1 | M170: 59.91101
A171: 162 | B171: SBICARD | C171: 781.95 | D171: 773.70 | E171: 760.55 | F171: 739.15 | G171: 726.00 | H171: 795.10 | I171: 808.25 | J171: 829.65 | K171: 786.85 | L171: 752.3 | M171: 20.35928
A172: 163 | B172: SBILIFE | C172: 1150.9 | D172: 1151.17 | E172: 1144.08 | F172: 1137.27 | G172: 1130.18 | H172: 1157.98 | I172: 1165.07 | J172: 1171.88 | K172: 1158.25 | L172: 1144.35 | M172: 9.16515
A173: 164 | B173: SRF | C173: 2550.75 | D173: 2550.00 | E173: 2536.55 | F173: 2522.35 | G173: 2508.90 | H173: 2564.20 | I173: 2577.65 | J173: 2591.85 | K173: 2563.45 | L173: 2535.8 | M173: 2.29619
A174: 165 | B174: MOTHERSON | C174: 75.15 | D174: 74.80 | E174: 73.85 | F174: 72.55 | G174: 71.60 | H174: 76.10 | I174: 77.05 | J174: 78.35 | K174: 75.75 | L174: 73.5 | M174: 116.2801
A175: 166 | B175: SHREECEM | C175: 24191.65 | D175: 24182.90 | E175: 23965.80 | F175: 23739.95 | G175: 23522.85 | H175: 24408.75 | I175: 24625.85 | J175: 24851.70 | K175: 24400 | L175: 23957.05 | M175: 0.3466
A176: 167 | B176: SHRIRAMFIN | C176: 1325.3 | D176: 1333.42 | E176: 1313.53 | F176: 1301.77 | G176: 1281.88 | H176: 1345.18 | I176: 1365.07 | J176: 1376.83 | K176: 1353.3 | L176: 1321.65 | M176: 8.89058
A177: 168 | B177: SIEMENS | C177: 3500.1 | D177: 3492.97 | E177: 3457.18 | F177: 3414.27 | G177: 3378.48 | H177: 3535.88 | I177: 3571.67 | J177: 3614.58 | K177: 3528.75 | L177: 3450.05 | M177: 3.44626
A178: 169 | B178: SONACOMS | C178: 487.15 | D178: 488.05 | E178: 482.10 | F178: 477.05 | G178: 471.10 | H178: 493.10 | I178: 499.05 | J178: 504.10 | K178: 494 | L178: 483 | M178: 21.12246
A179: 170 | B179: SBIN | C179: 575.3 | D179: 576.43 | E179: 572.02 | F179: 568.73 | G179: 564.32 | H179: 579.72 | I179: 584.13 | J179: 587.42 | K179: 580.85 | L179: 573.15 | M179: 136.67511
A180: 171 | B180: SAIL | C180: 84.6 | D180: 84.27 | E180: 83.33 | F180: 82.07 | G180: 81.13 | H180: 85.53 | I180: 86.47 | J180: 87.73 | K180: 85.2 | L180: 83 | M180: 202.10134
A181: 172 | B181: SUNPHARMA | C181: 973.05 | D181: 977.42 | E181: 965.93 | F181: 958.82 | G181: 947.33 | H181: 984.53 | I181: 996.02 | J181: 1003.13 | K181: 988.9 | L181: 970.3 | M181: 31.52556
A182: 173 | B182: SUNTV | C182: 434.9 | D182: 435.15 | E182: 431.55 | F182: 428.20 | G182: 424.60 | H182: 438.50 | I182: 442.10 | J182: 445.45 | K182: 438.75 | L182: 431.8 | M182: 4.77228
A183: 174 | B183: SYNGENE | C183: 694.8 | D183: 690.70 | E183: 681.90 | F183: 669.00 | G183: 660.20 | H183: 703.60 | I183: 712.40 | J183: 725.30 | K183: 699.5 | L183: 677.8 | M183: 18.96776
A184: 175 | B184: TVSMOTOR | C184: 1157.95 | D184: 1154.00 | E184: 1141.00 | F184: 1124.05 | G184: 1111.05 | H184: 1170.95 | I184: 1183.95 | J184: 1200.90 | K184: 1167 | L184: 1137.05 | M184: 9.32329
A185: 176 | B185: TATACHEM | C185: 972 | D185: 971.48 | E185: 955.07 | F185: 938.13 | G185: 921.72 | H185: 988.42 | I185: 1004.83 | J185: 1021.77 | K185: 987.9 | L185: 954.55 | M185: 13.73516
A186: 177 | B186: TATACOMM | C186: 1256.95 | D186: 1259.57 | E186: 1247.73 | F186: 1238.52 | G186: 1226.68 | H186: 1268.78 | I186: 1280.62 | J186: 1289.83 | K186: 1271.4 | L186: 1250.35 | M186: 2.46846
A187: 178 | B187: TCS | C187: 3219.4 | D187: 3221.47 | E187: 3207.93 | F187: 3196.47 | G187: 3182.93 | H187: 3232.93 | I187: 3246.47 | J187: 3257.93 | K187: 3235 | L187: 3210 | M187: 23.21159
A188: 179 | B188: TATACONSUM | C188: 779.6 | D188: 775.87 | E188: 768.68 | F188: 757.77 | G188: 750.58 | H188: 786.78 | I188: 793.97 | J188: 804.88 | K188: 783.05 | L188: 764.95 | M188: 14.38425
A189: 180 | B189: TATAELXSI | C189: 6643.25 | D189: 6654.40 | E189: 6588.85 | F189: 6534.45 | G189: 6468.90 | H189: 6708.80 | I189: 6774.35 | J189: 6828.75 | K189: 6719.95 | L189: 6600 | M189: 1.25521
A190: 181 | B190: TATAMOTORS | C190: 480.25 | D190: 479.60 | E190: 475.20 | F190: 470.15 | G190: 465.75 | H190: 484.65 | I190: 489.05 | J190: 494.10 | K190: 484 | L190: 474.55 | M190: 115.42592
A191: 182 | B191: TATAPOWER | C191: 201.75 | D191: 201.70 | E191: 200.45 | F191: 199.15 | G191: 197.90 | H191: 203.00 | I191: 204.25 | J191: 205.55 | K191: 202.95 | L191: 200.4 | M191: 68.81245
A192: 183 | B192: TATASTEEL | C192: 110.3 | D192: 109.72 | E192: 108.58 | F192: 106.87 | G192: 105.73 | H192: 111.43 | I192: 112.57 | J192: 114.28 | K192: 110.85 | L192: 108 | M192: 528.22162
A193: 184 | B193: TTML | C193: 61.75 | D193: 62.32 | E193: 60.63 | F193: 59.52 | G193: 57.83 | H193: 63.43 | I193: 65.12 | J193: 66.23 | K193: 64 | L193: 61.2 | M193: 31.90074
A194: 185 | B194: TECHM | C194: 1053.45 | D194: 1046.55 | E194: 1027.30 | F194: 1001.15 | G194: 981.90 | H194: 1072.70 | I194: 1091.95 | J194: 1118.10 | K194: 1065.8 | L194: 1020.4 | M194: 47.62884
A195: 186 | B195: RAMCOCEM | C195: 742.1 | D195: 741.18 | E195: 735.92 | F195: 729.73 | G195: 724.47 | H195: 747.37 | I195: 752.63 | J195: 758.82 | K195: 746.45 | L195: 735 | M195: 1.28667
A196: 187 | B196: TITAN | C196: 2663.85 | D196: 2657.08 | E196: 2640.17 | F196: 2616.48 | G196: 2599.57 | H196: 2680.77 | I196: 2697.68 | J196: 2721.37 | K196: 2674 | L196: 2633.4 | M196: 7.26439
A197: 188 | B197: TORNTPHARM | C197: 1655.85 | D197: 1656.95 | E197: 1648.90 | F197: 1641.95 | G197: 1633.90 | H197: 1663.90 | I197: 1671.95 | J197: 1678.90 | K197: 1665 | L197: 1650 | M197: 2.3218
A198: 189 | B198: TORNTPOWER | C198: 541.85 | D198: 547.12 | E198: 534.73 | F198: 527.62 | G198: 515.23 | H198: 554.23 | I198: 566.62 | J198: 573.73 | K198: 559.5 | L198: 540 | M198: 2.12202
A199: 190 | B199: TRENT | C199: 1406.5 | D199: 1404.85 | E199: 1370.70 | F199: 1334.90 | G199: 1300.75 | H199: 1440.65 | I199: 1474.80 | J199: 1510.60 | K199: 1439 | L199: 1369.05 | M199: 13.12984
A200: 191 | B200: TRIDENT | C200: 32.45 | D200: 32.12 | E200: 31.53 | F200: 30.62 | G200: 30.03 | H200: 33.03 | I200: 33.62 | J200: 34.53 | K200: 32.7 | L200: 31.2 | M200: 142.30323
A201: 192 | B201: TIINDIA | C201: 2582.35 | D201: 2581.17 | E201: 2543.33 | F201: 2504.32 | G201: 2466.48 | H201: 2620.18 | I201: 2658.02 | J201: 2697.03 | K201: 2619 | L201: 2542.15 | M201: 2.37586
A202: 193 | B202: UPL | C202: 752.5 | D202: 752.00 | E202: 744.05 | F202: 735.60 | G202: 727.65 | H202: 760.45 | I202: 768.40 | J202: 776.85 | K202: 759.95 | L202: 743.55 | M202: 22.25369
A203: 194 | B203: ULTRACEMCO | C203: 7456.6 | D203: 7492.87 | E203: 7403.73 | F203: 7350.87 | G203: 7261.73 | H203: 7545.73 | I203: 7634.87 | J203: 7687.73 | K203: 7582 | L203: 7440 | M203: 5.44731
A204: 195 | B204: UNIONBANK | C204: 76.5 | D204: 76.80 | E204: 76.00 | F204: 75.50 | G204: 74.70 | H204: 77.30 | I204: 78.10 | J204: 78.60 | K204: 77.6 | L204: 76.3 | M204: 88.28494
A205: 196 | B205: UBL | C205: 1445.75 | D205: 1456.48 | E205: 1425.67 | F205: 1405.58 | G205: 1374.77 | H205: 1476.57 | I205: 1507.38 | J205: 1527.47 | K205: 1487.3 | L205: 1436.4 | M205: 5.32129
... 29 more rows

Sheet MidCap Intra
L5: Back To Main Page
A6: FOR INTRA DAY TRADING | K6: =Main!B10 -> 2023-05-03
A9: Sr.no | B9: Scrip | C9: CLOSE RATE | D9: Pivot Point | E9: Supports | H9: Resistances
E10: S1 | F10: S2 | G10: S3 | H10: R1 | I10: R2 | J10: R3 | K10: HIGH | L10: LOW | M10: Total Trade Quanity in Lakhs
A11: 1 | B11: 360ONE | C11: 418.3 | D11: 418.27 | E11: 412.63 | F11: 406.97 | G11: 401.33 | H11: 423.93 | I11: 429.57 | J11: 435.23 | K11: 423.9 | L11: 412.6 | M11: 1.76212
A12: 2 | B12: 3MINDIA | C12: 22390 | D12: 22442.00 | E12: 22304.00 | F12: 22218.00 | G12: 22080.00 | H12: 22528.00 | I12: 22666.00 | J12: 22752.00 | K12: 22580 | L12: 22356 | M12: 0.02285
A13: 3 | B13: ABB | C13: 3442.15 | D13: 3432.27 | E13: 3400.28 | F13: 3358.42 | G13: 3326.43 | H13: 3474.13 | I13: 3506.12 | J13: 3547.98 | K13: 3464.25 | L13: 3390.4 | M13: 3.31768
A14: 4 | B14: ACC | C14: 1764.15 | D14: 1763.90 | E14: 1750.80 | F14: 1737.45 | G14: 1724.35 | H14: 1777.25 | I14: 1790.35 | J14: 1803.70 | K14: 1777 | L14: 1750.55 | M14: 5.03277
A15: 5 | B15: AIAENG | C15: 2777.6 | D15: 2760.60 | E15: 2735.75 | F15: 2693.90 | G15: 2669.05 | H15: 2802.45 | I15: 2827.30 | J15: 2869.15 | K15: 2785.45 | L15: 2718.75 | M15: 0.43262
A16: 6 | B16: APLAPOLLO | C16: 1199.7 | D16: 1204.50 | E16: 1189.00 | F16: 1178.30 | G16: 1162.80 | H16: 1215.20 | I16: 1230.70 | J16: 1241.40 | K16: 1220 | L16: 1193.8 | M16: 2.45423
A17: 7 | B17: AUBANK | C17: 684 | D17: 677.68 | E17: 670.37 | F17: 656.73 | G17: 649.42 | H17: 691.32 | I17: 698.63 | J17: 712.27 | K17: 685 | L17: 664.05 | M17: 20.07742
A18: 8 | B18: AARTIDRUGS | C18: 457.8 | D18: 450.75 | E18: 429.90 | F18: 402.00 | G18: 381.15 | H18: 478.65 | I18: 499.50 | J18: 527.40 | K18: 471.6 | L18: 422.85 | M18: 51.12515
A19: 9 | B19: AAVAS | C19: 1399.15 | D19: 1399.57 | E19: 1385.13 | F19: 1371.12 | G19: 1356.68 | H19: 1413.58 | I19: 1428.02 | J19: 1442.03 | K19: 1414 | L19: 1385.55 | M19: 2.4316
A20: 10 | B20: ABBOTINDIA | C20: 22379.85 | D20: 22422.23 | E20: 22256.47 | F20: 22133.08 | G20: 21967.32 | H20: 22545.62 | I20: 22711.38 | J20: 22834.77 | K20: 22588 | L20: 22298.85 | M20: 0.0754
A21: 11 | B21: ADANIENT | C21: 1919.85 | D21: 1931.28 | E21: 1896.57 | F21: 1873.28 | G21: 1838.57 | H21: 1954.57 | I21: 1989.28 | J21: 2012.57 | K21: 1966 | L21: 1908 | M21: 38.13963
A22: 12 | B22: ADANIGREEN | C22: 974.65 | D22: 974.78 | E22: 951.02 | F22: 927.38 | G22: 903.62 | H22: 998.42 | I22: 1022.18 | J22: 1045.82 | K22: 998.55 | L22: 951.15 | M22: 33.23308
A23: 13 | B23: ADANIPORTS | C23: 681.5 | D23: 680.00 | E23: 674.10 | F23: 666.70 | G23: 660.80 | H23: 687.40 | I23: 693.30 | J23: 700.70 | K23: 685.9 | L23: 672.6 | M23: 55.63089
A24: 14 | B24: ATGL | C24: 959.05 | D24: 963.42 | E24: 936.83 | F24: 914.62 | G24: 888.03 | H24: 985.63 | I24: 1012.22 | J24: 1034.43 | K24: 990 | L24: 941.2 | M24: 12.79904
A25: 15 | B25: ADANITRANS | C25: 1021.95 | D25: 1038.22 | E25: 998.73 | F25: 975.52 | G25: 936.03 | H25: 1061.43 | I25: 1100.92 | J25: 1124.13 | K25: 1077.7 | L25: 1015 | M25: 13.29916
A26: 16 | B26: AWL | C26: 415.45 | D26: 417.28 | E26: 411.37 | F26: 407.28 | G26: 401.37 | H26: 421.37 | I26: 427.28 | J26: 431.37 | K26: 423.2 | L26: 413.2 | M26: 24.41446
A27: 17 | B27: ABCAPITAL | C27: 167.95 | D27: 168.58 | E27: 166.77 | F27: 165.58 | G27: 163.77 | H27: 169.77 | I27: 171.58 | J27: 172.77 | K27: 170.4 | L27: 167.4 | M27: 38.31072
A28: 18 | B28: ABFRL | C28: 224.15 | D28: 223.87 | E28: 222.38 | F28: 220.62 | G28: 219.13 | H28: 225.63 | I28: 227.12 | J28: 228.88 | K28: 225.35 | L28: 222.1 | M28: 15.39787
A29: 19 | B29: ABSLAMC | C29: 339.4 | D29: 337.85 | E29: 335.70 | F29: 332.00 | G29: 329.85 | H29: 341.55 | I29: 343.70 | J29: 347.40 | K29: 340 | L29: 334.15 | M29: 0.46724
A30: 20 | B30: AEGISCHEM | C30: 394.1 | D30: 396.62 | E30: 388.53 | F30: 382.97 | G30: 374.88 | H30: 402.18 | I30: 410.27 | J30: 415.83 | K30: 404.7 | L30: 391.05 | M30: 3.7049
A31: 21 | B31: AETHER | C31: 949.3 | D31: 953.57 | E31: 939.08 | F31: 928.87 | G31: 914.38 | H31: 963.78 | I31: 978.27 | J31: 988.48 | K31: 968.05 | L31: 943.35 | M31: 0.27063
A32: 22 | B32: AFFLE | C32: 935 | D32: 938.33 | E32: 929.87 | F32: 924.73 | G32: 916.27 | H32: 943.47 | I32: 951.93 | J32: 957.07 | K32: 946.8 | L32: 933.2 | M32: 1.91503
A33: 23 | B33: AJANTPHARM | C33: 1293.2 | D33: 1302.88 | E33: 1277.32 | F33: 1261.43 | G33: 1235.87 | H33: 1318.77 | I33: 1344.33 | J33: 1360.22 | K33: 1328.45 | L33: 1287 | M33: 0.59759
A34: 24 | B34: APLLTD | C34: 561.5 | D34: 561.98 | E34: 555.97 | F34: 550.43 | G34: 544.42 | H34: 567.52 | I34: 573.53 | J34: 579.07 | K34: 568 | L34: 556.45 | M34: 0.74895
A35: 25 | B35: ALKEM | C35: 3518.45 | D35: 3519.38 | E35: 3494.67 | F35: 3470.88 | G35: 3446.17 | H35: 3543.17 | I35: 3567.88 | J35: 3591.67 | K35: 3544.1 | L35: 3495.6 | M35: 1.1055
A36: 26 | B36: ALKYLAMINE | C36: 2583.85 | D36: 2521.95 | E36: 2425.90 | F36: 2267.95 | G36: 2171.90 | H36: 2679.90 | I36: 2775.95 | J36: 2933.90 | K36: 2618 | L36: 2364 | M36: 2.90016
A37: 27 | B37: ALOKINDS | C37: 13.6 | D37: 13.42 | E37: 12.73 | F37: 11.87 | G37: 11.18 | H37: 14.28 | I37: 14.97 | J37: 15.83 | K37: 14.1 | L37: 12.55 | M37: 355.55062
A38: 28 | B38: AMARAJABAT | C38: 599.3 | D38: 601.17 | E38: 593.63 | F38: 587.97 | G38: 580.43 | H38: 606.83 | I38: 614.37 | J38: 620.03 | K38: 608.7 | L38: 595.5 | M38: 2.31004
A39: 29 | B39: AMBER | C39: 1885.6 | D39: 1884.20 | E39: 1869.40 | F39: 1853.20 | G39: 1838.40 | H39: 1900.40 | I39: 1915.20 | J39: 1931.40 | K39: 1899 | L39: 1868 | M39: 0.39912
A40: 30 | B40: AMBUJACEM | C40: 394.4 | D40: 394.28 | E40: 389.17 | F40: 383.93 | G40: 378.82 | H40: 399.52 | I40: 404.63 | J40: 409.87 | K40: 399.4 | L40: 389.05 | M40: 74.19371
A41: 31 | B41: ANGELONE | C41: 1225.95 | D41: 1228.98 | E41: 1217.97 | F41: 1209.98 | G41: 1198.97 | H41: 1236.97 | I41: 1247.98 | J41: 1255.97 | K41: 1240 | L41: 1221 | M41: 2.13122
A42: 32 | B42: ANURAS | C42: 1183.05 | D42: 1170.02 | E42: 1152.03 | F42: 1121.02 | G42: 1103.03 | H42: 1201.03 | I42: 1219.02 | J42: 1250.03 | K42: 1188 | L42: 1139 | M42: 6.83677
A43: 33 | B43: APOLLOHOSP | C43: 4490.8 | D43: 4513.67 | E43: 4454.03 | F43: 4417.27 | G43: 4357.63 | H43: 4550.43 | I43: 4610.07 | J43: 4646.83 | K43: 4573.3 | L43: 4476.9 | M43: 3.849
A44: 34 | B44: APOLLOTYRE | C44: 346.2 | D44: 346.47 | E44: 344.38 | F44: 342.57 | G44: 340.48 | H44: 348.28 | I44: 350.37 | J44: 352.18 | K44: 348.55 | L44: 344.65 | M44: 15.88048
A45: 35 | B45: APTUS | C45: 245.9 | D45: 245.80 | E45: 241.00 | F45: 236.10 | G45: 231.30 | H45: 250.70 | I45: 255.50 | J45: 260.40 | K45: 250.6 | L45: 240.9 | M45: 4.00873
A46: 36 | B46: ASAHIINDIA | C46: 500.45 | D46: 495.15 | E46: 485.30 | F46: 470.15 | G46: 460.30 | H46: 510.30 | I46: 520.15 | J46: 535.30 | K46: 505 | L46: 480 | M46: 1.53488
A47: 37 | B47: ASHOKLEY | C47: 143.7 | D47: 144.28 | E47: 142.62 | F47: 141.53 | G47: 139.87 | H47: 145.37 | I47: 147.03 | J47: 148.12 | K47: 145.95 | L47: 143.2 | M47: 100.87657
A48: 38 | B48: ASIANPAINT | C48: 2899.55 | D48: 2908.75 | E48: 2883.80 | F48: 2868.05 | G48: 2843.10 | H48: 2924.50 | I48: 2949.45 | J48: 2965.20 | K48: 2933.7 | L48: 2893 | M48: 6.638
A49: 39 | B49: ASTERDM | C49: 247.15 | D49: 248.27 | E49: 244.93 | F49: 242.72 | G49: 239.38 | H49: 250.48 | I49: 253.82 | J49: 256.03 | K49: 251.6 | L49: 246.05 | M49: 1.13392
A50: 40 | B50: ASTRAZEN | C50: 3181.7 | D50: 3179.25 | E50: 3162.50 | F50: 3143.30 | G50: 3126.55 | H50: 3198.45 | I50: 3215.20 | J50: 3234.40 | K50: 3196 | L50: 3160.05 | M50: 0.02429
A51: 41 | B51: ASTRAL | C51: 1483.5 | D51: 1476.17 | E51: 1457.33 | F51: 1431.17 | G51: 1412.33 | H51: 1502.33 | I51: 1521.17 | J51: 1547.33 | K51: 1495 | L51: 1450 | M51: 5.81047
A52: 42 | B52: ATUL | C52: 6591.55 | D52: 6616.87 | E52: 6504.68 | F52: 6417.82 | G52: 6305.63 | H52: 6703.73 | I52: 6815.92 | J52: 6902.78 | K52: 6729.05 | L52: 6530 | M52: 2.46859
A53: 43 | B53: AUROPHARMA | C53: 617.3 | D53: 616.82 | E53: 611.33 | F53: 605.37 | G53: 599.88 | H53: 622.78 | I53: 628.27 | J53: 634.23 | K53: 622.3 | L53: 610.85 | M53: 10.46718
A54: 44 | B54: AVANTIFEED | C54: 363.3 | D54: 363.65 | E54: 360.20 | F54: 357.10 | G54: 353.65 | H54: 366.75 | I54: 370.20 | J54: 373.30 | K54: 367.1 | L54: 360.55 | M54: 0.78183
A55: 45 | B55: DMART | C55: 3545.9 | D55: 3534.43 | E55: 3516.12 | F55: 3486.33 | G55: 3468.02 | H55: 3564.22 | I55: 3582.53 | J55: 3612.32 | K55: 3552.75 | L55: 3504.65 | M55: 2.37127
A56: 46 | B56: AXISBANK | C56: 870.65 | D56: 870.43 | E56: 864.47 | F56: 858.28 | G56: 852.32 | H56: 876.62 | I56: 882.58 | J56: 888.77 | K56: 876.4 | L56: 864.25 | M56: 129.47953
A57: 47 | B57: BASF | C57: 2394.6 | D57: 2385.87 | E57: 2373.73 | F57: 2352.87 | G57: 2340.73 | H57: 2406.73 | I57: 2418.87 | J57: 2439.73 | K57: 2398 | L57: 2365 | M57: 0.10462
A58: 48 | B58: BEML | C58: 1234.95 | D58: 1234.83 | E58: 1214.12 | F58: 1193.28 | G58: 1172.57 | H58: 1255.67 | I58: 1276.38 | J58: 1297.22 | K58: 1255.55 | L58: 1214 | M58: 1.53378
A59: 49 | B59: BSE | C59: 527.3 | D59: 529.15 | E59: 521.30 | F59: 515.30 | G59: 507.45 | H59: 535.15 | I59: 543.00 | J59: 549.00 | K59: 537 | L59: 523.15 | M59: 11.00153
A60: 50 | B60: BAJAJ-AUTO | C60: 4498 | D60: 4476.18 | E60: 4445.87 | F60: 4393.73 | G60: 4363.42 | H60: 4528.32 | I60: 4558.63 | J60: 4610.77 | K60: 4506.5 | L60: 4424.05 | M60: 5.22701
A61: 51 | B61: BAJAJELEC | C61: 1141 | D61: 1131.88 | E61: 1109.12 | F61: 1077.23 | G61: 1054.47 | H61: 1163.77 | I61: 1186.53 | J61: 1218.42 | K61: 1154.65 | L61: 1100 | M61: 1.83881
A62: 52 | B62: BAJFINANCE | C62: 6249.15 | D62: 6269.53 | E62: 6204.42 | F62: 6159.68 | G62: 6094.57 | H62: 6314.27 | I62: 6379.38 | J62: 6424.12 | K62: 6334.65 | L62: 6224.8 | M62: 9.91254
A63: 53 | B63: BAJAJFINSV | C63: 1349.05 | D63: 1355.28 | E63: 1339.67 | F63: 1330.28 | G63: 1314.67 | H63: 1364.67 | I63: 1380.28 | J63: 1389.67 | K63: 1370.9 | L63: 1345.9 | M63: 13.87425
A64: 54 | B64: BAJAJHLDNG | C64: 6891.05 | D64: 6914.95 | E64: 6789.90 | F64: 6688.75 | G64: 6563.70 | H64: 7016.10 | I64: 7141.15 | J64: 7242.30 | K64: 7040 | L64: 6813.8 | M64: 0.58293
A65: 55 | B65: BALAMINES | C65: 2226.35 | D65: 2207.52 | E65: 2132.13 | F65: 2037.92 | G65: 1962.53 | H65: 2301.73 | I65: 2377.12 | J65: 2471.33 | K65: 2282.9 | L65: 2113.3 | M65: 3.30502
A66: 56 | B66: BALKRISIND | C66: 2113 | D66: 2099.10 | E66: 2081.05 | F66: 2049.10 | G66: 2031.05 | H66: 2131.05 | I66: 2149.10 | J66: 2181.05 | K66: 2117.15 | L66: 2067.15 | M66: 1.86729
A67: 57 | B67: BALRAMCHIN | C67: 416.65 | D67: 416.65 | E67: 413.50 | F67: 410.35 | G67: 407.20 | H67: 419.80 | I67: 422.95 | J67: 426.10 | K67: 419.8 | L67: 413.5 | M67: 25.2811
A68: 58 | B68: BANDHANBNK | C68: 231.9 | D68: 231.08 | E68: 229.67 | F68: 227.43 | G68: 226.02 | H68: 233.32 | I68: 234.73 | J68: 236.97 | K68: 232.5 | L68: 228.85 | M68: 75.17293
A69: 59 | B69: BANKBARODA | C69: 188.1 | D69: 188.22 | E69: 187.08 | F69: 186.07 | G69: 184.93 | H69: 189.23 | I69: 190.37 | J69: 191.38 | K69: 189.35 | L69: 187.2 | M69: 129.29639
A70: 60 | B70: BANKINDIA | C70: 84.7 | D70: 85.23 | E70: 83.72 | F70: 82.73 | G70: 81.22 | H70: 86.22 | I70: 87.73 | J70: 88.72 | K70: 86.75 | L70: 84.25 | M70: 152.11839
A71: 61 | B71: MAHABANK | C71: 30 | D71: 30.17 | E71: 29.68 | F71: 29.37 | G71: 28.88 | H71: 30.48 | I71: 30.97 | J71: 31.28 | K71: 30.65 | L71: 29.85 | M71: 154.38811
A72: 62 | B72: BATAINDIA | C72: 1491.05 | D72: 1488.92 | E72: 1477.83 | F72: 1464.62 | G72: 1453.53 | H72: 1502.13 | I72: 1513.22 | J72: 1526.43 | K72: 1500 | L72: 1475.7 | M72: 3.37019
A73: 63 | B73: BAYERCROP | C73: 4134.55 | D73: 4148.52 | E73: 4077.03 | F73: 4019.52 | G73: 3948.03 | H73: 4206.03 | I73: 4277.52 | J73: 4335.03 | K73: 4220 | L73: 4091 | M73: 0.16373
A74: 64 | B74: BERGEPAINT | C74: 614.9 | D74: 614.97 | E74: 610.93 | F74: 606.97 | G74: 602.93 | H74: 618.93 | I74: 622.97 | J74: 626.93 | K74: 619 | L74: 611 | M74: 6.33368
A75: 65 | B75: BDL | C75: 991.45 | D75: 997.85 | E75: 979.70 | F75: 967.95 | G75: 949.80 | H75: 1009.60 | I75: 1027.75 | J75: 1039.50 | K75: 1016 | L75: 986.1 | M75: 4.15035
A76: 66 | B76: BEL | C76: 104.3 | D76: 104.30 | E76: 103.50 | F76: 102.70 | G76: 101.90 | H76: 105.10 | I76: 105.90 | J76: 106.70 | K76: 105.1 | L76: 103.5 | M76: 135.98952
A77: 67 | B77: BHARATFORG | C77: 799.7 | D77: 802.05 | E77: 795.65 | F77: 791.60 | G77: 785.20 | H77: 806.10 | I77: 812.50 | J77: 816.55 | K77: 808.45 | L77: 798 | M77: 13.56601
A78: 68 | B78: BHEL | C78: 81.6 | D78: 80.72 | E78: 79.03 | F78: 76.47 | G78: 74.78 | H78: 83.28 | I78: 84.97 | J78: 87.53 | K78: 82.4 | L78: 78.15 | M78: 356.06484
A79: 69 | B79: BPCL | C79: 361.1 | D79: 361.33 | E79: 357.77 | F79: 354.43 | G79: 350.87 | H79: 364.67 | I79: 368.23 | J79: 371.57 | K79: 364.9 | L79: 358 | M79: 32.1298
A80: 70 | B80: BHARATRAS | C80: 10036.6 | D80: 10049.70 | E80: 9899.45 | F80: 9762.30 | G80: 9612.05 | H80: 10186.85 | I80: 10337.10 | J80: 10474.25 | K80: 10199.95 | L80: 9912.55 | M80: 0.02694
A81: 71 | B81: BHARTIARTL | C81: 790.2 | D81: 795.18 | E81: 783.57 | F81: 776.93 | G81: 765.32 | H81: 801.82 | I81: 813.43 | J81: 820.07 | K81: 806.8 | L81: 788.55 | M81: 63.0121
A82: 72 | B82: BIOCON | C82: 238.9 | D82: 237.12 | E82: 234.33 | F82: 229.77 | G82: 226.98 | H82: 241.68 | I82: 244.47 | J82: 249.03 | K82: 239.9 | L82: 232.55 | M82: 50.99831
A83: 73 | B83: BIRLACORPN | C83: 919.5 | D83: 925.52 | E83: 911.08 | F83: 902.67 | G83: 888.23 | H83: 933.93 | I83: 948.37 | J83: 956.78 | K83: 939.95 | L83: 917.1 | M83: 0.6576
A84: 74 | B84: BSOFT | C84: 278.3 | D84: 277.25 | E84: 274.10 | F84: 269.90 | G84: 266.75 | H84: 281.45 | I84: 284.60 | J84: 288.80 | K84: 280.4 | L84: 273.05 | M84: 26.86833
A85: 75 | B85: BLUEDART | C85: 5980.6 | D85: 5979.18 | E85: 5949.42 | F85: 5918.23 | G85: 5888.47 | H85: 6010.37 | I85: 6040.13 | J85: 6071.32 | K85: 6008.95 | L85: 5948 | M85: 0.41904
A86: 76 | B86: BLUESTARCO | C86: 1465 | D86: 1489.08 | E86: 1428.17 | F86: 1391.33 | G86: 1330.42 | H86: 1525.92 | I86: 1586.83 | J86: 1623.67 | K86: 1550 | L86: 1452.25 | M86: 3.20045
A87: 77 | B87: BBTC | C87: 1040.1 | D87: 1046.72 | E87: 1019.93 | F87: 999.77 | G87: 972.98 | H87: 1066.88 | I87: 1093.67 | J87: 1113.83 | K87: 1073.5 | L87: 1026.55 | M87: 2.14449
A88: 78 | B88: BORORENEW | C88: 514.75 | D88: 516.23 | E88: 510.57 | F88: 506.38 | G88: 500.72 | H88: 520.42 | I88: 526.08 | J88: 530.27 | K88: 521.9 | L88: 512.05 | M88: 2.03606
A89: 79 | B89: BOSCHLTD | C89: 19798.3 | D89: 19670.23 | E89: 19490.07 | F89: 19181.83 | G89: 19001.67 | H89: 19978.47 | I89: 20158.63 | J89: 20466.87 | K89: 19850.4 | L89: 19362 | M89: 0.29017
A90: 80 | B90: BRIGADE | C90: 507.2 | D90: 506.73 | E90: 500.02 | F90: 492.83 | G90: 486.12 | H90: 513.92 | I90: 520.63 | J90: 527.82 | K90: 513.45 | L90: 499.55 | M90: 2.91034
A91: 81 | B91: BCG | C91: 9.8 | D91: 9.65 | E91: 9.50 | F91: 9.20 | G91: 9.05 | H91: 9.95 | I91: 10.10 | J91: 10.40 | K91: 9.8 | L91: 9.35 | M91: 250.42147
A92: 82 | B92: BRITANNIA | C92: 4511.05 | D92: 4538.93 | E92: 4472.12 | F92: 4433.18 | G92: 4366.37 | H92: 4577.87 | I92: 4644.68 | J92: 4683.62 | K92: 4605.75 | L92: 4500 | M92: 2.61449
A93: 83 | B93: MAPMYINDIA | C93: 1087.4 | D93: 1097.83 | E93: 1069.67 | F93: 1051.93 | G93: 1023.77 | H93: 1115.57 | I93: 1143.73 | J93: 1161.47 | K93: 1126 | L93: 1080.1 | M93: 1.21233
A94: 84 | B94: CCL | C94: 579.6 | D94: 587.25 | E94: 567.50 | F94: 555.40 | G94: 535.65 | H94: 599.35 | I94: 619.10 | J94: 631.20 | K94: 607 | L94: 575.15 | M94: 4.54627
A95: 85 | B95: CESC | C95: 68.5 | D95: 69.12 | E95: 67.73 | F95: 66.97 | G95: 65.58 | H95: 69.88 | I95: 71.27 | J95: 72.03 | K95: 70.5 | L95: 68.35 | M95: 49.44231
A96: 86 | B96: CGPOWER | C96: 306.85 | D96: 307.82 | E96: 304.28 | F96: 301.72 | G96: 298.18 | H96: 310.38 | I96: 313.92 | J96: 316.48 | K96: 311.35 | L96: 305.25 | M96: 9.99558
A97: 87 | B97: CRISIL | C97: 3520.6 | D97: 3539.15 | E97: 3475.95 | F97: 3431.30 | G97: 3368.10 | H97: 3583.80 | I97: 3647.00 | J97: 3691.65 | K97: 3602.35 | L97: 3494.5 | M97: 0.45177
A98: 88 | B98: CSBBANK | C98: 283.1 | D98: 282.67 | E98: 278.63 | F98: 274.17 | G98: 270.13 | H98: 287.13 | I98: 291.17 | J98: 295.63 | K98: 286.7 | L98: 278.2 | M98: 7.35313
A99: 89 | B99: CAMPUS | C99: 358.55 | D99: 358.85 | E99: 355.70 | F99: 352.85 | G99: 349.70 | H99: 361.70 | I99: 364.85 | J99: 367.70 | K99: 362 | L99: 356 | M99: 3.21069
A100: 90 | B100: CANFINHOME | C100: 627.3 | D100: 625.63 | E100: 618.77 | F100: 610.23 | G100: 603.37 | H100: 634.17 | I100: 641.03 | J100: 649.57 | K100: 632.5 | L100: 617.1 | M100: 10.67045
A101: 91 | B101: CANBK | C101: 320 | D101: 319.68 | E101: 317.82 | F101: 315.63 | G101: 313.77 | H101: 321.87 | I101: 323.73 | J101: 325.92 | K101: 321.55 | L101: 317.5 | M101: 59.31824
A102: 92 | B102: CAPLIPOINT | C102: 684.75 | D102: 683.10 | E102: 677.70 | F102: 670.65 | G102: 665.25 | H102: 690.15 | I102: 695.55 | J102: 702.60 | K102: 688.5 | L102: 676.05 | M102: 0.67435
A103: 93 | B103: CGCL | C103: 645.6 | D103: 647.78 | E103: 638.82 | F103: 632.03 | G103: 623.07 | H103: 654.57 | I103: 663.53 | J103: 670.32 | K103: 656.75 | L103: 641 | M103: 1.6901
A104: 94 | B104: CARBORUNIV | C104: 1116.2 | D104: 1104.75 | E104: 1084.25 | F104: 1052.30 | G104: 1031.80 | H104: 1136.70 | I104: 1157.20 | J104: 1189.15 | K104: 1125.25 | L104: 1072.8 | M104: 3.72352
A105: 95 | B105: CASTROLIND | C105: 121.75 | D105: 121.42 | E105: 120.73 | F105: 119.72 | G105: 119.03 | H105: 122.43 | I105: 123.12 | J105: 124.13 | K105: 122.1 | L105: 120.4 | M105: 9.17056
A106: 96 | B106: CEATLTD | C106: 1521.4 | D106: 1531.45 | E106: 1501.90 | F106: 1482.40 | G106: 1452.85 | H106: 1550.95 | I106: 1580.50 | J106: 1600.00 | K106: 1561 | L106: 1511.95 | M106: 3.11229
A107: 97 | B107: CENTRALBK | C107: 30.2 | D107: 30.47 | E107: 29.73 | F107: 29.27 | G107: 28.53 | H107: 30.93 | I107: 31.67 | J107: 32.13 | K107: 31.2 | L107: 30 | M107: 186.35537
A108: 98 | B108: CDSL | C108: 990.55 | D108: 986.95 | E108: 977.10 | F108: 963.65 | G108: 953.80 | H108: 1000.40 | I108: 1010.25 | J108: 1023.70 | K108: 996.8 | L108: 973.5 | M108: 5.50608
A109: 99 | B109: CENTURYPLY | C109: 524.6 | D109: 525.52 | E109: 521.08 | F109: 517.57 | G109: 513.13 | H109: 529.03 | I109: 533.47 | J109: 536.98 | K109: 529.95 | L109: 522 | M109: 1.67525
A110: 100 | B110: CENTURYTEX | C110: 678.75 | D110: 678.22 | E110: 672.43 | F110: 666.12 | G110: 660.33 | H110: 684.53 | I110: 690.32 | J110: 696.63 | K110: 684 | L110: 671.9 | M110: 2.36544
A111: 101 | B111: CERA | C111: 6347.5 | D111: 6414.38 | E111: 6233.12 | F111: 6118.73 | G111: 5937.47 | H111: 6528.77 | I111: 6710.03 | J111: 6824.42 | K111: 6595.65 | L111: 6300 | M111: 0.42075
A112: 102 | B112: CHALET | C112: 384.15 | D112: 387.22 | E112: 379.43 | F112: 374.72 | G112: 366.93 | H112: 391.93 | I112: 399.72 | J112: 404.43 | K112: 395 | L112: 382.5 | M112: 2.69532
A113: 103 | B113: CHAMBLFERT | C113: 287.85 | D113: 288.25 | E113: 285.25 | F113: 282.65 | G113: 279.65 | H113: 290.85 | I113: 293.85 | J113: 296.45 | K113: 291.25 | L113: 285.65 | M113: 10.16621
A114: 104 | B114: CHEMPLASTS | C114: 430.05 | D114: 430.50 | E114: 424.55 | F114: 419.05 | G114: 413.10 | H114: 436.00 | I114: 441.95 | J114: 447.45 | K114: 436.45 | L114: 425 | M114: 7.82712
A115: 105 | B115: CHOLAHLDNG | C115: 623.3 | D115: 619.77 | E115: 613.53 | F115: 603.77 | G115: 597.53 | H115: 629.53 | I115: 635.77 | J115: 645.53 | K115: 626 | L115: 610 | M115: 2.58149
A116: 106 | B116: CHOLAFIN | C116: 874.7 | D116: 880.25 | E116: 865.60 | F116: 856.50 | G116: 841.85 | H116: 889.35 | I116: 904.00 | J116: 913.10 | K116: 894.9 | L116: 871.15 | M116: 22.87265
A117: 107 | B117: CIPLA | C117: 917.7 | D117: 914.93 | E117: 908.87 | F117: 900.03 | G117: 893.97 | H117: 923.77 | I117: 929.83 | J117: 938.67 | K117: 921 | L117: 906.1 | M117: 18.57324
A118: 108 | B118: CUB | C118: 142.8 | D118: 142.28 | E118: 141.32 | F118: 139.83 | G118: 138.87 | H118: 143.77 | I118: 144.73 | J118: 146.22 | K118: 143.25 | L118: 140.8 | M118: 40.65158
A119: 109 | B119: CLEAN | C119: 1468.9 | D119: 1471.20 | E119: 1454.60 | F119: 1440.30 | G119: 1423.70 | H119: 1485.50 | I119: 1502.10 | J119: 1516.40 | K119: 1487.8 | L119: 1456.9 | M119: 0.92853
A120: 110 | B120: COALINDIA | C120: 236.1 | D120: 235.55 | E120: 233.65 | F120: 231.20 | G120: 229.30 | H120: 238.00 | I120: 239.90 | J120: 242.35 | K120: 237.45 | L120: 233.1 | M120: 37.73537
A121: 111 | B121: COCHINSHIP | C121: 535.1 | D121: 526.80 | E121: 513.70 | F121: 492.30 | G121: 479.20 | H121: 548.20 | I121: 561.30 | J121: 582.70 | K121: 539.9 | L121: 505.4 | M121: 16.4604
A122: 112 | B122: COFORGE | C122: 4130.65 | D122: 4142.30 | E122: 4078.25 | F122: 4025.85 | G122: 3961.80 | H122: 4194.70 | I122: 4258.75 | J122: 4311.15 | K122: 4206.35 | L122: 4089.9 | M122: 11.58608
A123: 113 | B123: COLPAL | C123: 1575.35 | D123: 1580.78 | E123: 1566.57 | F123: 1557.78 | G123: 1543.57 | H123: 1589.57 | I123: 1603.78 | J123: 1612.57 | K123: 1595 | L123: 1572 | M123: 1.4421
A124: 114 | B124: CAMS | C124: 2049.15 | D124: 2056.53 | E124: 2037.67 | F124: 2026.18 | G124: 2007.32 | H124: 2068.02 | I124: 2086.88 | J124: 2098.37 | K124: 2075.4 | L124: 2045.05 | M124: 0.74076
A125: 115 | B125: CONCOR | C125: 620.85 | D125: 618.52 | E125: 613.73 | F125: 606.62 | G125: 601.83 | H125: 625.63 | I125: 630.42 | J125: 637.53 | K125: 623.3 | L125: 611.4 | M125: 10.46906
A126: 116 | B126: COROMANDEL | C126: 948.1 | D126: 946.70 | E126: 940.40 | F126: 932.70 | G126: 926.40 | H126: 954.40 | I126: 960.70 | J126: 968.40 | K126: 953 | L126: 939 | M126: 2.0366
A127: 117 | B127: CREDITACC | C127: 975.6 | D127: 977.38 | E127: 964.77 | F127: 953.93 | G127: 941.32 | H127: 988.22 | I127: 1000.83 | J127: 1011.67 | K127: 990 | L127: 966.55 | M127: 0.95573
A128: 118 | B128: CROMPTON | C128: 258.65 | D128: 257.45 | E128: 254.90 | F128: 251.15 | G128: 248.60 | H128: 261.20 | I128: 263.75 | J128: 267.50 | K128: 260 | L128: 253.7 | M128: 55.77757
A129: 119 | B129: CUMMINSIND | C129: 1600.2 | D129: 1591.62 | E129: 1577.73 | F129: 1555.27 | G129: 1541.38 | H129: 1614.08 | I129: 1627.97 | J129: 1650.43 | K129: 1605.5 | L129: 1569.15 | M129: 3.67587
A130: 120 | B130: CYIENT | C130: 1169.85 | D130: 1176.05 | E130: 1145.80 | F130: 1121.75 | G130: 1091.50 | H130: 1200.10 | I130: 1230.35 | J130: 1254.40 | K130: 1206.3 | L130: 1152 | M130: 3.16919
A131: 121 | B131: DCMSHRIRAM | C131: 819.35 | D131: 820.80 | E131: 811.60 | F131: 803.85 | G131: 794.65 | H131: 828.55 | I131: 837.75 | J131: 845.50 | K131: 830 | L131: 813.05 | M131: 0.40841
A132: 122 | B132: DLF | C132: 424.25 | D132: 424.32 | E132: 421.03 | F132: 417.82 | G132: 414.53 | H132: 427.53 | I132: 430.82 | J132: 434.03 | K132: 427.6 | L132: 421.1 | M132: 35.19033
A133: 123 | B133: DABUR | C133: 536.45 | D133: 535.22 | E133: 533.28 | F133: 530.12 | G133: 528.18 | H133: 538.38 | I133: 540.32 | J133: 543.48 | K133: 537.15 | L133: 532.05 | M133: 10.99379
A134: 124 | B134: DALBHARAT | C134: 2000.25 | D134: 1997.80 | E134: 1986.60 | F134: 1972.95 | G134: 1961.75 | H134: 2011.45 | I134: 2022.65 | J134: 2036.30 | K134: 2009 | L134: 1984.15 | M134: 1.83863
A135: 125 | B135: DEEPAKFERT | C135: 591.65 | D135: 595.47 | E135: 585.78 | F135: 579.92 | G135: 570.23 | H135: 601.33 | I135: 611.02 | J135: 616.88 | K135: 605.15 | L135: 589.6 | M135: 3.80861
A136: 126 | B136: DEEPAKNTR | C136: 1895.25 | D136: 1896.47 | E136: 1881.43 | F136: 1867.62 | G136: 1852.58 | H136: 1910.28 | I136: 1925.32 | J136: 1939.13 | K136: 1911.5 | L136: 1882.65 | M136: 3.84075
A137: 127 | B137: DELHIVERY | C137: 364.6 | D137: 367.32 | E137: 360.28 | F137: 355.97 | G137: 348.93 | H137: 371.63 | I137: 378.67 | J137: 382.98 | K137: 374.35 | L137: 363 | M137: 11.99097
A138: 128 | B138: DELTACORP | C138: 209.3 | D138: 208.12 | E138: 205.88 | F138: 202.47 | G138: 200.23 | H138: 211.53 | I138: 213.77 | J138: 217.18 | K138: 210.35 | L138: 204.7 | M138: 29.99652
A139: 129 | B139: DEVYANI | C139: 170.6 | D139: 168.28 | E139: 165.32 | F139: 160.03 | G139: 157.07 | H139: 173.57 | I139: 176.53 | J139: 181.82 | K139: 171.25 | L139: 163 | M139: 49.81741
A140: 130 | B140: DHANI | C140: 39.1 | D140: 39.63 | E140: 37.77 | F140: 36.43 | G140: 34.57 | H140: 40.97 | I140: 42.83 | J140: 44.17 | K140: 41.5 | L140: 38.3 | M140: 69.42714
A141: 131 | B141: DBL | C141: 179.6 | D141: 180.47 | E141: 177.98 | F141: 176.37 | G141: 173.88 | H141: 182.08 | I141: 184.57 | J141: 186.18 | K141: 182.95 | L141: 178.85 | M141: 3.18974
A142: 132 | B142: DIVISLAB | C142: 3253.7 | D142: 3261.02 | E142: 3237.68 | F142: 3221.67 | G142: 3198.33 | H142: 3277.03 | I142: 3300.37 | J142: 3316.38 | K142: 3284.35 | L142: 3245 | M142: 3.20408
A143: 133 | B143: DIXON | C143: 2909.1 | D143: 2919.30 | E143: 2889.80 | F143: 2870.50 | G143: 2841.00 | H143: 2938.60 | I143: 2968.10 | J143: 2987.40 | K143: 2948.8 | L143: 2900 | M143: 1.78211
A144: 134 | B144: LALPATHLAB | C144: 1956.3 | D144: 1957.88 | E144: 1943.77 | F144: 1931.23 | G144: 1917.12 | H144: 1970.42 | I144: 1984.53 | J144: 1997.07 | K144: 1972 | L144: 1945.35 | M144: 1.63437
A145: 135 | B145: DRREDDY | C145: 4950.4 | D145: 4937.58 | E145: 4916.22 | F145: 4882.03 | G145: 4860.67 | H145: 4971.77 | I145: 4993.13 | J145: 5027.32 | K145: 4958.95 | L145: 4903.4 | M145: 2.41978
A146: 136 | B146: EIDPARRY | C146: 506 | D146: 505.83 | E146: 503.17 | F146: 500.33 | G146: 497.67 | H146: 508.67 | I146: 511.33 | J146: 514.17 | K146: 508.5 | L146: 503 | M146: 0.72866
A147: 137 | B147: EIHOTEL | C147: 188.6 | D147: 189.02 | E147: 186.13 | F147: 183.67 | G147: 180.78 | H147: 191.48 | I147: 194.37 | J147: 196.83 | K147: 191.9 | L147: 186.55 | M147: 9.47046
A148: 138 | B148: EPL | C148: 173.65 | D148: 174.93 | E148: 171.22 | F148: 168.78 | G148: 165.07 | H148: 177.37 | I148: 181.08 | J148: 183.52 | K148: 178.65 | L148: 172.5 | M148: 4.97669
A149: 139 | B149: EASEMYTRIP | C149: 48.4 | D149: 48.50 | E149: 47.95 | F149: 47.50 | G149: 46.95 | H149: 48.95 | I149: 49.50 | J149: 49.95 | K149: 49.05 | L149: 48.05 | M149: 51.18383
A150: 140 | B150: EDELWEISS | C150: 66.6 | D150: 67.92 | E150: 64.38 | F150: 62.17 | G150: 58.63 | H150: 70.13 | I150: 73.67 | J150: 75.88 | K150: 71.45 | L150: 65.7 | M150: 169.99074
A151: 141 | B151: EICHERMOT | C151: 3356.15 | D151: 3354.98 | E151: 3326.17 | F151: 3296.18 | G151: 3267.37 | H151: 3384.97 | I151: 3413.78 | J151: 3443.77 | K151: 3383.8 | L151: 3325 | M151: 8.38718
A152: 142 | B152: ELGIEQUIP | C152: 458.3 | D152: 462.75 | E152: 450.55 | F152: 442.80 | G152: 430.60 | H152: 470.50 | I152: 482.70 | J152: 490.45 | K152: 474.95 | L152: 455 | M152: 2.4215
A153: 143 | B153: EMAMILTD | C153: 380.45 | D153: 378.85 | E153: 376.20 | F153: 371.95 | G153: 369.30 | H153: 383.10 | I153: 385.75 | J153: 390.00 | K153: 381.5 | L153: 374.6 | M153: 6.58527
A154: 144 | B154: ENDURANCE | C154: 1359 | D154: 1354.70 | E154: 1339.50 | F154: 1320.00 | G154: 1304.80 | H154: 1374.20 | I154: 1389.40 | J154: 1408.90 | K154: 1369.9 | L154: 1335.2 | M154: 0.39978
A155: 145 | B155: ENGINERSIN | C155: 82.55 | D155: 82.80 | E155: 81.90 | F155: 81.25 | G155: 80.35 | H155: 83.45 | I155: 84.35 | J155: 85.00 | K155: 83.7 | L155: 82.15 | M155: 12.03546
A156: 146 | B156: EQUITASBNK | C156: 70.6 | D156: 70.38 | E156: 69.07 | F156: 67.53 | G156: 66.22 | H156: 71.92 | I156: 73.23 | J156: 74.77 | K156: 71.7 | L156: 68.85 | M156: 59.03957
A157: 147 | B157: ESCORTS | C157: 1985.95 | D157: 1984.38 | E157: 1965.72 | F157: 1945.48 | G157: 1926.82 | H157: 2004.62 | I157: 2023.28 | J157: 2043.52 | K157: 2003.05 | L157: 1964.15 | M157: 2.66621
A158: 148 | B158: EXIDEIND | C158: 192.65 | D158: 193.75 | E158: 190.25 | F158: 187.85 | G158: 184.35 | H158: 196.15 | I158: 199.65 | J158: 202.05 | K158: 197.25 | L158: 191.35 | M158: 33.12587
A159: 149 | B159: FDC | C159: 295.35 | D159: 295.45 | E159: 290.90 | F159: 286.45 | G159: 281.90 | H159: 299.90 | I159: 304.45 | J159: 308.90 | K159: 300 | L159: 291 | M159: 1.20704
A160: 150 | B160: NYKAA | C160: 124.75 | D160: 125.18 | E160: 121.72 | F160: 118.68 | G160: 115.22 | H160: 128.22 | I160: 131.68 | J160: 134.72 | K160: 128.65 | L160: 122.15 | M160: 230.35078
A161: 151 | B161: FEDERALBNK | C161: 136.45 | D161: 136.08 | E161: 135.37 | F161: 134.28 | G161: 133.57 | H161: 137.17 | I161: 137.88 | J161: 138.97 | K161: 136.8 | L161: 135 | M161: 71.07201
A162: 152 | B162: FACT | C162: 350.45 | D162: 351.03 | E162: 340.42 | F162: 330.38 | G162: 319.77 | H162: 361.07 | I162: 371.68 | J162: 381.72 | K162: 361.65 | L162: 341 | M162: 19.03213
A163: 153 | B163: FINEORG | C163: 4485.6 | D163: 4486.32 | E163: 4454.28 | F163: 4422.97 | G163: 4390.93 | H163: 4517.63 | I163: 4549.67 | J163: 4580.98 | K163: 4518.35 | L163: 4455 | M163: 0.28942
A164: 154 | B164: FINCABLES | C164: 908.65 | D164: 910.60 | E164: 898.50 | F164: 888.35 | G164: 876.25 | H164: 920.75 | I164: 932.85 | J164: 943.00 | K164: 922.7 | L164: 900.45 | M164: 4.74136
A165: 155 | B165: FINPIPE | C165: 170.1 | D165: 169.90 | E165: 168.20 | F165: 166.30 | G165: 164.60 | H165: 171.80 | I165: 173.50 | J165: 175.40 | K165: 171.6 | L165: 168 | M165: 4.39377
A166: 156 | B166: FSL | C166: 119.15 | D166: 118.23 | E166: 116.92 | F166: 114.68 | G166: 113.37 | H166: 120.47 | I166: 121.78 | J166: 124.02 | K166: 119.55 | L166: 116 | M166: 14.6695
A167: 157 | B167: FORTIS | C167: 260.7 | D167: 260.95 | E167: 258.75 | F167: 256.80 | G167: 254.60 | H167: 262.90 | I167: 265.10 | J167: 267.05 | K167: 263.15 | L167: 259 | M167: 4.36355
A168: 158 | B168: GRINFRA | C168: 999.85 | D168: 1002.62 | E168: 986.23 | F168: 972.62 | G168: 956.23 | H168: 1016.23 | I168: 1032.62 | J168: 1046.23 | K168: 1019 | L168: 989 | M168: 0.47076
A169: 159 | B169: GAIL | C169: 108.3 | D169: 108.03 | E169: 107.52 | F169: 106.73 | G169: 106.22 | H169: 108.82 | I169: 109.33 | J169: 110.12 | K169: 108.55 | L169: 107.25 | M169: 72.63913
A170: 160 | B170: GMMPFAUDLR | C170: 1478.75 | D170: 1487.03 | E170: 1464.67 | F170: 1450.58 | G170: 1428.22 | H170: 1501.12 | I170: 1523.48 | J170: 1537.57 | K170: 1509.4 | L170: 1472.95 | M170: 0.54641
A171: 161 | B171: GMRINFRA | C171: 45.8 | D171: 45.78 | E171: 45.42 | F171: 45.03 | G171: 44.67 | H171: 46.17 | I171: 46.53 | J171: 46.92 | K171: 46.15 | L171: 45.4 | M171: 102.57295
A172: 162 | B172: GALAXYSURF | C172: 2462.85 | D172: 2474.48 | E172: 2438.37 | F172: 2413.88 | G172: 2377.77 | H172: 2498.97 | I172: 2535.08 | J172: 2559.57 | K172: 2510.6 | L172: 2450 | M172: 0.19659
A173: 163 | B173: GARFIBRES | C173: 2910.1 | D173: 2906.28 | E173: 2872.67 | F173: 2835.23 | G173: 2801.62 | H173: 2943.72 | I173: 2977.33 | J173: 3014.77 | K173: 2939.9 | L173: 2868.85 | M173: 0.11698
A174: 164 | B174: GICRE | C174: 156.05 | D174: 155.78 | E174: 153.72 | F174: 151.38 | G174: 149.32 | H174: 158.12 | I174: 160.18 | J174: 162.52 | K174: 157.85 | L174: 153.45 | M174: 9.66196
A175: 165 | B175: GLAND | C175: 1375.7 | D175: 1379.62 | E175: 1364.23 | F175: 1352.77 | G175: 1337.38 | H175: 1391.08 | I175: 1406.47 | J175: 1417.93 | K175: 1395 | L175: 1368.15 | M175: 4.06309
A176: 166 | B176: GLAXO | C176: 1230.6 | D176: 1235.83 | E176: 1223.27 | F176: 1215.93 | G176: 1203.37 | H176: 1243.17 | I176: 1255.73 | J176: 1263.07 | K176: 1248.4 | L176: 1228.5 | M176: 3.33169
A177: 167 | B177: GLENMARK | C177: 543.9 | D177: 549.87 | E177: 536.28 | F177: 528.67 | G177: 515.08 | H177: 557.48 | I177: 571.07 | J177: 578.68 | K177: 563.45 | L177: 542.25 | M177: 14.72378
A178: 168 | B178: GOCOLORS | C178: 1095.65 | D178: 1089.18 | E178: 1067.87 | F178: 1040.08 | G178: 1018.77 | H178: 1116.97 | I178: 1138.28 | J178: 1166.07 | K178: 1110.5 | L178: 1061.4 | M178: 0.41852
A179: 169 | B179: GODFRYPHLP | C179: 1698.35 | D179: 1727.12 | E179: 1665.23 | F179: 1632.12 | G179: 1570.23 | H179: 1760.23 | I179: 1822.12 | J179: 1855.23 | K179: 1789 | L179: 1694 | M179: 1.58754
A180: 170 | B180: GODREJAGRO | C180: 444.1 | D180: 442.60 | E180: 437.70 | F180: 431.30 | G180: 426.40 | H180: 449.00 | I180: 453.90 | J180: 460.30 | K180: 447.5 | L180: 436.2 | M180: 0.73876
A181: 171 | B181: GODREJCP | C181: 923.35 | D181: 918.12 | E181: 907.23 | F181: 891.12 | G181: 880.23 | H181: 934.23 | I181: 945.12 | J181: 961.23 | K181: 929 | L181: 902 | M181: 29.16163
A182: 172 | B182: GODREJIND | C182: 452.55 | D182: 451.67 | E182: 448.53 | F182: 444.52 | G182: 441.38 | H182: 455.68 | I182: 458.82 | J182: 462.83 | K182: 454.8 | L182: 447.65 | M182: 0.85294
A183: 173 | B183: GODREJPROP | C183: 1328.75 | D183: 1324.07 | E183: 1313.33 | F183: 1297.92 | G183: 1287.18 | H183: 1339.48 | I183: 1350.22 | J183: 1365.63 | K183: 1334.8 | L183: 1308.65 | M183: 8.05825
A184: 174 | B184: GRANULES | C184: 300.85 | D184: 301.08 | E184: 298.52 | F184: 296.18 | G184: 293.62 | H184: 303.42 | I184: 305.98 | J184: 308.32 | K184: 303.65 | L184: 298.75 | M184: 10.54387
A185: 175 | B185: GRAPHITE | C185: 305.05 | D185: 303.37 | E185: 298.13 | F185: 291.22 | G185: 285.98 | H185: 310.28 | I185: 315.52 | J185: 322.43 | K185: 308.6 | L185: 296.45 | M185: 25.5291
A186: 176 | B186: GRASIM | C186: 1739.55 | D186: 1732.97 | E186: 1722.13 | F186: 1704.72 | G186: 1693.88 | H186: 1750.38 | I186: 1761.22 | J186: 1778.63 | K186: 1743.8 | L186: 1715.55 | M186: 3.94867
A187: 177 | B187: GESHIP | C187: 668.4 | D187: 674.67 | E187: 659.28 | F187: 650.17 | G187: 634.78 | H187: 683.78 | I187: 699.17 | J187: 708.28 | K187: 690.05 | L187: 665.55 | M187: 1.82371
A188: 178 | B188: GREENPANEL | C188: 301.3 | D188: 301.97 | E188: 297.38 | F188: 293.47 | G188: 288.88 | H188: 305.88 | I188: 310.47 | J188: 314.38 | K188: 306.55 | L188: 298.05 | M188: 3.89304
A189: 179 | B189: GRINDWELL | C189: 1890.85 | D189: 1900.27 | E189: 1870.53 | F189: 1850.22 | G189: 1820.48 | H189: 1920.58 | I189: 1950.32 | J189: 1970.63 | K189: 1930 | L189: 1879.95 | M189: 0.51701
A190: 180 | B190: GUJALKALI | C190: 687.55 | D190: 689.78 | E190: 682.12 | F190: 676.68 | G190: 669.02 | H190: 695.22 | I190: 702.88 | J190: 708.32 | K190: 697.45 | L190: 684.35 | M190: 2.85758
A191: 181 | B191: GAEL | C191: 292.55 | D191: 293.95 | E191: 288.60 | F191: 284.65 | G191: 279.30 | H191: 297.90 | I191: 303.25 | J191: 307.20 | K191: 299.3 | L191: 290 | M191: 8.11912
A192: 182 | B192: FLUOROCHEM | C192: 3370.05 | D192: 3388.27 | E192: 3336.78 | F192: 3303.52 | G192: 3252.03 | H192: 3421.53 | I192: 3473.02 | J192: 3506.28 | K192: 3439.75 | L192: 3355 | M192: 0.63463
A193: 183 | B193: GUJGASLTD | C193: 469.95 | D193: 468.85 | E193: 465.60 | F193: 461.25 | G193: 458.00 | H193: 473.20 | I193: 476.45 | J193: 480.80 | K193: 472.1 | L193: 464.5 | M193: 7.44818
A194: 184 | B194: GNFC | C194: 597.15 | D194: 595.10 | E194: 587.20 | F194: 577.25 | G194: 569.35 | H194: 605.05 | I194: 612.95 | J194: 622.90 | K194: 603 | L194: 585.15 | M194: 18.32733
A195: 185 | B195: GPPL | C195: 112.1 | D195: 112.98 | E195: 110.82 | F195: 109.53 | G195: 107.37 | H195: 114.27 | I195: 116.43 | J195: 117.72 | K195: 115.15 | L195: 111.7 | M195: 10.16896
A196: 186 | B196: GSFC | C196: 162.8 | D196: 162.78 | E196: 160.27 | F196: 157.73 | G196: 155.22 | H196: 165.32 | I196: 167.83 | J196: 170.37 | K196: 165.3 | L196: 160.25 | M196: 89.23437
A197: 187 | B197: GSPL | C197: 284.15 | D197: 284.80 | E197: 281.10 | F197: 278.05 | G197: 274.35 | H197: 287.85 | I197: 291.55 | J197: 294.60 | K197: 288.5 | L197: 281.75 | M197: 3.32331
A198: 188 | B198: HEG | C198: 1127.4 | D198: 1131.23 | E198: 1109.17 | F198: 1090.93 | G198: 1068.87 | H198: 1149.47 | I198: 1171.53 | J198: 1189.77 | K198: 1153.3 | L198: 1113 | M198: 4.98985
A199: 189 | B199: HCLTECH | C199: 1067.55 | D199: 1068.78 | E199: 1062.77 | F199: 1057.98 | G199: 1051.97 | H199: 1073.57 | I199: 1079.58 | J199: 1084.37 | K199: 1074.8 | L199: 1064 | M199: 19.05168
A200: 190 | B200: HDFCAMC | C200: 1808.85 | D200: 1799.28 | E200: 1777.57 | F200: 1746.28 | G200: 1724.57 | H200: 1830.57 | I200: 1852.28 | J200: 1883.57 | K200: 1821 | L200: 1768 | M200: 3.45795
A201: 191 | B201: HDFCBANK | C201: 1687.25 | D201: 1689.42 | E201: 1679.83 | F201: 1672.42 | G201: 1662.83 | H201: 1696.83 | I201: 1706.42 | J201: 1713.83 | K201: 1699 | L201: 1682 | M201: 161.10592
A202: 192 | B202: HDFCLIFE | C202: 544.5 | D202: 539.97 | E202: 534.08 | F202: 523.67 | G202: 517.78 | H202: 550.38 | I202: 556.27 | J202: 566.68 | K202: 545.85 | L202: 529.55 | M202: 42.39067
A203: 193 | B203: HFCL | C203: 64.45 | D203: 64.72 | E203: 63.83 | F203: 63.22 | G203: 62.33 | H203: 65.33 | I203: 66.22 | J203: 66.83 | K203: 65.6 | L203: 64.1 | M203: 41.97389
A204: 194 | B204: HLEGLAS | C204: 601.1 | D204: 600.80 | E204: 595.75 | F204: 590.40 | G204: 585.35 | H204: 606.15 | I204: 611.20 | J204: 616.55 | K204: 605.85 | L204: 595.45 | M204: 0.44717
A205: 195 | B205: HAPPSTMNDS | C205: 828.25 | D205: 829.78 | E205: 822.77 | F205: 817.28 | G205: 810.27 | H205: 835.27 | I205: 842.28 | J205: 847.77 | K205: 836.8 | L205: 824.3 | M205: 2.04903
A206: 196 | B206: HATSUN | C206: 888.8 | D206: 894.63 | E206: 840.27 | F206: 791.73 | G206: 737.37 | H206: 943.17 | I206: 997.53 | J206: 1046.07 | K206: 949 | L206: 846.1 | M206: 1.14426
... 320 more rows

Sheet Bulk Deals
E6: Back To Main Page
A7: Subject : | B7: BULK DEAL | D7: =Main!B10 -> 2023-05-03
A9: Date | B9: Scrip code | C9: Scrip Name | D9: Client Name | E9: Buy / Sell | F9: Quantity Traded | G9: Trade Price / Wt.Avg.trade price | H9: Exchange
A10: 2023-05-02 | B10: 537766 | C10: BCP | D10: AMIT BHALLA | E10: SELL | F10: 434,000 | G10: 3.93 | H10: BSE
A11: 2023-05-02 | B11: 514440 | C11: BPTEX | D11: HANUMANMAL MOTILAL CHHAGANMAL PAGARIA | E11: SELL | F11: 2,000 | G11: 37.03 | H11: BSE
A12: 2023-05-02 | B12: 532541 | C12: COFORGE | D12: MOTILAL OSWAL A/C MOTILAL OSWAL MOST FOCUSED MULTICAP 35 FUND | E12: BUY | F12: 484,848 | G12: 4125 | H12: BSE
A13: 2023-05-02 | B13: 532541 | C13: COFORGE | D13: HULST B V | E13: SELL | F13: 2,150,000 | G13: 4125.44 | H13: BSE
A14: 2023-05-02 | B14: 504340 | C14: CONFINT | D14: MANOJ VIMALSINGH PAMECHA | E14: SELL | F14: 51,747 | G14: 5.82 | H14: BSE
A15: 2023-05-02 | B15: 504340 | C15: CONFINT | D15: AMIT SUBHASHCHANDRA BHALGAT | E15: BUY | F15: 51,500 | G15: 5.82 | H15: BSE
A16: 2023-05-02 | B16: 531553 | C16: DRL | D16: BHAVYAKUMAR DINESHBHAI TURAKHIA | E16: SELL | F16: 70,300 | G16: 8.89 | H16: BSE
A17: 2023-05-02 | B17: 531553 | C17: DRL | D17: TARABAI KAMALKISHORE GOENKA | E17: BUY | F17: 7,641 | G17: 8.31 | H17: BSE
A18: 2023-05-02 | B18: 531553 | C18: DRL | D18: TARABAI KAMALKISHORE GOENKA | E18: SELL | F18: 38,538 | G18: 9.1 | H18: BSE
A19: 2023-05-02 | B19: 531553 | C19: DRL | D19: NANDHAGOPAN POTTI RAJAN | E19: BUY | F19: 93,213 | G19: 8.89 | H19: BSE
A20: 2023-05-02 | B20: 543895 | C20: EXHICON | D20: VINEY EQUITY MARKET LLP | E20: SELL | F20: 60,000 | G20: 101.8 | H20: BSE
A21: 2023-05-02 | B21: 543895 | C21: EXHICON | D21: MANSI SHARE & STOCK ADVISORS PRIVATE LIMITED | E21: BUY | F21: 64,000 | G21: 101.85 | H21: BSE
A22: 2023-05-02 | B22: 543895 | C22: EXHICON | D22: MANSI SHARE & STOCK ADVISORS PRIVATE LIMITED | E22: SELL | F22: 8,000 | G22: 99.09 | H22: BSE
A23: 2023-05-02 | B23: 540936 | C23: GGL | D23: HIRENBHAI BELDAR | E23: SELL | F23: 51,129 | G23: 11.28 | H23: BSE
A24: 2023-05-02 | B24: 530663 | C24: GOYALASS | D24: SULEKHA RANI | E24: BUY | F24: 2 | G24: 3.2 | H24: BSE
A25: 2023-05-02 | B25: 530663 | C25: GOYALASS | D25: SULEKHA RANI | E25: SELL | F25: 363,193 | G25: 3.08 | H25: BSE
A26: 2023-05-02 | B26: 526967 | C26: HEERAISP | D26: AJIT CHANDRASHEKHAR MOHITE | E26: SELL | F26: 33,400 | G26: 5.89 | H26: BSE
A27: 2023-05-02 | B27: 526967 | C27: HEERAISP | D27: RANJANA AGARWAL | E27: BUY | F27: 100,000 | G27: 5.9 | H27: BSE
A28: 2023-05-02 | B28: 526967 | C28: HEERAISP | D28: VAIBHAV GUPTA | E28: SELL | F28: 39,001 | G28: 6.36 | H28: BSE
A29: 2023-05-02 | B29: 526967 | C29: HEERAISP | D29: SUMONA KUSHWAHA | E29: SELL | F29: 56,835 | G29: 5.91 | H29: BSE
A30: 2023-05-02 | B30: 526967 | C30: HEERAISP | D30: NAYANABEN HARISHBHAI MENDPARA | E30: SELL | F30: 43,968 | G30: 5.79 | H30: BSE
A31: 2023-05-02 | B31: 539519 | C31: MAYUKH | D31: MIHIR D VASHI (HUF) | E31: BUY | F31: 40,000 | G31: 9.86 | H31: BSE
A32: 2023-05-02 | B32: 543351 | C32: NBL | D32: BEELINE BROKING LIMITED | E32: SELL | F32: 14,400 | G32: 73.59 | H32: BSE
A33: 2023-05-02 | B33: 530095 | C33: PRADHIN | D33: KANTA DEVI SAMDARIA | E33: BUY | F33: 30,000 | G33: 50.23 | H33: BSE
A34: 2023-05-02 | B34: 539515 | C34: QUINT | D34: AUTHUM INVESTMENT & INFRASTRUCTURE LIMITED | E34: SELL | F34: 297,409 | G34: 111.77 | H34: BSE
A35: 2023-05-02 | B35: 531370 | C35: SPAR | D35: MONA KETAN SHAH | E35: SELL | F35: 5,319 | G35: 23.62 | H35: BSE
A36: 2023-05-02 | B36: 531370 | C36: SPAR | D36: MONA KETAN SHAH | E36: BUY | F36: 25,014 | G36: 25.09 | H36: BSE
A37: 2023-05-02 | B37: 531370 | C37: SPAR | D37: MABLE RAJESH | E37: SELL | F37: 30,000 | G37: 25.55 | H37: BSE
A38: 2023-05-02 | B38: 531370 | C38: SPAR | D38: MABLE RAJESH | E38: BUY | F38: 30,000 | G38: 25.31 | H38: BSE
A39: 2023-05-02 | B39: 511700 | C39: STANCAP | D39: JITESH SHARMA | E39: SELL | F39: 24,465 | G39: 83.97 | H39: BSE
A40: 2023-05-02 | B40: 511700 | C40: STANCAP | D40: MADHUKAR SHETH | E40: BUY | F40: 30,000 | G40: 83.97 | H40: BSE
A41: 2023-05-02 | B41: 511700 | C41: STANCAP | D41: PNEUMATIC SERVICES PRIVATE LIMITED | E41: BUY | F41: 35,000 | G41: 83.97 | H41: BSE
A42: 2023-05-02 | B42: 511700 | C42: STANCAP | D42: SAROJ GUPTA | E42: BUY | F42: 40,100 | G42: 85.22 | H42: BSE
A43: 2023-05-02 | B43: 511700 | C43: STANCAP | D43: SAROJ GUPTA | E43: SELL | F43: 8,000 | G43: 87.32 | H43: BSE
A44: 2023-05-02 | B44: 511700 | C44: STANCAP | D44: ANISHSARNA | E44: SELL | F44: 26,426 | G44: 84.9 | H44: BSE
A45: 2023-05-02 | B45: 543828 | C45: SUDARSHAN | D45: SHERWOOD SECURITIES PVT LTD | E45: SELL | F45: 172,800 | G45: 72.23 | H45: BSE
A46: 2023-05-02 | B46: 543828 | C46: SUDARSHAN | D46: SHERWOOD SECURITIES PVT LTD | E46: BUY | F46: 3,200 | G46: 71.75 | H46: BSE
A47: 2023-05-02 | B47: 543828 | C47: SUDARSHAN | D47: PIYUSH SECURITIES PVT LTD | E47: BUY | F47: 129,600 | G47: 72 | H47: BSE
A48: 2023-05-02 | B48: 542765 | C48: TRANSPACT | D48: SUMITRA KAPOOR | E48: BUY | F48: 2,000 | G48: 202.38 | H48: BSE
A49: 2023-05-02 | B49: 541735 | C49: VIVANTA | D49: PARTH HEMANT PARIKH | E49: SELL | F49: 832,582 | G49: 6.18 | H49: BSE
A50: 2023-05-02 | B50: 536846 | C50: YURANUS | D50: MANJULA VINOD KOTHARI | E50: BUY | F50: 27,000 | G50: 30.27 | H50: BSE
A51: 2023-05-02 | B51: AGRITECH | C51: Agri-Tech (India) Limited | D51: COMPANY SHIVAAY TRADING | E51: BUY | F51: 71,000 | G51: 111 | H51: NSE
A52: 2023-05-02 | B52: AGRITECH | C52: Agri-Tech (India) Limited | D52: VEENA RAJESH SHAH | E52: BUY | F52: 74,016 | G52: 112.71 | H52: NSE
A53: 2023-05-02 | B53: ATALREAL | C53: Atal Realtech Limited | D53: ROMAN INDUSTRIES LLP | E53: BUY | F53: 96,000 | G53: 102.69 | H53: NSE
A54: 2023-05-02 | B54: ATULAUTO | C54: Atul Auto Limited | D54: GRAVITON RESEARCH CAPITAL LLP | E54: BUY | F54: 181,512 | G54: 350.43 | H54: NSE
A55: 2023-05-02 | B55: DATAMATICS | C55: Datamatics Global Ser.Ltd | D55: GRAVITON RESEARCH CAPITAL LLP | E55: BUY | F55: 336,486 | G55: 390.37 | H55: NSE
A56: 2023-05-02 | B56: GIRIRAJ | C56: Giriraj Civil Devp Ltd | D56: WISDOM PACKAGING PRIVATE LIMITED | E56: BUY | F56: 34,800 | G56: 184.8 | H56: NSE
A57: 2023-05-02 | B57: GISO-RE | C57: GI Engineering Solutions | D57: AGARWAL SUSHIL KUMAR | E57: BUY | F57: 300,000 | G57: 1.6 | H57: NSE
A58: 2023-05-02 | B58: GOODLUCK | C58: Goodluck India Limited | D58: ASHWANI KUMAR SANDILYA | E58: BUY | F58: 219,329 | G58: 459.24 | H58: NSE
A59: 2023-05-02 | B59: GOODLUCK | C59: Goodluck India Limited | D59: NIVL ADVISORS PRIVATE LIMITED | E59: BUY | F59: 226,601 | G59: 462.68 | H59: NSE
A60: 2023-05-02 | B60: GUJRAFFIA | C60: Gujarat Raffia-Roll Sett | D60: GUJARAT TOOLROOM LIMITED | E60: BUY | F60: 63,999 | G60: 28.62 | H60: NSE
A61: 2023-05-02 | B61: IRCON | C61: Ircon International Ltd | D61: QE SECURITIES | E61: BUY | F61: 4,728,731 | G61: 81.81 | H61: NSE
A62: 2023-05-02 | B62: LOKESHMACH | C62: Lokesh Machines Limited | D62: GRAVITON RESEARCH CAPITAL LLP | E62: BUY | F62: 154,580 | G62: 143.14 | H62: NSE
A63: 2023-05-02 | B63: QUICKTOUCH | C63: Quicktouch Technologies L | D63: MEHUL BHARATBHAI SHAH | E63: BUY | F63: 54,000 | G63: 93.53 | H63: NSE
A64: 2023-05-02 | B64: QUICKTOUCH | C64: Quicktouch Technologies L | D64: PREETI BHAUKA | E64: BUY | F64: 92,000 | G64: 92 | H64: NSE
A65: 2023-05-02 | B65: QUICKTOUCH | C65: Quicktouch Technologies L | D65: ASHOKKUMAR AGRAWAL | E65: BUY | F65: 50,000 | G65: 95.13 | H65: NSE
A66: 2023-05-02 | B66: QUICKTOUCH | C66: Quicktouch Technologies L | D66: VIVEK KUMAR BHAUKA | E66: BUY | F66: 40,000 | G66: 92 | H66: NSE
A67: 2023-05-02 | B67: QUICKTOUCH | C67: Quicktouch Technologies L | D67: SURBHI AGRAWAL GUPTA | E67: BUY | F67: 60,000 | G67: 96.6 | H67: NSE
A68: 2023-05-02 | B68: QUICKTOUCH | C68: Quicktouch Technologies L | D68: JAIN SANJAY POPATLAL | E68: BUY | F68: 40,000 | G68: 92 | H68: NSE
A69: 2023-05-02 | B69: QUICKTOUCH | C69: Quicktouch Technologies L | D69: BP EQUITIES PRIVATE LIMITED | E69: BUY | F69: 30,000 | G69: 95.99 | H69: NSE
A70: 2023-05-02 | B70: QUICKTOUCH | C70: Quicktouch Technologies L | D70: YUGA STOCKS AND COMMODITIES PRIVATE LIMITED . | E70: BUY | F70: 50,000 | G70: 96.6 | H70: NSE
A71: 2023-05-02 | B71: QUICKTOUCH | C71: Quicktouch Technologies L | D71: ASHWIN STOCKS AND INVESTMENT PRIVATE LIMITED | E71: BUY | F71: 34,000 | G71: 92.54 | H71: NSE
A72: 2023-05-02 | B72: SCAPDVR | C72: Stampede Capital Limited | D72: LIMITED BALAJI INFRACONCLAVE PRIVATE | E72: BUY | F72: 850,000 | G72: 17.94 | H72: NSE
A73: 2023-05-02 | B73: SCAPDVR | C73: Stampede Capital Limited | D73: L7 HITECH PRIVATE LIMITED | E73: BUY | F73: 2,689 | G73: 17.76 | H73: NSE
A74: 2023-05-02 | B74: SECURCRED | C74: SecUR Credentials Limited | D74: SHAH SANDIP JAYSHUKHLAL | E74: BUY | F74: 502,774 | G74: 27.55 | H74: NSE
A75: 2023-05-02 | B75: AGRITECH | C75: Agri-Tech (India) Limited | D75: VEENA RAJESH SHAH | E75: SELL | F75: 74,016 | G75: 111.04 | H75: NSE
A76: 2023-05-02 | B76: AGRITECH | C76: Agri-Tech (India) Limited | D76: VAISHALI SAVLA | E76: SELL | F76: 35,000 | G76: 112.8 | H76: NSE
A77: 2023-05-02 | B77: ATALREAL | C77: Atal Realtech Limited | D77: KAUSHIK MAHESHBHAI WAGHELA | E77: SELL | F77: 91,200 | G77: 102.94 | H77: NSE
A78: 2023-05-02 | B78: ATULAUTO | C78: Atul Auto Limited | D78: NEGEN CAPITAL SERVICES PRIVATE LIMITED | E78: SELL | F78: 209,276 | G78: 349.11 | H78: NSE
A79: 2023-05-02 | B79: ATULAUTO | C79: Atul Auto Limited | D79: GRAVITON RESEARCH CAPITAL LLP | E79: SELL | F79: 181,512 | G79: 350.58 | H79: NSE
A80: 2023-05-02 | B80: DATAMATICS | C80: Datamatics Global Ser.Ltd | D80: GRAVITON RESEARCH CAPITAL LLP | E80: SELL | F80: 336,486 | G80: 390.61 | H80: NSE
A81: 2023-05-02 | B81: GIRIRAJ | C81: Giriraj Civil Devp Ltd | D81: BHIMA RAM | E81: SELL | F81: 34,800 | G81: 184.8 | H81: NSE
A82: 2023-05-02 | B82: GISO-RE | C82: GI Engineering Solutions | D82: YOSHI ENVIROTECH PRIVATE LIMITED | E82: SELL | F82: 888,507 | G82: 1.67 | H82: NSE
A83: 2023-05-02 | B83: GISO-RE | C83: GI Engineering Solutions | D83: SAGAR SUDHAKAR PATIL | E83: SELL | F83: 287,611 | G83: 1.74 | H83: NSE
A84: 2023-05-02 | B84: GOODLUCK | C84: Goodluck India Limited | D84: NIVL ADVISORS PRIVATE LIMITED | E84: SELL | F84: 226,601 | G84: 462.79 | H84: NSE
A85: 2023-05-02 | B85: GOODLUCK | C85: Goodluck India Limited | D85: ASHWANI KUMAR SANDILYA | E85: SELL | F85: 200,510 | G85: 460.89 | H85: NSE
A86: 2023-05-02 | B86: IRCON | C86: Ircon International Ltd | D86: QE SECURITIES | E86: SELL | F86: 4,982,460 | G86: 82.03 | H86: NSE
A87: 2023-05-02 | B87: LOKESHMACH | C87: Lokesh Machines Limited | D87: GRAVITON RESEARCH CAPITAL LLP | E87: SELL | F87: 154,580 | G87: 143.17 | H87: NSE
A88: 2023-05-02 | B88: MOHITIND | C88: Mohit Industries Ltd | D88: SANGITABEN GOPIKUMAR KHANT | E88: SELL | F88: 75,973 | G88: 16.49 | H88: NSE
A89: 2023-05-02 | B89: SCAPDVR | C89: Stampede Capital Limited | D89: L7 HITECH PRIVATE LIMITED | E89: SELL | F89: 682,119 | G89: 17.95 | H89: NSE
A90: 2023-05-02 | B90: TIRUPATI | C90: Shree Tirupati Balajee | D90: BEHERA DAYANIDHI | E90: SELL | F90: 93,000 | G90: 132 | H90: NSE
A91: 2023-05-02 | B91: UGROCAP | C91: Ugro Capital Limited | D91: DBZ (CYPRUS) LIMITED | E91: SELL | F91: 609,053 | G91: 175.14 | H91: NSE

Sheet Call Tracker (Equity & F&O)
M5: Back To Main Page
A6: Retail Research Technical Calls & Fundamental Performance Report for the month of May-2023
M7: =Main!B10 -> 2023-05-03
B8: Positional Call
A9: Sr.no | B9: Date | D9: Company | E9: Rec | F9: Rec Price | G9: Stop Loss*** | H9: Call Closed At | I9: Target | J9: Remark | K9: Profit / Loss per Share | L9: All charges | M9: Net Gain / Loss % | N9: Status | O9: Closed Date | P9: Market Closing Price
A10: 1 | B10: 2023-04-11 | D10: SHARDACROP | E10: Accu | F10: 452.5-467.5 | G10: 425 | I10: 500-530 | J10: Open | P10: =VLOOKUP(D10,'MidCap Intra'!B27:C527,2,0) -> 475.25 | R10: H
A11: 2 | B11: 2023-04-12 | D11: SUDARSCHEM | E11: Accu | F11: 390-410 | G11: 377 | I11: 440-460 | J11: Open | P11: =VLOOKUP(D11,'MidCap Intra'!B28:C528,2,0) -> 412.80 | R11: H
A12: 3 | B12: 2023-04-17 | D12: REDINGTON | E12: Accu | F12: 165-170 | G12: 158 | I12: 180-190 | J12: Open | P12: =VLOOKUP(D12,'MidCap Intra'!B29:C529,2,0) -> 171.70 | R12: H
A13: 4 | B13: 2023-04-17 | D13: HCLTECH | E13: Accu | F13: 1000-1035 | G13: 945 | I13: 1150-1200 | J13: Open | P13: =VLOOKUP(D13,'MidCap Intra'!B30:C530,2,0) -> 1067.55 | R13: H
A14: 5 | B14: 2023-04-17 | D14: KOLTEPATIL | E14: Accu | F14: 243.5-253.5 | G14: 233 | I14: 280-290 | J14: Open | R14: N
A15: 6 | B15: 2023-04-24 | D15: BHARTIARTL | E15: Accu | F15: 755-790 | G15: 735 | I15: 850-900 | J15: Open | P15: =VLOOKUP(D15,'MidCap Intra'!B33:C533,2,0) -> 790.20 | R15: H
A16: 7 | B16: 2023-04-25 | D16: MASTEK | E16: Accu | F16: 1640-1715 | G16: 1550 | I16: 1900-2000 | J16: Open | P16: =VLOOKUP(D16,'MidCap Intra'!B34:C534,2,0) -> 1755.70 | R16: H
A17: 8 | B17: 2023-04-28 | D17: GNFC | E17: Accu | F17: 550-580 | G17: 530 | I17: 640-680 | J17: Open | P17: =VLOOKUP(D17,'MidCap Intra'!B35:C535,2,0) -> 597.15 | R17: H
A21: CLBS = Closing Basis ***
A22: Dividend adjusted <> | F22: Reinitiated $
A23: Part book {} | D23: s | F23: Revised stoploss #
B25: Momentum Call
A26: Sr.no | B26: Date | D26: Company | E26: Rec | F26: Rec Price | G26: Stop Loss | H26: Call Closed At | I26: Target | J26: Remark | K26: Profit / Loss per Share/Lot | L26: All charges | M26: Net Gain / Loss % | N26: Status | O26: Closed Date
A27: 1 | B27: 2023-04-24 | D27: KNRCON | E27: Buy | F27: 239-240 | G27: 232 | I27: 248-252 | J27: Open | R27: H
A28: 2 | B28: 2023-04-25 | D28: KANSAINER | E28: Buy | F28: 377-379 | G28: 367 | I28: 390-400 | J28: Open | R28: H
A29: 3 | B29: 2023-03-28 | D29: GSPL | E29: Buy | F29: 283-285 | G29: 274 | I29: 300 | J29: Open | R29: H
A32: CLBS = Closing Basis *** | H32: *
A33: Dividend adjusted <> | F33: Reinitiated $
F34: Revised stoploss #
A36: Master Trade High Risk
A37: Sr.no | B37: Date | D37: Company | E37: Rec | F37: Rec Price | G37: Stop Loss | H37: Call Closed At | I37: Target | J37: Remark | K37: Profit / Loss per share | L37: All charges | M37: Gain / Loss per Lot | N37: Lot | O37: Status | P37: Closed Date
A38: 1 | B38: 2023-04-28 | D38: PIDILITIND MAY FUT | E38: Buy | F38: 2415-2423 | G38: 2370 | I38: 2470-2500 | J38: Open | R38: H
A43: Master Trade Medium Risk
A44: Sr.no | B44: Date | D44: Company | E44: Rec | F44: Rec Price | G44: Stop Loss | H44: Call Closed At | I44: Target | J44: Remark | K44: Profit/ Loss per lot | L44: All charges | M44: Gain / Loss per Lot | N44: Lot | O44: Status | P44: Closed Date
A45: 1 | B45: 2023-04-27 | D45: HDFC 2800 CE MAY | E45: Buy | F45: 35 | G45: 19 | H45: 42 | I45: 60-70 | J45: Profit of Rs.7/- | K45: =H45-F45 -> 7 | L45: 100.00 | M45: =(K45*N45)-100 -> 2000.0 | N45: 300 | O45: Successful | P45: 2023-05-02 | R45: N
A46: 2 | B46: 2023-04-28 | D46: MARUTI 8700 CE MAY | E46: Buy | F46: 127 | G46: 78 | H46: 147 | I46: 180-220 | J46: Profit of Rs.20/- | K46: =H46-F46 -> 20 | L46: 100.00 | M46: =(K46*N46)-100 -> 1900.0 | N46: 100 | O46: Successful | P46: 2023-05-02 | R46: N
A47: 3 | B47: 2023-04-28 | D47: PVR 1460 PE MAY | E47: Buy | F47: 39 | G47: 25 | H47: 45.5 | I47: 60-75 | J47: Profit of Rs.6.5/- | K47: =H47-F47 -> 6.5 | L47: 100.00 | M47: =(K47*N47)-100 -> 2500.0 | N47: 400 | O47: Successful | P47: 2023-05-02 | R47: N
A48: 4 | B48: 2023-04-28 | D48: FINNIFTY 19150 PE 2-MAY | E48: Buy | F48: 38 | H48: 11 | I48: 70-100 | J48: Loss of Rs.27/- | K48: =H48-F48 -> -27 | L48: 100.00 | M48: =(K48*N48)-100 -> -1180.0 | N48: 40 | O48: Successful | P48: 2023-05-02 | R48: N
A49: 5 | B49: 2023-05-02 | D49: NIFTY 18500 CE 25-MAY | E49: Sell | F49: 66-96 | G49: 115 | I49: 20.0-5 | J49: Open
A50: 6 | B50: 2023-05-02 | D50: NIFTY 18100 PE 4-MAY | E50: Buy | F50: 40-44 | I50: 80-120 | J50: Open
A51: 7 | B51: 2023-05-02 | D51: BANKNIFTY 43200 PE 4-MAY | E51: Buy | F51: 100-120 | I51: 250-300 | J51: Open
A52: 8 | B52: 2023-05-02 | D52: PVR 1460 PE MAY | E52: Buy | F52: 35-37 | G52: 22 | I52: 60-75 | J52: Open
A58: Techno -Funda (positional)
A59: Sr.no | B59: Date | D59: Company | E59: Rec | F59: Rec Price | G59: Stop Loss*** | H59: Call Closed At | I59: Target | J59: Remark | K59: Profit / Loss per Share/Lot | L59: All charges | M59: Net Gain / Loss % | N59: Status | O59: Closed Date | P59: Market Closing Price
A60: 1 | B60: 2022-10-06 | D60: AMBIKCO | E60: Buy | F60: 1420-1620 | G60: 1220 | I60: 2000-2300 | J60: Open | R60: H
A61: 2 | B61: 2023-04-03 | D61: BEL | E61: Buy | F61: 96.5 | G61: 88 | H61: 104.5 | I61: 105-110 | J61: Profit of Rs.8/- | K61: =H61-F61 -> 8 | L61: =(F61*-0.7)/100 -> -0.68 | M61: =(K61+L61)/F61 -> 7.59% | N61: Successful | O61: 2023-05-02 | R61: H
A63: CLBS = Closing Basis *** | F63: Reinitiated $
A64: Dividend adjusted <> | F64: Revised stoploss # | H64: .................
B68: Investment Idea
A69: Sr.no | B69: Date | D69: Company | E69: Rec | F69: Rec Price | G69: Point of Review | H69: Close Rate | I69: Target | J69: Remark | K69: Profit / Loss per Share | L69: Gain / Loss % | M69: Status | N69: Closed Date
A70: 1 | B70: 2013-11-01 | D70: L&T Finance Holding | E70: Accu | F70: 82.00 | G70: - | H70: 100 | I70: 100.00 | J70: Target Achieved | K70: =H70-F70 -> 18.00 | L70: =K70/F70 -> 21.95% | M70: Successful | N70: 2016-10-14
A71: 2 | B71: 2014-06-04 | D71: Finolex Inds | E71: Buy | F71: 257.00 | G71: - | H71: 300 | I71: 300.00 | J71: Target Achieved | K71: 43.00 | L71: 16.73% | M71: Successful | N71: 2014-07-02
A72: 3 | B72: 2014-07-08 | D72: JK Cement | E72: Buy | F72: 393.00 | G72: - | H72: 468 | I72: 468.00 | J72: Target Achieved | K72: 75.00 | L72: 19.08% | M72: Successful | N72: 2014-08-12
A73: 4 | B73: 2014-08-06 | D73: Finolex Cables | E73: Buy | F73: 205.00 | G73: - | H73: 275 | I73: 250.00 | J73: Target Achieved | K73: 70.00 | L73: 34.15% | M73: Successful | N73: 2014-11-19
A74: 5 | B74: 2014-09-04 | D74: Exide Inds | E74: Buy | F74: 162.00 | G74: - | H74: 190 | I74: 190.00 | J74: Target Achieved | K74: 28.00 | L74: 17.28% | M74: Successful | N74: 2015-01-02
A75: 6 | B75: 2014-09-04 | D75: Deepak Nitrite | E75: Buy | F75: 75.00 | G75: - | H75: 91.5 | I75: 95-100 | J75: Profit of Rs.16.50/- | K75: 16.50 | L75: 22.00% | M75: Successful | N75: 2014-11-11
A76: 7 | B76: 2014-10-01 | D76: Mercks | E76: Buy | F76: 850.00 | G76: - | H76: 982.5 | I76: 1050.00 | J76: Profit of Rs.132.50/- | K76: 132.50 | L76: 15.59% | M76: Successful | N76: 2015-02-04
A77: 8 | B77: 2014-10-01 | D77: Grindwell Norton | E77: Buy | F77: 475.00 | G77: - | H77: 515 | I77: 600.00 | J77: Profit of Rs.40/- | K77: 40.00 | L77: 8.42% | M77: Successful | N77: 2014-10-27
A78: 9 | B78: 2014-10-01 | D78: Snowman Logistics | E78: Buy | F78: 86.00 | G78: - | H78: 99 | I78: 140.00 | J78: Profit of Rs.13.00/- | K78: 13.00 | L78: 15.12% | M78: Successful | N78: 2014-10-27
A79: 10 | B79: 2014-10-14 | D79: Birla Corp | E79: Buy | F79: 496.60 | G79: - | H79: 621 | I79: 580.00 | J79: Target Achieved | K79: 124.40 | L79: 25.05% | M79: Successful | N79: 2016-08-23
A80: 11 | B80: 2014-10-14 | D80: Ultratech Cem | E80: Buy | F80: 2481.90 | G80: - | H80: 2840 | I80: 2870.00 | J80: Profit of Rs.358.10/- | K80: 358.10 | L80: 14.43% | M80: Successful | N80: 2015-01-13
A81: 12 | B81: 2014-10-16 | D81: Sintex Inds | E81: Buy | F81: 84.50 | G81: - | H81: 93 | I81: 110.00 | J81: Profit of Rs.8.50/- | K81: 8.50 | L81: 10.06% | M81: Successful | N81: 2014-10-27
A82: 13 | B82: 2014-10-16 | D82: HSIL | E82: Buy | F82: 401.00 | G82: - | H82: 428 | I82: 450.00 | J82: Profit of Rs.27.00/- | K82: 27.00 | L82: 6.73% | M82: Successful | N82: 2015-01-16
A83: 14 | B83: 2014-10-16 | D83: Eveready Inds | E83: Buy | F83: 101.00 | G83: - | H83: 112 | I83: 120.00 | J83: Profit of Rs.11.00/- | K83: 11.00 | L83: 10.89% | M83: Successful | N83: 2014-10-27
A84: 15 | B84: 2014-11-11 | D84: Pennar Inds | E84: Buy | F84: 59.00 | G84: - | H84: 76 | I84: 76.00 | J84: Target Achieved | K84: 17.00 | L84: 28.81% | M84: Successful | N84: 2017-10-24
A85: 16 | B85: 2014-11-11 | D85: Snowman Logistics | E85: Buy | F85: 99.00 | G85: - | H85: 120 | I85: 120.00 | J85: Profit of Rs.21/- | K85: 21.00 | L85: 21.21% | M85: Successful | N85: 2014-11-17
A86: 17 | B86: 2014-11-13 | D86: Dharamsi Morarji Chem | E86: Buy | F86: 22.00 | G86: - | H86: 33.55 | I86: 32.00 | J86: Profit of Rs 11.55/- | K86: 11.55 | L86: 52.50% | M86: Successful | N86: 2015-07-03
A87: 18 | B87: 2014-12-03 | D87: Tatachem | E87: Buy | F87: 440.00 | G87: - | H87: 520 | I87: 520.00 | J87: Profit of Rs 80.00/- | K87: 80.00 | L87: 18.18% | M87: Successful | N87: 2015-07-23
A88: 19 | B88: 2014-12-03 | D88: Advanta | E88: Buy | F88: 360.00 | G88: - | H88: 427 | I88: 425.00 | J88: Profit of Rs.67.00/- | K88: 67.00 | L88: 18.61% | M88: Successful | N88: 2015-02-23
A89: 20 | B89: 2015-01-08 | D89: GDL | E89: Buy | F89: 360.00 | G89: - | H89: 455 | I89: 420.00 | J89: Profit of Rs.95.00/- | K89: 95.00 | L89: 26.39% | M89: Successful | N89: 2015-01-20
A90: 21 | B90: 2015-01-08 | D90: NRB Bearing | E90: Buy | F90: 130.00 | H90: 175.5 | I90: 165.00 | J90: Profit of Rs 45.50/- | K90: 45.50 | L90: 35.00% | M90: Successful | N90: 2017-12-19
A91: 22 | B91: 2015-02-05 | D91: GSFC | E91: Accu | F91: 98.00 | H91: 120 | I91: 120.00 | J91: Target Achieved | K91: 22.00 | L91: 22.45% | M91: Successful | N91: 2017-01-18
A92: 23 | B92: 2015-02-05 | D92: Sundrmfast | E92: Accu | F92: 196.00 | H92: 262 | I92: 255.00 | J92: Target Achieved | K92: 66.00 | L92: 33.67% | M92: Successful | N92: 2016-08-17
A93: 24 | B93: 2015-03-04 | D93: GPPL | E93: Accu | F93: 235 | H93: 77.00 | I93: 280-285 | J93: Loss of Rs.158/- | K93: -158.00 | L93: -67.23% | M93: Unsuccessful | N93: 2019-02-26
A94: 25 | B94: 2015-03-04 | D94: ORIENTCEM | E94: Accu | F94: 185.00 | H94: 224 | I94: 220-225 | J94: Target Achieved | K94: 39.00 | L94: 21.08% | M94: Successful | N94: 2016-10-04
A95: 26 | B95: 2015-03-27 | D95: PFS | E95: Accu | F95: 49.5 | H95: 15.85 | I95: 67.00 | J95: Loss of Rs.33.65/- | K95: -33.65 | L95: -68% | M95: Unsuccessful | N95: 2019-06-11
A96: 27 | B96: 2015-03-30 | D96: Walchandnagar Ind Ltd | E96: Accu | F96: 183.50 | H96: 219 | I96: 218.00 | J96: Profit of Rs.35.50/- | K96: 35.50 | L96: 19.35% | M96: Successful | N96: 2015-04-09
A97: 28 | B97: 2015-04-20 | D97: Kalpataru Power Transmission Ltd | E97: Accu | F97: =(227+237)/2 -> 232.00 | H97: 298 | I97: 298.00 | J97: Target Achieved | K97: 66.00 | L97: 28.45% | M97: Successful | N97: 2017-03-29
A98: 29 | B98: 2015-05-04 | D98: Mastek Ltd | E98: Buy | F98: 385.00 | H98: =212.5+331 -> 543.5 | I98: 510.00 | J98: Profit of Rs 158.50/- | K98: 158.50 | L98: 41.17% | M98: Successful | N98: 2015-08-19
A99: 30 | B99: 2015-05-04 | D99: Suprajit Eng | E99: Buy | F99: 115.50 | H99: 146 | I99: 142.00 | J99: Profit of Rs 30.50/- | K99: 30.50 | L99: 26.41% | M99: Successful | N99: 2015-07-17
A100: 31 | B100: 2015-05-27 | D100: TCI | E100: Buy | F100: 237.50 | H100: 279.5 | I100: 278.00 | J100: Target Achieved | K100: 42.00 | L100: 17.68% | M100: Successful | N100: 2015-08-06
A101: 32 | B101: 2015-06-19 | D101: HSIL | E101: Accu | F101: 340.00 | H101: 448 | I101: 448.00 | J101: Target Achieved | K101: 108.00 | L101: 31.76% | M101: Successful | N101: 2017-10-10
A102: 33 | B102: 2015-07-06 | D102: Capital First | E102: Accu | F102: 390.00 | H102: 460 | I102: 460.00 | J102: Target Achieved | K102: =H102-F102 -> 70.00 | L102: =K102/F102 -> 17.95% | M102: Successful | N102: 2016-04-18
A103: 34 | B103: 2015-07-10 | D103: Dolphin OffShore | E103: Accu | F103: 122.5 | H103: 61.00 | I103: 172.00 | J103: Loss of Rs.61.50/- | K103: -61.50 | L103: -50.20% | M103: Unsuccessful | N103: 2018-08-21
A104: 35 | B104: 2015-08-03 | D104: Allcargo logistics | E104: Accu | F104: 297.50 | H104: 350 | I104: 360.00 | J104: Profit of Rs 52.50/- | K104: 52.50 | L104: 17.65% | M104: Successful | N104: 2015-08-16
A105: 36 | B105: 2015-08-03 | D105: Camline Fine | E105: Accu | F105: 115.50 | H105: 149 | I105: 140.00 | J105: Profit of Rs 33.50/- | K105: 33.50 | L105: 29.00% | M105: Successful | N105: 2017-01-05
A106: 37 | B106: 2015-09-04 | D106: TCI | E106: Accu | F106: 226.00 | H106: 292 | I106: 292.00 | J106: Target Achieved | K106: 66.00 | L106: 29.20% | M106: Successful | N106: 2015-10-09
A107: 38 | B107: 2015-09-07 | D107: Kalpataru Power Transmission Ltd | E107: Accu | F107: 232.50 | H107: 312.5 | I107: 310.00 | J107: Target Achieved | K107: 80.00 | L107: 34.41% | M107: Successful | N107: 2017-03-29
A108: 39 | B108: 2015-09-21 | D108: LLOYD ELECTRIC & ENG LTD | E108: Accu | F108: 196.50 | H108: 238 | I108: 238.00 | J108: Target Achieved | K108: 41.50 | L108: 21.12% | M108: Successful | N108: 2015-10-14
A109: 40 | B109: 2015-09-24 | D109: L&T Finance Holding | E109: Accu | F109: 65.00 | H109: 82 | I109: 82.00 | J109: Target Achieved | K109: 17.00 | L109: 26.15% | M109: Successful | N109: 2016-07-27
A110: 41 | B110: 2015-10-14 | D110: KEC International ltd | E110: Accu | F110: 144.00 | H110: 182.5 | I110: 181.00 | J110: Target Achieved | K110: 38.50 | L110: 26.74% | M110: Successful | N110: 2017-03-23
A111: 42 | B111: 2015-10-14 | D111: Gruh Finance | E111: Accu | F111: 264.00 | H111: 311 | I111: 311.00 | J111: Target Achieved | K111: 47.00 | L111: 17.80% | M111: Successful | N111: 2016-08-22
A112: 43 | B112: 2015-11-10 | D112: Pidilitind | E112: Buy | F112: 549.50 | H112: 630 | I112: 630.00 | J112: Target Achieved | K112: 80.50 | L112: 14.65% | M112: Successful | N112: 2016-02-19
A113: 44 | B113: 2015-12-04 | D113: Zensar Technology | E113: Accu | F113: 1027.50 | H113: 1315 | I113: 1250.00 | J113: Target Achieved | K113: 287.50 | L113: 27.98% | M113: Successful | N113: 2018-05-24
A114: 45 | B114: 2015-12-29 | D114: Vinati Organics Ltd | E114: Accu | F114: 465.00 | H114: 540 | I114: 540.00 | J114: Target Achieved | K114: 75.00 | L114: 16.13% | M114: Successful | N114: 2016-06-09
A115: 46 | B115: 2016-01-11 | D115: GSFC | E115: Buy | F115: 81.00 | H115: 110 | I115: 110.00 | J115: Target Achieved | K115: 29.00 | L115: 35.80% | M115: Successful | N115: 2017-01-10
A116: 47 | B116: 2016-01-13 | D116: SSWL | E116: Buy | F116: 417.50 | H116: 547 | I116: 535.00 | J116: Target Achieved | K116: 129.50 | L116: 31.02% | M116: Successful | N116: 2016-07-27
A117: 48 | B117: 2016-02-08 | D117: Persistent System Ltd | E117: Accu | F117: 650.00 | H117: 800 | I117: 800.00 | J117: Target Achieved | K117: 150.00 | L117: 23.08% | M117: Successful | N117: 2018-02-23
A118: 49 | B118: 2016-03-04 | D118: UPL | E118: Accu | F118: 437.50 | H118: 504.5 | I118: 522.00 | J118: Profit of Rs.67/- | K118: 67.00 | L118: 15.31% | M118: Successful | N118: 2016-04-20
A119: 50 | B119: 2016-03-09 | D119: Ashoka Buildcon Ltd | E119: Accu | F119: 189.50 | H119: 218 | I119: 218.00 | J119: Target Achieved | K119: 28.50 | L119: 15.04% | M119: Successful | N119: 2017-10-26
A120: 51 | B120: 2016-04-11 | D120: PTC INDIA FIN SERV LTD | E120: Accu | F120: 36.5 | H120: 15.85 | I120: 60.00 | J120: Loss of Rs.20.65/- | K120: -20.65 | L120: -56.58% | M120: Unsuccessful | N120: 2019-06-11
A121: 52 | B121: 2016-04-12 | D121: CAMLINFINE $ | E121: Accu | F121: 93.00 | H121: 149 | I121: 140.00 | J121: Profit of Rs 56/- | K121: 56.00 | L121: 60.22% | M121: Successful | N121: 2017-01-05
A122: 53 | B122: 2016-04-12 | D122: Greaves Cotton Ltd. | E122: Accu | F122: 130.00 | H122: 150 | I122: 150-155 | J122: Target Achieved | K122: 20.00 | L122: 15.38% | M122: Successful | N122: 2016-07-13
A123: 54 | B123: 2016-04-13 | D123: DHFL | E123: Accu | F123: 196.00 | H123: 299 | I123: 299.00 | J123: Target Achieved | K123: 103.00 | L123: 52.55% | M123: Successful | N123: 2016-09-07
A124: 55 | B124: 2016-04-13 | D124: Magma | E124: Accu | F124: 88.00 | H124: 103 | I124: 103.00 | J124: Target Achieved | K124: 15.00 | L124: 17.05% | M124: Successful | N124: 2016-06-09
A125: 56 | B125: 2016-05-02 | D125: KEC International ltd $ | E125: Accu | F125: 127.50 | H125: 148 | I125: 148-150 | J125: Target Achieved | K125: =H125-F125 -> 20.50 | L125: =K125/F125 -> 16.08% | M125: Successful | N125: 2016-07-13
A126: 57 | B126: 2016-05-03 | D126: Mindtree | E126: Accu | F126: 675.00 | H126: 815 | I126: 790-800 | J126: Target Achieved | K126: =H126-F126 -> 140.00 | L126: =K126/F126 -> 20.74% | M126: Successful | N126: 2018-02-23
A127: 58 | B127: 2016-06-01 | D127: Atulauto | E127: Accu | F127: 500 | H127: 232.50 | I127: 565-570 | J127: Loss of Rs.267.50 /- | K127: =H127-F127 -> -267.50 | L127: =K127/F127 -> -53.50% | M127: Unsuccessful | N127: 2019-09-27
A128: 59 | B128: 2016-06-06 | D128: TRITURBINE | E128: Accu | F128: 110.00 | H128: 126.5 | I128: 125.00 | J128: Profit of Rs.16.50/- | K128: =H128-F128 -> 16.50 | L128: =K128/F128 -> 15.00% | M128: Successful | N128: 2016-07-01
A129: 60 | B129: 2016-06-17 | D129: Pennar Industries Ltd | E129: Accu | F129: 44.00 | H129: 69.5 | I129: 69.50 | J129: Profit of Rs.25.50/- | K129: =H129-F129 -> 25.50 | L129: =K129/F129 -> 57.95% | M129: Successful | N129: 2017-08-30
A130: 61 | B130: 2016-06-28 | D130: EVEREADY | E130: Accu | F130: 262.50 | H130: 340 | I130: 333.00 | J130: Profit of Rs.77.50/- | K130: 77.50 | L130: 29.52% | M130: Successful | N130: 2017-10-09
A131: 62 | B131: 2016-06-28 | D131: FIEMIND | E131: Accu | F131: 840.00 | H131: 1230 | I131: 1230.00 | J131: Target Achieved | K131: 390.00 | L131: 46.43% | M131: Successful | N131: 2016-10-06
A132: 63 | B132: 2016-07-05 | D132: Bajaj Corp Ltd | E132: Accu | F132: 395 | H132: =(468.5+342.5)/2 -> 405.50 | I132: 510.00 | J132: Profit of Rs.10.50/- | K132: =H132-F132 -> 10.50 | L132: =K132/F132 -> 3% | M132: Neutral | N132: 2019-05-21
A133: 64 | B133: 2016-08-02 | D133: GPPL $ | E133: Buy | F133: =169.5-12.8 -> 156.7 | H133: 77.00 | I133: 198-200 | J133: Loss of Rs.79.7/- | K133: -79.70 | L133: -50.86% | M133: Unsuccessful | N133: 2019-02-26
A134: 65 | B134: 2016-08-04 | D134: WONDERLA HOLIDAYS LTD | E134: Accu | F134: 400 | H134: 305.00 | I134: 475.00 | J134: Loss of Rs.95/- | K134: -95.00 | L134: -23.75% | M134: Unsuccessful | N134: 2019-05-21
A135: 66 | B135: 2016-08-11 | D135: CAMLINFINE | E135: Accu | F135: 86.50 | H135: 130 | I135: 130.00 | J135: Profit of Rs.43.50/- | K135: 43.50 | L135: 50.29% | M135: Successful | N135: 2017-12-22
A136: 67 | B136: 2016-08-18 | D136: GRANULES | E136: Accu | F136: 133.5 | H136: 126.50 | I136: 178.00 | J136: Exit | K136: -7.00 | L136: -5.24% | M136: Unsuccessful | N136: 2016-09-02
A137: 68 | B137: 2016-08-31 | D137: VA TECH WABAG | E137: Accu | F137: 560.00 | H137: 725 | I137: 725.00 | J137: Target Achieved | K137: 165.00 | L137: 29.46% | M137: Successful | N137: 2016-03-27
A138: 69 | B138: 2016-09-01 | D138: SKIPPER LIMITED | E138: Accu | F138: 160.50 | H138: 210 | I138: 210.00 | J138: Target Achieved | K138: 49.50 | L138: 30.84% | M138: Successful | N138: 2017-05-16
A139: 70 | B139: 2016-10-03 | D139: IFBIND | E139: Accu | F139: 430.00 | H139: 596 | I139: 575.00 | J139: Profit of Rs.166/- | K139: 166.00 | L139: 38.60% | M139: Successful | N139: 2017-02-03
A140: 71 | B140: 2016-10-14 | D140: ASIANTILES | E140: Accu | F140: 280.00 | H140: 345 | I140: 345.00 | J140: Target Achieved | K140: =H140-F140 -> 65.00 | L140: =K140/F140 -> 23.21% | M140: Successful | N140: 2017-03-20
A141: 72 | B141: 2016-10-14 | D141: DEEPIND | E141: Accu | F141: 245.00 | H141: 325.5 | I141: 330.00 | J141: Profit of Rs.80.5/- | K141: 80.50 | L141: =K141/F141 -> 32.86% | M141: Successful | N141: 2017-02-03
A142: 73 | B142: 2016-10-17 | D142: DCBBANK | E142: Accu | F142: 125.00 | H142: 160 | I142: 160.00 | J142: Target Achieved | K142: 35.00 | L142: 28.00% | M142: Successful | N142: 2017-03-09
A143: 74 | B143: 2016-10-17 | D143: ORIENTREF | E143: Accu | F143: 114.00 | H143: 145 | I143: 145.00 | J143: Target Achieved | K143: 31.00 | L143: =K143/F143 -> 27.19% | M143: Successful | N143: 2017-05-04
A144: 75 | B144: 2016-10-17 | D144: GANECOS | E144: Accu | F144: 212.00 | H144: 280 | I144: 276.00 | J144: Profit of Rs.68/- | K144: 68.00 | L144: =K144/F144 -> 32.08% | M144: Successful | N144: 2017-05-03
A145: 76 | B145: 2016-11-04 | D145: NBCC | E145: Accu | F145: 155.00 | H145: 210 | I145: 210.00 | J145: Profit of Rs.55/- | K145: 55.00 | L145: =K145/F145 -> 35.48% | M145: Successful | N145: 2017-07-28
A146: 77 | B146: 2016-12-06 | D146: PRECAM | E146: Accu | F146: 150.5 | H146: 72.50 | I146: 174.00 | J146: Loss of Rs.78/- | K146: -78.00 | L146: -51.83% | M146: Unsuccessful | N146: 2018-08-21
A147: 78 | B147: 2016-12-08 | D147: INFRATEL | E147: Accu | F147: 380.00 | H147: 478 | I147: 468.00 | J147: Target Achieved | K147: =H147-F147 -> 98.00 | L147: =K147/F147 -> 25.79% | M147: Successful | N147: 2017-10-17
A148: 79 | B148: 2016-12-30 | D148: GODREJPROP | E148: Accu | F148: 305.00 | H148: 375 | I148: 375.00 | J148: Target Achieved | K148: =H148-F148 -> 70.00 | L148: =K148/F148 -> 22.95% | M148: Successful | N148: 2017-02-02
A149: 80 | B149: 2017-01-04 | D149: DEEPAKNTR | E149: Accu | F149: 99.50 | H149: 158 | I149: 158.00 | J149: Target Achieved | K149: =H149-F149 -> 58.50 | L149: =K149/F149 -> 58.79% | M149: Successful | N149: 2017-06-12
A150: 81 | B150: 2017-01-04 | D150: DEEPAKNTR | E150: Accu | F150: 99.50 | H150: 158 | I150: 158.00 | J150: Target Achieved | K150: 58.50 | L150: 58.79% | M150: Successful | N150: 2017-06-12
A151: 82 | B151: 2017-02-20 | D151: RECLTD | E151: Accu | F151: 140.50 | H151: 220 | I151: 220.00 | J151: Target Achieved | K151: =H151-F151 -> 79.50 | L151: =K151/F151 -> 56.58% | M151: Successful | N151: 2017-05-09
A152: 83 | B152: 2017-02-20 | D152: SUBROS | E152: Accu | F152: 202.50 | H152: 234 | I152: 234.00 | J152: Target Achieved | K152: 31.50 | L152: 15.56% | M152: Successful | N152: 2017-04-11
A153: 84 | B153: 2017-03-24 | D153: VRLLOG | E153: Accu | F153: 300.50 | H153: 417.5 | I153: 420.00 | J153: Profit of Rs.117/- | K153: =H153-F153 -> 117.00 | L153: =K153/F153 -> 38.94% | M153: Successful | N153: 2017-12-01
A154: 85 | B154: 2017-03-24 | D154: FIEMIND | E154: Accu | F154: 850.00 | H154: 1042.5 | I154: 1023.00 | J154: Profit of Rs 192.50/- | K154: 192.50 | L154: 22.65% | M154: Successful | N154: 2017-04-05
A155: 86 | B155: 2017-04-05 | D155: RATNAMANI | E155: Accu | F155: 785.00 | H155: 930 | I155: 920.00 | J155: Profit of Rs.145/- | K155: =H155-F155 -> 145.00 | L155: =K155/F155 -> 18.47% | M155: Successful | N155: 2017-08-29
A156: 87 | B156: 2017-04-06 | D156: ZEEMEDIA | E156: Accu | F156: 40 | H156: 13.10 | I156: 60.00 | J156: Loss of Rs.26.9/- | K156: -26.90 | L156: -67.25% | M156: Unsuccessful | N156: 2018-02-07
A157: 88 | B157: 2017-04-12 | D157: DABUR | E157: Accu | F157: 289.50 | H157: 354 | I157: 360.00 | J157: Profit of Rs.64.5/- | K157: =H157-F157 -> 64.50 | L157: =K157/F157 -> 22.28% | M157: Successful | N157: 2017-11-01
A158: 89 | B158: 2017-04-20 | D158: KPRMILL | E158: Accu | F158: 700.00 | H158: 840 | I158: 840.00 | J158: Profit of Rs.140/- | K158: 140.00 | L158: 20.00% | M158: Successful | N158: 2017-06-07
A159: 90 | B159: 2017-06-01 | D159: ESSELPACK | E159: Accu | F159: 130.00 | H159: 144.25 | I159: 170.00 | J159: Profit of Rs.14.25/- | K159: 14.25 | L159: 10.96% | M159: Successful | N159: 2019-07-29
A160: 91 | B160: 2017-06-15 | D160: KEI | E160: Accu | F160: 214.50 | H160: 262 | I160: 262.00 | J160: Profit of Rs.47.5/- | K160: 47.50 | L160: 22.14% | M160: Successful | N160: 2017-08-30
A161: 92 | B161: 2017-07-17 | D161: MAYURUNIQ | E161: Accu | F161: 370.00 | H161: 447.5 | I161: 450.00 | J161: Target Achieved | K161: 77.50 | L161: 20.95% | M161: Successful | N161: 2017-10-27
A162: 93 | B162: 2017-07-27 | D162: RAMCOCEM | E162: Accu | F162: 657.50 | H162: 825 | I162: 820.00 | J162: Target Achieved | K162: 167.50 | L162: 25.48% | M162: Successful | N162: 2017-12-21
A163: 94 | B163: 2017-08-17 | D163: FINPIPE | E163: Accu | F163: 605.00 | H163: 750 | I163: 750.00 | J163: Profit of Rs.145/- | K163: 145.00 | L163: 23.97% | M163: Successful | N163: 2017-10-19
A164: 95 | B164: 2017-09-01 | D164: SHK | E164: Accu | F164: 255 | H164: 217.25 | I164: 320.00 | J164: Loss of Rs.37.75/- | K164: -37.75 | L164: -15% | M164: Unsuccessful | N164: 2019-07-15
A165: 96 | B165: 2017-09-19 | D165: SKIPPER | E165: Accu | F165: 215.00 | H165: 258 | I165: 258.00 | J165: Target Achieved | K165: 43.00 | L165: 20.00% | M165: Successful | N165: 2017-11-01
A166: 97 | B166: 2017-09-19 | D166: SKIPPER | E166: Accu | F166: 215.00 | H166: 258 | I166: 258.00 | J166: Target Achieved | K166: 43.00 | L166: 20.00% | M166: Successful | N166: 2017-11-01
A167: 98 | B167: 2017-09-20 | D167: CAMLINFINE$ | E167: Accu | F167: 75.00 | H167: 90 | I167: 90.00 | J167: Profit of Rs.15.00/- | K167: =H167-F167 -> 15.00 | L167: =K167/F167 -> 20.00% | M167: Successful | N167: 2017-10-11
A168: 99 | B168: 2017-10-03 | D168: GNA | E168: Accu | F168: 315.00 | H168: 392 | I168: 384.00 | J168: Profit of Rs.77/- | K168: 77.00 | L168: 24.44% | M168: Successful | N168: 2017-10-09
A169: 100 | B169: 2017-10-05 | D169: NOCIL | E169: Accu | F169: 145.00 | H169: 179 | I169: 180.00 | J169: Profit of Rs.34/- | K169: 34.00 | L169: 23.45% | M169: Successful | N169: 2017-10-17
A170: 101 | B170: 2017-10-06 | D170: CENTURYPLY | E170: Accu | F170: 256.00 | H170: 323 | I170: 320.00 | J170: Target Achieved | K170: 67.00 | L170: 26.17% | M170: Successful | N170: 2017-11-28
A171: 102 | B171: 2017-10-09 | D171: EIHOTEL | E171: Accu | F171: 137.50 | H171: 184 | I171: 183.00 | J171: Profit of Rs.46.5/- | K171: 46.50 | L171: 33.82% | M171: Successful | N171: 2018-01-08
A172: 103 | B172: 2017-10-10 | D172: NRBBEARING | E172: Accu | F172: 125.50 | H172: 158 | I172: 155.00 | J172: Profit of Rs.32.5/- | K172: 32.50 | L172: 25.90% | M172: Successful | N172: 2017-11-28
A173: 104 | B173: 2017-10-10 | D173: BOROSIL | E173: Accu | F173: 895.00 | H173: 1122.5 | I173: 1078.00 | J173: Profit of Rs.227.5/- | K173: 227.50 | L173: 25.42% | M173: Successful | N173: 2018-01-17
A174: 105 | B174: 2017-10-12 | D174: CYIENT | E174: Accu | F174: 525.00 | H174: 629 | I174: 629.00 | J174: Target Achieved | K174: 104.00 | L174: 19.81% | M174: Successful | N174: 2018-01-19
A175: 106 | B175: 2017-11-07 | D175: HATSUN | E175: Accu | F175: 740.00 | H175: 892.5 | I175: 900.00 | J175: Profit of Rs.152.5/- | K175: =H175-F175 -> 152.50 | L175: =K175/F175 -> 20.61% | M175: Successful | N175: 2017-11-13
A176: 107 | B176: 2017-12-04 | D176: SANGHIIND | E176: Accu | F176: 118.50 | H176: 143.5 | I176: 145.00 | J176: Profit of Rs.25/- | K176: =H176-F176 -> 25.00 | L176: =K176/F176 -> 21.10% | M176: Successful | N176: 2017-12-28
A177: 108 | B177: 2017-12-21 | D177: KAJARIACER | E177: Accu | F177: 715 | H177: 500.00 | I177: 872.00 | J177: Loss of Rs.215/- | K177: =H177-F177 -> -215.00 | L177: =K177/F177 -> -30.07% | M177: Unsuccessful | N177: 2019-07-24
A178: 109 | B178: 2017-12-29 | D178: GNA | E178: Accu | F178: 435.00 | H178: 542.5 | I178: 539.00 | J178: Target Achieved | K178: 107.50 | L178: 24.71% | M178: Successful | N178: 2018-04-16
A179: 110 | B179: 2017-12-29 | D179: ZENSARTECH | E179: Accu | F179: 885.00 | H179: 1090 | I179: 1084.00 | J179: Target Achieved | K179: 205.00 | L179: 23.16% | M179: Successful | N179: 2018-04-23
A180: 111 | B180: 2018-04-02 | D180: EVERESTIND | E180: Accu | F180: 478.50 | H180: 442 | I180: 613.00 | J180: Loss of Rs.36.50 /- | K180: =H180-F180 -> -36.50 | L180: =K180/F180 -> -7.63% | M180: Unsuccessful | N180: 2019-10-24
A181: 112 | B181: 2018-04-04 | D181: GPPL$ | E181: Accu | F181: =141.5-7.3 -> 134.2 | H181: 77.00 | I181: 180.00 | J181: Loss of Rs.57.2/- | K181: =H181-F181 -> -57.20 | L181: =K181/F181 -> -42.62% | M181: Unsuccessful | N181: 2019-02-26
A182: 113 | B182: 2018-04-19 | D182: MANPASAND | E182: Accu | F182: 430 | H182: 220.00 | I182: 537.00 | J182: Loss of Rs.210/- | K182: =H182-F182 -> -210.00 | L182: =K182/F182 -> -48.84% | M182: Unsuccessful | N182: 2018-06-01
A183: 114 | B183: 2018-04-30 | D183: HEIDELBERG | E183: Accu | F183: 153.5 | H183: 196 | I183: 196.00 | J183: Profit of Rs.42.50/- | K183: =H183-F183 -> 42.50 | L183: =K183/F183 -> 27.69% | M183: Successful | N183: 2019-05-20
A184: 115 | B184: 2018-07-25 | D184: ZEEMEDIA | E184: Accu | F184: 27.5 | H184: 13.10 | I184: 60.00 | J184: Loss of Rs.14.40/- | K184: -14.40 | L184: -52.36% | M184: Unsuccessful | N184: 2018-02-07
A185: 116 | B185: 2018-08-06 | D185: GABRIEL | E185: Accu | F185: 148.5 | H185: 102 | I185: 182.00 | J185: Loss of Rs.46.50/- | K185: =H185-F185 -> -46.50 | L185: =K185/F185 -> -31.31% | M185: Unsuccessful | N185: 2019-07-15
A186: 117 | B186: 2018-08-23 | D186: INDIANHUME | E186: Accu | F186: 285 | H186: 355 | I186: 364.00 | J186: Profit of Rs.70/- | K186: 70.00 | L186: 24.56% | M186: Successful | N186: 2018-12-21
A187: 118 | B187: 2018-08-29 | D187: GRINDWELL | E187: Accu | F187: 525 | H187: 585 | I187: 635.00 | J187: Profit of Rs.60- | K187: =H187-F187 -> 60.00 | L187: =K187/F187 -> 11.43% | M187: Successful | N187: 2019-07-16
A188: 119 | B188: 2018-10-22 | D188: FINPIPE | E188: Accu | F188: 475 | H188: 574 | I188: 570.00 | J188: Target Achieved | K188: 99.00 | L188: 20.84% | M188: Successful | N188: 2018-10-30
A189: 120 | B189: 2018-10-24 | D189: GULFOILLUB | E189: Accu | F189: 707.5 | H189: 872 | I189: 872.00 | J189: Target Achieved | K189: 164.50 | L189: 23.25% | M189: Successful | N189: 2019-01-17
A190: 121 | B190: 2018-10-25 | D190: DBCORP | E190: Accu | F190: 162 | H190: 204 | I190: 209.00 | J190: Profit of Rs.42/- | K190: 42.00 | L190: 25.93% | M190: Successful | N190: 2019-03-15
A191: 122 | B191: 2018-10-26 | D191: RITES | E191: Accu | F191: 240 | H191: 297 | I191: 297.00 | J191: Target Achieved | K191: 57.00 | L191: 23.75% | M191: Successful | N191: 2018-11-13
A192: 123 | B192: 2018-12-05 | D192: BRIGADE | E192: Accu | F192: 202.5 | H192: 255 | I192: 252.00 | J192: Target Achieved | K192: 52.50 | L192: 25.93% | M192: Successful | N192: 2019-03-18 | R192: V
A193: 124 | B193: 2018-12-31 | D193: JKCEMENT | E193: Accu | F193: 710 | H193: 866 | I193: 866.00 | J193: Target Achieved | K193: 156.00 | L193: 21.97% | M193: Successful | N193: 2019-03-29 | R193: V
A194: 125 | B194: 2019-02-26 | D194: MARICO | E194: Accu | F194: 337.25 | H194: 398.5 | I194: 411.00 | J194: Profit of Rs.61.25/- | K194: 61.25 | L194: 18.16% | M194: Successful | N194: 2019-10-22 | R194: V
A195: 126 | B195: 2019-04-04 | D195: ITDCEM | E195: Accu | F195: 130 | H195: 65 | I195: 158.00 | J195: Loss of Rs.65 /- | K195: -65.00 | L195: -50.00% | M195: Unsuccessful | N195: 2019-09-18 | R195: K
A196: 127 | B196: 2017-10-09 | D196: RECLTD | E196: Accu | F196: 141.5 | H196: 183.5 | I196: 210.00 | J196: Profit of Rs.42/- | K196: 42.00 | L196: 29.68% | M196: Successful | N196: 2017-11-03 | R196: K
A197: 128 | B197: 2017-12-05 | D197: ALLCARGO | E197: Accu | F197: 172.00 | H197: 155.25 | I197: 230.00 | J197: Loss of Rs.16.75/- | K197: -16.75 | L197: -9.74% | M197: Unsuccessful | N197: 2019-11-18 | R197: K
A198: 129 | B198: 2018-10-25 | D198: GODREJCP | E198: Accu | F198: 698.5 | H198: 890 | I198: 890.00 | J198: Profit of Rs.191.50/- | K198: 191.50 | L198: 27.42% | M198: Successful | N198: 2021-05-12 | R198: V
A199: 130 | B199: 2017-05-22 | D199: GREAVESCOT | E199: Accu | F199: 127.6 | H199: 138 | I199: 190.00 | J199: Profit of Rs.10.40 | K199: 10.40 | L199: 8.15% | M199: Successful | N199: 2019-11-05 | R199: K
A200: 131 | B200: 2018-02-27 | D200: MOLDTKPAC | E200: Accu | F200: 317 | H200: 382.5 | I200: 398.00 | J200: Profit of Rs.65.5 | K200: 65.50 | L200: 20.66% | M200: Successful | N200: 2021-02-11 | R200: K
A201: 132 | B201: 2018-03-05 | D201: LICHSGFIN | E201: Accu | F201: =510-14.4 -> 495.60 | H201: 350 | I201: 672.00 | J201: Loss of Rs.145.60/- | K201: -145.60 | L201: -29.38% | M201: Unsuccessful | N201: 2020-02-26 | R201: V
A202: 133 | B202: 2018-05-17 | D202: PHILIPCARB | E202: Accu | F202: 230.30 | H202: 102.5 | I202: 348.00 | J202: Loss of Rs.127.80/- | K202: -127.80 | L202: -55.49% | M202: Unsuccessful | N202: 2020-03-06 | R202: V
A203: 134 | B203: 2018-06-07 | D203: KEC | E203: Accu | F203: =342.5-5.1 -> 337.4 | H203: 412.5 | I203: 439.00 | J203: Profit of Rs.75.10 | K203: 75.10 | L203: 22.26% | M203: Successful | N203: 2021-02-03 | R203: K
A204: 135 | B204: 2018-07-04 | D204: ASHOKLEY | E204: Accu | F204: =127.5-5.53 -> 121.97 | H204: 122.50 | I204: 170.00 | J204: Profit of Rs.0.53/- | K204: 0.53 | L204: 0% | M204: Neutral | N204: 2021-08-23 | R204: V
A205: 136 | B205: 2018-07-13 | D205: FCONSUMER | E205: Accu | F205: 46.50 | H205: 17 | I205: 59.00 | J205: Loss of Rs.29.50/- | K205: -29.50 | L205: -63.44% | M205: Unsuccessful | N205: 2020-02-26 | R205: V
A206: 137 | B206: 2018-10-23 | D206: JKPAPER | E206: Accu | F206: 156.5 | H206: 207.5 | I206: 191.00 | J206: Target Achieved | K206: 51.00 | L206: 32.59% | M206: Successful | N206: 2021-06-22 | R206: V
A207: 138 | B207: 2018-12-05 | D207: CCL | E207: Accu | F207: 259.5 | H207: 320 | I207: 320.00 | J207: Target Achieved | K207: 60.50 | L207: 23.31% | M207: Successful | N207: 2021-05-07 | R207: V
A208: 139 | B208: 2018-12-05 | D208: VARROC | E208: Accu | F208: 715 | H208: 445 | I208: 840.00 | J208: Loss of Rs.270/- | K208: -270.00 | L208: -37.76% | M208: Unsuccessful | N208: 2019-12-01 | R208: V
A209: 140 | B209: 2019-01-04 | D209: MGL | E209: Accu | F209: 875 | H209: 1165 | I209: 1185.00 | J209: Profit of Rs.290/- | K209: 290.00 | L209: 33.14% | M209: Successful | N209: 2020-01-17 | R209: V
A210: 141 | B210: 2019-04-04 | D210: COCHINSHIP | E210: Accu | F210: =387-14.63 -> 372.37 | H210: 490 | I210: 490.00 | J210: Target Achieved | K210: 117.63 | L210: 31.59% | M210: Successful | N210: 2020-01-20 | R210: V
A211: 142 | B211: 2019-04-23 | D211: MAHINDCIE | E211: Buy | F211: 220 | H211: 127.5 | I211: 284.00 | J211: Loss of Rs.92.50/- | K211: -92.50 | L211: -42.05% | M211: Unsuccessful | N211: 2020-03-06 | R211: V
A212: 143 | B212: 2019-06-06 | D212: RADICO | E212: Buy | F212: 332.8 | H212: 405 | I212: 419.00 | J212: Profit of Rs.72.20/- | K212: 72.20 | L212: 21.69% | M212: Successful | N212: 2020-01-30 | R212: K
A213: 144 | B213: 2019-06-25 | D213: M&MFIN | E213: Accu | F213: 386 | H213: 395.00 | I213: 452.00 | J213: Profit of Rs.9/- | K213: 9.00 | L213: 2% | M213: Neutral | N213: 2020-02-07 | R213: K
A214: 145 | B214: 2019-08-30 | D214: INDHOTEL | E214: Accu | F214: 137.5 | H214: 138.50 | I214: 190.00 | J214: Profit of Rs.1/- | K214: 1.00 | L214: 1% | M214: Neutral | N214: 2021-08-24 | R214: V
A215: 146 | B215: 2019-09-23 | D215: KNRCON | E215: Accu | F215: 235 | H215: 295 | I215: 296.00 | J215: Profit of Rs.60/- | K215: 60.00 | L215: 25.53% | M215: Successful | N215: 2020-01-14 | R215: K
A216: 147 | B216: 2019-10-14 | D216: KEC$ | E216: Accu | F216: 277.5 | H216: 333 | I216: 333.00 | J216: Profit of Rs.55.50/- | K216: 55.50 | L216: 20.00% | M216: Successful | N216: 2020-01-16 | R216: V
A217: 148 | B217: 2019-10-14 | D217: MGL$ | E217: Accu | F217: 930 | H217: 1165 | I217: 1200.00 | J217: Profit of Rs.235/- | K217: 235.00 | L217: 25.27% | M217: Successful | N217: 2020-01-17 | R217: K
A218: 149 | B218: 2019-10-15 | D218: JKPAPER$ | E218: Accu | F218: 111.00 | H218: 141 | I218: 141.00 | J218: Profit of Rs.30/- | K218: 30.00 | L218: 27.03% | M218: Successful | N218: 2021-05-12 | R218: K
A219: 150 | B219: 2019-10-15 | D219: RADICO$ | E219: Accu | F219: 296.00 | H219: 370 | I219: 370.00 | J219: Target Achieved | K219: =H219-F219 -> 74.00 | L219: =K219/F219 -> 25.00% | M219: Successful | N219: 2020-01-23 | R219: K
A220: 151 | B220: 2019-10-16 | D220: MOLDTKPAC$ | E220: Accu | F220: 300.00 | H220: 382.5 | I220: 344.00 | J220: Profit of Rs.82.5/- | K220: 82.50 | L220: 27.50% | M220: Successful | N220: 2021-02-11 | R220: K
A221: 152 | B221: 2020-01-02 | D221: PSPPROJECT | E221: Accu | F221: 495.00 | H221: 595 | I221: 590.00 | J221: Profit of Rs.100/- | K221: 100.00 | L221: 20.20% | M221: Successful | N221: 2022-01-28 | R221: K
A222: 153 | B222: 2020-05-15 | D222: BEL | E222: Accu | F222: 67.50 | H222: 86 | I222: 86.00 | J222: Profit of Rs.18.50/- | K222: 18.50 | L222: 27.41% | M222: Successful | N222: 2020-06-26 | R222: K
A223: 154 | B223: 2020-07-23 | D223: RITES | E223: Accu | F223: 231.00 | H223: 281 | I223: 281.00 | J223: Target Achieved | K223: 50.00 | L223: 21.65% | M223: Successful | N223: 2021-06-11 | R223: K
A224: 155 | B224: 2020-09-18 | D224: IEX | E224: Accu | F224: 206 | H224: 248 | I224: 248.00 | J224: Target Achieved | K224: 42.00 | L224: 20.39% | M224: Successful | N224: 2021-01-18 | R224: K
... 31 more rows
